Workbook

Sheet Introduction
C3: Electricity DNSP
C4: Operational performance data
C6: Introduction
C8: This workbook contains operational performance data for the electricity distribution network service providers (DNSPs) regulated by the AER. Charts and data are presented for a range of financial and network operational performance measures.
C10: Interpretation
C11: The data covers the regulatory years from 2006 to 2024. It is reported on an end of year basis. Prior to 2021 the Victorian distribution businesses reported on a calendar year basis. Therefore, for these businesses for the period from 2006 to 2020 the year label refers to the year ending 31 December. Beginning in 2021, Victorian businesses transitioned to reporting on a financial year basis. From that point onward, year labels reflect the financial year ending 30 June (e.g. 2022 refers to the year ending 30 June 2022). All other distribution businesses report on a financial year basis, and for these businesses the year label, e.g. 2023 refers to data collected for the financial year ending 30 June 2023. All financial values have been converted to June 2024 dollars. Any changes in service classification between regulatory periods have not been adjusted for in the data contained in this report.
C17: Sources
C18: Data is classified as actual, target or forecast. Actual data is generally sourced from individual annual regulatory information notices (RINs) responses, including economic benchmarking and category analysis RINs, or historical data provided at the time of regulatory determinations in roll forward models (RFMs). The RIN responses and RFMs are available on the AER website. Forecast data is generally sourced from the final regulatory determinations made by the AER for each business, updated for decisions by the Australian Competition Tribunal, and other allowed adjustments. Target revenue is sourced from pricing determinations made each year. Where pricing determinations are not available, target revenue has been sourced from post tax revenue models (PTRMs) determined as part of final regulatory decisions made by jurisdictional regulators or the AER, and amended to take into account any updates made after the final decision. Data sources are listed in each of the worksheets.
C20: VERSION RECORD
C22: Version | D22: Publication date | F22: Data range/updates
C23: 7 | D23: December 2025 | F23: Financial years | H23: 2005-06 to 2023-24
C24: 6 | D24: August 2024 | F24: Financial years | H24: 2005-06 to 2022-23 | J24: Incentive schemes included
C25: 5 | D25: July 2023 | F25: Financial years | H25: 2005-06 to 2021-22
F26: Calendar years | H26: 2005-06 to 2019-20 | J26: Vic DNSPs only - cease reporting CY from 2020.
C27: 4 | D27: July 2022 | F27: Financial years | H27: 2005-06 to 2020-21 | J27: Vic DNSP data transition from CY to FY in 2021.
F28: Calendar years | H28: 2005-06 to 2019-20 | J28: Vic DNSPs only - cease reporting CY from 2020.
C29: 3 | D29: June 2020 | F29: Financial years | H29: 2005-06 to 2018-19 | J29: Interim update - some 2019 Victorian data excluded.
F30: Calendar years | H30: 2006-2018
C31: 2 | D31: August 2019 | F31: Financial years | H31: 2005-06 to 2017-18
F32: Calendar years | H32: 2006 to 2018
C33: 1 | D33: November 2018 | F33: Financial years | H33: 2005-06 to 2016-17
F34: Calendar years | H34: 2006 to 2017

Sheet Contents
B3: Electricity DNSP
B4: Operational performance data
B6: Contents
B8: Financial | D8: Reliability | F8: Service delivery | H8: Network characteristics | J8: Meters and Tariffs
B10: 1. Revenue | D10: 6. Outage duration | F10: 8. Energy delivered | H10: 10. Customer numbers | J10: 13. Smart meters installations
B12: 2. Regulated asset base (RAB) | D12: 7. Outage frequency | F12: 9. Utilisation | H12: 11. Circuit length | J12: 14. Cost reflective tariffs
B14: 3. Capital expenditure (Capex) | H14: 12. Regulatory service life
B16: 4. Operating expenditure (Opex)
B18: 5. Incentive schemes

Sheet 1. Revenue
B4: Revenue
B6: Target revenue is derived from regulatory decisions, but adjusted to present on a comparable basis to actual revenues. The adjustments include rewards and penalties from incentive schemes, cost pass throughs and other factors that are taken into account in determining the target revenue used to set prices each year. Actual revenue reported by the DNSPs is for core distribution services - standard control services. Standard control services, including network, connection and metering services, make up the bulk of the services provided by DNSPs and are regulated by the AER.
C22: Circuit length
B36: Target Revenue
B37: $m 2024 | C37: State | D37: 2006 | E37: 2007 | F37: 2008 | G37: 2009 | H37: 2010 | I37: 2011 | J37: 2012 | K37: 2013 | L37: 2014 | M37: 2015 | N37: 2016 | O37: 2017 | P37: 2018 | Q37: 2019 | R37: 2020 | S37: 2021 | T37: 2022 | U37: 2023 | V37: 2024
B38: Evoenergy* | C38: ACT | D38: 168.2754049 | E38: 175.2015518 | F38: 183.0848597 | G38: 175.2418452 | H38: 199.0055163 | I38: 208.0582039 | J38: 212.5631631 | K38: 227.2989784 | L38: 244.5498465 | M38: 197.4888447 | N38: 161.3812488 | O38: 148.5895318 | P38: 161.1586469 | Q38: 161.8951893 | R38: 162.7422326 | S38: 163.6612705 | T38: 154.8755574 | U38: 146.5761545 | V38: 147.5822129
B39: Ausgrid | C39: NSW | D39: 991.6024309 | E39: 1067.545292 | F39: 1129.853861 | G39: 1198.231894 | H39: 1802.886927 | I39: 2148.5005 | J39: 2533.599771 | K39: 3021.158355 | L39: 2842.302821 | M39: 2492.058315 | N39: 1845.109329 | O39: 1781.592636 | P39: 1815.238076 | Q39: 1781.192349 | R39: 1710.602429 | S39: 1690.783978 | T39: 1592.352874 | U39: 1434.088463 | V39: 1466.201826
B40: Endeavour Energy | C40: NSW | D40: 855.6275214 | E40: 888.8191117 | F40: 919.8826009 | G40: 962.1352106 | H40: 1103.097773 | I40: 1270.182924 | J40: 1423.715486 | K40: 1428.518067 | L40: 1341.596912 | M40: 1219.133784 | N40: 986.269073 | O40: 960.3433611 | P40: 1005.903762 | Q40: 1006.271632 | R40: 982.098537 | S40: 980.4670905 | T40: 928.0990645 | U40: 907.8605671 | V40: 908.6799137
B41: Essential Energy | C41: NSW | D41: 950.1539905 | E41: 985.810106 | F41: 1017.610432 | G41: 1079.307008 | H41: 1234.04638 | I41: 1469.632988 | J41: 1730.419171 | K41: 1947.082103 | L41: 1845.817592 | M41: 1646.083508 | N41: 1145.012348 | O41: 1139.991885 | P41: 1171.264782 | Q41: 1175.388705 | R41: 1173.281567 | S41: 1149.696379 | T41: 1085.443087 | U41: 1077.607772 | V41: 1076.707565
B42: Energex | C42: Qld | D42: 1015.921857 | E42: 1105.824611 | F42: 1203.788903 | G42: 1310.291597 | H42: 1345.116235 | I42: 1503.621663 | J42: 1665.336927 | K42: 1985.674742 | L42: 2199.849022 | M42: 2458.218623 | N42: 1966.29345 | O42: 1858.750339 | P42: 1785.864481 | Q42: 1631.945498 | R42: 1595.741829 | S42: 1409.444386 | T42: 1347.190771 | U42: 1265.646019 | V42: 1294.924748
B43: Ergon Energy | C43: Qld | D43: 1219.91444 | E43: 1255.889573 | F43: 1306.502834 | G43: 1302.247515 | H43: 1344.246454 | I43: 1501.228278 | J43: 1630.736246 | K43: 1820.157983 | L43: 2060.126362 | M43: 2347.035563 | N43: 1813.176959 | O43: 1810.377331 | P43: 1620.794936 | Q43: 1531.748189 | R43: 1514.861885 | S43: 1399.383828 | T43: 1305.463757 | U43: 1279.924649 | V43: 1250.399921
B44: SA Power Networks | C44: SA | D44: 740.0496585 | E44: 757.6614858 | F44: 774.9204045 | G44: 790.3475586 | H44: 805.4386091 | I44: 797.2922429 | J44: 1070.860372 | K44: 1094.853285 | L44: 1158.667842 | M44: 1168.759545 | N44: 856.3161008 | O44: 939.8122344 | P44: 957.3795441 | Q44: 959.2102165 | R44: 980.7487096 | S44: 939.0644345 | T44: 910.9147614 | U44: 835.2547408 | V44: 854.4246618
B45: TasNetworks (D) | C45: Tas | D45: 251.5800312 | E45: 271.2266144 | F45: 286.7927063 | G45: 312.1889469 | H45: 328.1592943 | I45: 331.5004812 | J45: 339.8120109 | K45: 369.0335067 | L45: 375.0833079 | M45: 384.6292271 | N45: 377.5071267 | O45: 360.5916254 | P45: 280.1180366 | Q45: 289.7776752 | R45: 276.1918048 | S45: 276.5424083 | T45: 278.9012562 | U45: 267.4044883 | V45: 276.3654817
B46: AusNet (D) | C46: Vic | D46: 495.4101993 | E46: 477.9673825 | F46: 497.2912874 | G46: 494.7261673 | H46: 526.0206328 | I46: 587.4568781 | J46: 624.2192405 | K46: 655.9387228 | L46: 736.8416892 | M46: 755.9746239 | N46: 752.9713019 | O46: 789.5193623 | P46: 742.8589406 | Q46: 767.5668183 | R46: 780.5525802 | S46: 681.5394735 | T46: 772.5813662 | U46: 750.5496382 | V46: 793.0515
B47: CitiPower | C47: Vic | D47: 312.4316307 | E47: 292.9367178 | F47: 273.7838209 | G47: 275.493901 | H47: 289.6875656 | I47: 277.4926946 | J47: 299.8491787 | K47: 313.073376 | L47: 333.0985275 | M47: 361.8463464 | N47: 350.0538055 | O47: 343.8619324 | P47: 353.3281103 | Q47: 357.1838359 | R47: 366.7537475 | S47: 302.3367815 | T47: 329.4168247 | U47: 324.7911587 | V47: 338.7649327
B48: Jemena Electricity | C48: Vic | D48: 221.7973865 | E48: 210.6818659 | F48: 217.6931943 | G48: 230.8608109 | H48: 226.5856107 | I48: 251.9902138 | J48: 274.7352716 | K48: 302.5340122 | L48: 325.7700408 | M48: 326.708147 | N48: 310.0456045 | O48: 312.8520697 | P48: 300.5669581 | Q48: 302.8332564 | R48: 321.3890399 | S48: 270.8243472 | T48: 293.5047209 | U48: 284.2120671 | V48: 289.7354315
B49: Powercor Australia | C49: Vic | D49: 547.2256258 | E49: 557.4861063 | F49: 567.2335627 | G49: 581.7692434 | H49: 595.107868 | I49: 597.2433554 | J49: 625.8297548 | K49: 669.8752478 | L49: 735.8540478 | M49: 797.8760098 | N49: 766.9372743 | O49: 759.545954 | P49: 755.485465 | Q49: 777.1141001 | R49: 801.8299624 | S49: 698.449039 | T49: 771.218201 | U49: 742.789963 | V49: 773.5304071
B50: United Energy | C50: Vic | D50: 464.6287579 | E50: 430.7691723 | F50: 439.4905807 | G50: 416.4044996 | H50: 393.6604345 | I50: 418.6858877 | J50: 439.2576859 | K50: 457.4387511 | L50: 470.874234 | M50: 512.3892387 | N50: 454.9856755 | O50: 478.2932672 | P50: 495.2093404 | Q50: 516.2039757 | R50: 539.3279751 | S50: 424.9837005 | T50: 463.3921355 | U50: 462.6343653 | V50: 483.9227396
B51: Power and Water Corporation* | C51: NT | D51: 126.4772513 | E51: 112.8289767 | F51: 115.29514 | G51: 123.3399835 | H51: 145.3653384 | I51: 138.5425075 | J51: 140.4604587 | K51: 146.83702 | L51: 176.4156579 | M51: 195.7299296 | N51: 211.4534474 | O51: 211.8990391 | P51: 210.9987074 | Q51: 251.8397 | R51: 187.0116606 | S51: 169.4626771 | T51: 150.2883768 | U51: 143.8417132 | V51: 154.5919901
B52: DNSP Total | D52: =SUM(D38:D51) -> 8361.096186 | E52: =SUM(E38:E51) -> 8590.648568 | F52: 8933.224188 | G52: 9252.586181 | H52: 10338.42464 | I52: 11501.42882 | J52: 13011.39474 | K52: 14439.47415 | L52: 14846.8479 | M52: 14863.9317 | N52: 11997.51274 | O52: 11896.02057 | P52: 11656.16979 | Q52: 11510.17114 | R52: 11393.13396 | S52: 10556.63979 | T52: 10383.64275 | U52: 9923.181758 | V52: 10108.88333
B54: Sources:
B55: Target revenue is sourced from pricing determinations made each year and published on the AER web site. Where pricing determinations are not available (for example, prior to the AER taking on the role of economic regulation of distribution businesses), target revenue has been sourced from post tax revenue models determined as part of final regulatory decisions made by jurisdictional regulators or the AER, and amended to take into account any updates made after the final decision. AER pricing data has been used for the following years: 2010 to 2016 & 2018 to 2024: Evoenergy, Ausgrid, Endeavour Energy, 2010 to 2024: Essential Energy. 2011 to 2024: Energex, Ergon Energy, SA Power Networks. 2011 to 2024: Ausnet (D), Citipower, Jemena Electricity, Powercor Australia, United Energy, 2013 to 2024: TasNetworks (D). 2015 to 2024: Power and Water Corporation
B57: Actual Revenue
B58: $m 2024 | C58: State | D58: 2006 | E58: 2007 | F58: 2008 | G58: 2009 | H58: 2010 | I58: 2011 | J58: 2012 | K58: 2013 | L58: 2014 | M58: 2015 | N58: 2016 | O58: 2017 | P58: 2018 | Q58: 2019 | R58: 2020 | S58: 2021 | T58: 2022 | U58: 2023 | V58: 2024
B59: Evoenergy* | C59: ACT | D59: 180.9705252 | E59: 183.1492157 | F59: 193.3913494 | G59: 178.7892111 | H59: 206.1396792 | I59: 270.1578694 | J59: 274.665173 | K59: 285.7402083 | L59: 299.2987355 | M59: 203.5640726 | N59: 172.0165484 | O59: 179.5559139 | P59: 162.2540499 | Q59: 162.8223046 | R59: 188.0762917 | S59: 163.1267254 | T59: 168.6928328 | U59: 154.3334119 | V59: 145.4449092
B60: Ausgrid* | C60: NSW | D60: 1373.943431 | E60: 1407.066166 | F60: 1482.252121 | G60: 1553.447012 | H60: 1836.883892 | I60: 2185.21021 | J60: 2483.609018 | K60: 2947.065471 | L60: 2802.070099 | M60: 2585.802562 | N60: 1903.574457 | O60: 1931.885963 | P60: 1844.785249 | Q60: 1801.249727 | R60: 1696.629887 | S60: 1688.128233 | T60: 1650.988077 | U60: 1484.845796 | V60: 1501.046463
B61: Endeavour Energy* | C61: NSW | D61: 881.1268799 | E61: 901.5346653 | F61: 991.8782487 | G61: 1012.72081 | H61: 1135.92339 | I61: 1281.422679 | J61: 1372.687313 | K61: 1388.345426 | L61: 1334.736481 | M61: 1269.853954 | N61: 1067.371268 | O61: 1092.205851 | P61: 1032.579279 | Q61: 1049.588073 | R61: 983.3266724 | S61: 988.4319664 | T61: 935.9816213 | U61: 949.0927323 | V61: 964.5555637
B62: Essential Energy* | C62: NSW | D62: 939.2254013 | E62: 1005.941806 | F62: 1052.756442 | G62: 1099.853646 | H62: 1270.694241 | I62: 1417.994579 | J62: 1726.042949 | K62: 2004.807003 | L62: 1826.684208 | M62: 1760.43281 | N62: 1084.583312 | O62: 1185.565517 | P62: 1199.38255 | Q62: 1191.565989 | R62: 1156.151408 | S62: 1134.209785 | T62: 1143.733468 | U62: 1106.899166 | V62: 1145.47061
B63: Energex | C63: Qld | D63: 1035.629298 | E63: 1095.606022 | F63: 1163.346814 | G63: 1358.739707 | H63: 1442.674091 | I63: 1450.964845 | J63: 1626.816451 | K63: 1839.473516 | L63: 2110.947884 | M63: 2449.790092 | N63: 1974.696147 | O63: 1922.970222 | P63: 1818.997494 | Q63: 1667.129043 | R63: 1610.908944 | S63: 1409.05437 | T63: 1401.853989 | U63: 1274.120749 | V63: 1341.466609
B64: Ergon Energy | C64: Qld | D64: 1119.7725 | E64: 1104.130502 | F64: 1131.054674 | G64: 1176.465029 | H64: 1239.745582 | I64: 1433.651268 | J64: 1575.511403 | K64: 1792.088757 | L64: 2012.354924 | M64: 2278.233004 | N64: 1832.860797 | O64: 1870.684567 | P64: 1667.131274 | Q64: 1575.402161 | R64: 1554.102201 | S64: 1304.958254 | T64: 1280.61814 | U64: 1381.318389 | V64: 1284.03228
B65: SA Power Networks | C65: SA | D65: 748.4737066 | E65: 761.2355428 | F65: 769.2296972 | G65: 785.7340862 | H65: 804.1369471 | I65: 869.6648913 | J65: 1064.58885 | K65: 1101.51583 | L65: 1115.488652 | M65: 1192.804703 | N65: 859.6904995 | O65: 942.0140988 | P65: 964.8162707 | Q65: 968.6081535 | R65: 989.7328549 | S65: 962.2718597 | T65: 923.8968879 | U65: 867.3543536 | V65: 809.2573035
B66: TasNetworks (D) | C66: Tas | D66: 218.6020353 | E66: 229.4412643 | F66: 262.7107177 | G66: 284.1988148 | H66: 320.4669165 | I66: 314.8497626 | J66: 334.3367286 | K66: 358.6117436 | L66: 359.0056969 | M66: 367.5555967 | N66: 389.3978704 | O66: 374.3403888 | P66: 297.6321987 | Q66: 285.6709662 | R66: 288.2669073 | S66: 279.0242096 | T66: 292.2457394 | U66: 277.626279 | V66: 274.6786901
B67: AusNet (D) | C67: Vic | D67: 488.7931275 | E67: 509.2709891 | F67: 508.2823976 | G67: 491.1237148 | H67: 553.5528038 | I67: 581.689154 | J67: 609.6135194 | K67: 669.7538389 | L67: 756.0831476 | M67: 842.2031726 | N67: 740.8132029 | O67: 804.4012134 | P67: 750.0159049 | Q67: 791.8628689 | R67: 795.6996876 | S67: 707.6980451 | T67: 754.7748977 | U67: 803.8170503 | V67: 785.5175983
B68: CitiPower | C68: Vic | D68: 322.020878 | E68: 323.1004455 | F68: 308.3619545 | G68: 307.6339849 | H68: 311.078967 | I68: 279.0352122 | J68: 292.448353 | K68: 311.8684506 | L68: 330.8050425 | M68: 366.9357635 | N68: 351.8443749 | O68: 345.7423264 | P68: 353.6164318 | Q68: 357.5023198 | R68: 340.1408451 | S68: 290.7920627 | T68: 348.0494712 | U68: 348.9740765 | V68: 333.6569184
B69: Jemena Electricity | C69: Vic | D69: 245.0677966 | E69: 253.8440113 | F69: 252.7553181 | G69: 262.4369438 | H69: 249.3841164 | I69: 262.4018755 | J69: 270.9168134 | K69: 300.7172088 | L69: 318.9998469 | M69: 330.7176939 | N69: 322.5703723 | O69: 336.9588136 | P69: 304.7853819 | Q69: 309.1602717 | R69: 318.9048307 | S69: 271.5059961 | T69: 298.1327798 | U69: 284.2985355 | V69: 296.9182774
B70: Powercor Australia | C70: Vic | D70: 629.8524584 | E70: 627.8301264 | F70: 619.8588177 | G70: 634.0887737 | H70: 610.7015255 | I70: 595.7251527 | J70: 632.4420388 | K70: 707.9658984 | L70: 765.6130402 | M70: 838.1339428 | N70: 782.1270418 | O70: 780.2293427 | P70: 768.6069313 | Q70: 783.9915795 | R70: 807.7277803 | S70: 703.16068 | T70: 804.0032109 | U70: 762.7630289 | V70: 786.167738
B71: United Energy | C71: Vic | D71: 455.7040626 | E71: 461.656885 | F71: 450.3493013 | G71: 432.9127159 | H71: 431.19894 | I71: 428.3434486 | J71: 439.492308 | K71: 455.8604526 | L71: 459.0374239 | M71: 511.7939526 | N71: 470.2060851 | O71: 499.166262 | P71: 503.222059 | Q71: 515.7832047 | R71: 550.3150899 | S71: 424.3146777 | T71: 466.2657968 | U71: 491.5170061 | V71: 483.0393949
B72: Power and Water Corporation | C72: NT | D72: 126.4772513 | E72: 112.8289767 | F72: 115.29514 | G72: 123.3399835 | H72: 145.3653384 | I72: 138.5425075 | J72: 140.4604587 | K72: 146.83702 | L72: 176.4156579 | M72: 184.7795036 | N72: 209.4406723 | O72: 209.1426722 | P72: 195.8339944 | Q72: 199.387335 | R72: 203.4138038 | S72: 176.8713242 | T72: 169.7922369 | U72: 150.4380502 | V72: 171.7928934
B73: DNSP Total | D73: =SUM(D59:D72) -> 8765.659351 | E73: =SUM(E59:E72) -> 8976.636618 | F73: 9301.522993 | G73: 9701.484433 | H73: 10557.94643 | I73: 11509.65345 | J73: 12843.63138 | K73: 14310.65082 | L73: 14667.54084 | M73: 15182.60082 | N73: 12161.19265 | O73: 12474.86315 | P73: 11863.65907 | Q73: 11659.724 | R73: 11483.3972 | S73: 10503.54819 | T73: 10639.02915 | U73: 10337.39862 | V73: 10323.04525
B75: Sources:
B76: Regulatory accounts or Economic Benchmarking RIN 2006 to 2010, Annual reporting RIN or Economic Benchmarking RIN responses 2011 to 2018, Annual reporting RIN 2019 to 2024.
B78: Notes:
B79: Distribution revenue derived from cross boundary revenue sources has been excluded.
B80: Prior to regulatory period 2024-29, Evoenergy operated under an average revenue cap form of control and therefore it did not have a “target revenue”. Rather, it had a target yield. Compliance with this target yield was determined by multiplying individual tariffs by volumes from two years prior to arrive at a notional revenue figure. The notional revenue reported in Evoenergy’s pricing proposal for the purposes of determining compliance was not comparable to the actual revenue reported in its RIN. From 2024-29 onwards, Evoenergy applies the same standard revenue cap method as other DNSPs, to ensure consistency across the NEM.
B81: Target or actual revenue for Ausgrid and Evoenergy do not include dual function transmission revenue.
B82: Power and Water Corporation (NT) 2006-2014: Revenue targets are not available for this period. Power and Water Corporation (NT) 2015-2019: Intra-period differences in service classifications between targets (based on the Utilities Commission of the Northern Territory's classifications) and actuals (aligned with future AER classification) mean comparisons would be misleading. To ensure the aggregate target revenue data is comparable with the aggregate actual revenue data, the target revenue for PWC has been assumed to match the actual revenue.
B83: *The actual revenues reported for 2014-15 to 2017-18 for NSW/ACT electricity distributors should be interpreted with caution. The reported revenues for those years were affected by two factors that do not typically occur over a regulatory control period: the transitional decision for 2014-15; and, an appeal on the 2015 final decision (which was subsequently set aside subject to remittal processes).

Sheet 2. RAB
B4: Regulatory Asset Base
B6: Regulated Asset Base (RAB) represents the value of the distribution networks' assets used to provide the core services regulated by the AER, as at the end of a regulatory year. The value changes each year due to capital expenditures, depreciation, and disposal of assets.
C21: Circuit length
B33: Forecast RAB
B34: $m 2024 | C34: State | D34: 2006 | E34: 2007 | F34: 2008 | G34: 2009 | H34: 2010 | I34: 2011 | J34: 2012 | K34: 2013 | L34: 2014 | M34: 2015 | N34: 2016 | O34: 2017 | P34: 2018 | Q34: 2019 | R34: 2020 | S34: 2021 | T34: 2022 | U34: 2023 | V34: 2024
B35: Evoenergy | C35: ACT | D35: 882.7568341 | E35: 884.6813484 | F35: 875.8327753 | G35: 873.3671869 | H35: 935.3898063 | I35: 976.439999 | J35: 1012.811579 | K35: 1037.045299 | L35: 1055.663426 | M35: 1136.753029 | N35: 1144.847248 | O35: 1158.281879 | P35: 1159.042567 | Q35: 1159.033065 | R35: 1153.566107 | S35: 1146.378661 | T35: 1153.114669 | U35: 1144.249154 | V35: 1127.18479
B36: Ausgrid | C36: NSW | D36: 8153.586842 | E36: 8701.942477 | F36: 9233.058941 | G36: 9776.474667 | H36: 14013.48008 | I36: 15728.37488 | J36: 17664.80607 | K36: 19557.62947 | L36: 21342.91331 | M36: 18821.91915 | N36: 19011.21188 | O36: 19180.9343 | P36: 19312.26503 | Q36: 19343.11025 | R36: 18920.03126 | S36: 18993.80018 | T36: 18947.62948 | U36: 18883.70552 | V36: 18806.66277
B37: Endeavour Energy | C37: NSW | D37: 4642.965264 | E37: 4963.787128 | F37: 5283.942917 | G37: 5529.714115 | H37: 5968.722582 | I37: 6582.502538 | J37: 7086.750049 | K37: 7514.935831 | L37: 7914.355865 | M37: 7581.2437 | N37: 7752.991199 | O37: 7840.607032 | P37: 7912.804331 | Q37: 7962.195746 | R37: 7917.818403 | S37: 7994.138549 | T37: 8063.800364 | U37: 8148.164373 | V37: 8229.011785
B38: Essential Energy | C38: NSW | D38: 4605.139426 | E38: 4880.024413 | F38: 5170.352396 | G38: 5473.486473 | H38: 7092.620214 | I38: 7816.953546 | J38: 8606.171281 | K38: 9358.7836 | L38: 10099.49667 | M38: 9166.737362 | N38: 9458.666898 | O38: 9711.918887 | P38: 9938.145161 | Q38: 10121.81105 | R38: 9983.455691 | S38: 10112.80683 | T38: 10231.13115 | U38: 10281.21 | V38: 10315.6696
B39: Energex | C39: Qld | D39: 8140.351488 | E39: 9003.387207 | F39: 9871.863656 | G39: 10692.90374 | H39: 9943.69573 | I39: 12563.79082 | J39: 13849.67144 | K39: 15067.77109 | L39: 16200.78307 | M39: 17391.88185 | N39: 14546.90257 | O39: 14812.86648 | P39: 14998.54743 | Q39: 15174.4933 | R39: 15337.5025 | S39: 15053.60868 | T39: 15032.51084 | U39: 14997.20835 | V39: 14922.67193
B40: Ergon Energy | C40: Qld | D40: 7663.855279 | E40: 8448.196609 | F40: 9311.76937 | G40: 10206.23741 | H40: 11123.62774 | I40: 11268.85035 | J40: 12216.64961 | K40: 13184.68375 | L40: 14177.92011 | M40: 15294.5841 | N40: 12915.17017 | O40: 13206.65676 | P40: 13435.77904 | Q40: 13602.89645 | R40: 13749.2217 | S40: 13535.21131 | T40: 13549.06651 | U40: 13552.24468 | V40: 13525.86034
B41: SA Power Networks | C41: SA | D41: 4147.518126 | E41: 4144.15709 | F41: 4127.351911 | G41: 4123.990876 | H41: 4139.115536 | I41: 4365.846763 | J41: 4623.313329 | K41: 4804.796319 | L41: 4968.397283 | M41: 5108.309493 | N41: 5062.18475 | O41: 5200.347915 | P41: 5314.785609 | Q41: 5414.199234 | R41: 5509.340444 | S41: 5156.031961 | T41: 5189.100199 | U41: 5200.087532 | V41: 5203.531648
B42: TasNetworks (D) | C42: Tas | D42: 1445.066342 | E42: 1534.30669 | F42: 1606.936584 | G42: 1681.773033 | H42: 1748.394438 | I42: 1804.309282 | J42: 1850.12744 | K42: 2007.845425 | L42: 2035.973741 | M42: 2058.604802 | N42: 2082.315463 | O42: 2106.977333 | P42: 2044.740549 | Q42: 2054.589064 | R42: 2167.167219 | S42: 2203.621982 | T42: 2218.852818 | U42: 2240.675786 | V42: 2263.609258
B43: AusNet (D) | C43: Vic | D43: 2330.668142 | E43: 2401.294449 | F43: 2464.567412 | G43: 2533.996663 | H43: 2605.820027 | I43: 3176.100418 | J43: 3442.970896 | K43: 3703.846214 | L43: 3953.731624 | M43: 4195.149246 | N43: 4559.371811 | O43: 4865.649085 | P43: 5123.160299 | Q43: 5406.508766 | R43: 5650.030681 | S43: 5410.984873 | T43: 5492.165659 | U43: 5578.894549 | V43: 5624.88039
B44: CitiPower | C44: Vic | D44: 1747.87285 | E44: 1794.729045 | F44: 1839.191127 | G44: 1906.226266 | H44: 1944.190044 | I44: 1948.617078 | J44: 2062.205338 | K44: 2191.29143 | L44: 2311.422713 | M44: 2426.301207 | N44: 2317.294139 | O44: 2435.672227 | P44: 2520.016338 | Q44: 2565.905582 | R44: 2566.329625 | S44: 2273.897774 | T44: 2313.484588 | U44: 2333.934555 | V44: 2339.090949
B45: Jemena Electricity | C45: Vic | D45: 1006.553135 | E45: 1010.828336 | F45: 1018.352688 | G45: 1015.61656 | H45: 1023.824944 | I45: 1154.774599 | J45: 1211.294795 | K45: 1261.312586 | L45: 1311.891271 | M45: 1348.704734 | N45: 1580.096363 | O45: 1711.630388 | P45: 1795.012382 | Q45: 1869.997804 | R45: 1916.250701 | S45: 1756.38307 | T45: 1855.057288 | U45: 1928.447052 | V45: 1978.226993
B46: Powercor Australia | C46: Vic | D46: 2858.056839 | E46: 2957.583499 | F46: 3062.2404 | G46: 3158.688917 | H46: 3257.018521 | I46: 3353.269822 | J46: 3552.622145 | K46: 3749.441619 | L46: 3954.505859 | M46: 4149.91697 | N46: 4406.127639 | O46: 4676.789045 | P46: 4965.732683 | Q46: 5194.216949 | R46: 5389.201988 | S46: 5143.253036 | T46: 5458.621356 | U46: 5715.203751 | V46: 5866.267921
B47: United Energy | C47: Vic | D47: 2101.346403 | E47: 2103.227491 | F47: 2101.175395 | G47: 2134.521957 | H47: 2195.400807 | I47: 2097.899394 | J47: 2230.122449 | K47: 2308.554993 | L47: 2358.016834 | M47: 2400.697585 | N47: 2742.923309 | O47: 2857.691989 | P47: 2926.428287 | Q47: 2974.260342 | R47: 3007.108808 | S47: 2778.337702 | T47: 2884.021564 | U47: 2921.424093 | V47: 2935.397624
B48: Power and Water Corporation | C48: NT | D48: =D68 -> 585.566079 | E48: =E68 -> 596.8107447 | F48: 651.9888767 | G48: 698.5477146 | H48: 784.8704433 | I48: 877.7456318 | J48: 928.051062 | K48: 1038.236448 | L48: 1117.691855 | M48: 1155.423904 | N48: 1175.220772 | O48: 1175.07242 | P48: 1164.269646 | Q48: 1147.430033 | R48: 1203.556754 | S48: 1231.134006 | T48: 1267.216291 | U48: 1268.198002 | V48: 1263.195803
B49: DNSP Total | D49: =SUM(D35:D48) -> 50311.30305 | E49: =SUM(E35:E48) -> 53424.95653 | F49: 56618.62445 | G49: 59805.54558 | H49: 66776.17091 | I49: 73715.47512 | J49: 80337.56749 | K49: 86786.17407 | L49: 92802.76363 | M49: 92236.22713 | N49: 88755.32421 | O49: 90941.09574 | P49: 92610.72936 | Q49: 93990.64763 | R49: 94470.58188 | S49: 92789.58861 | T49: 93655.77278 | U49: 94193.6474 | V49: 94401.26181
B51: Sources: Forecast closing RAB is sourced from post tax revenue models developed as part of final regulatory decisions made by the AER or jurisdictional regulators, and amended to take into account any updates made after the final decisions.
B53: Actual RAB
B54: $m 2024 | C54: State | D54: 2006 | E54: 2007 | F54: 2008 | G54: 2009 | H54: 2010 | I54: 2011 | J54: 2012 | K54: 2013 | L54: 2014 | M54: 2015 | N54: 2016 | O54: 2017 | P54: 2018 | Q54: 2019 | R54: 2020 | S54: 2021 | T54: 2022 | U54: 2023 | V54: 2024
B55: Evoenergy | C55: ACT | D55: 867.3604515 | E55: 872.02513 | F55: 883.503142 | G55: 882.4286635 | H55: 809.9720967 | I55: 849.5229744 | J55: 872.4190226 | K55: 885.5761084 | L55: 905.549072 | M55: 1133.152685 | N55: 1137.895144 | O55: 1133.53112 | P55: 1146.881714 | Q55: 1160.9806 | R55: 1160.510398 | S55: 1139.567952 | T55: 1137.304943 | U55: 1155.058913 | V55: 1136.34869
B56: Ausgrid | C56: NSW | D56: 8010.918355 | E56: 8856.248211 | F56: 9778.020743 | G56: 10754.99989 | H56: 13841.12035 | I56: 15589.12672 | J56: 17339.33022 | K56: 18391.61455 | L56: 18655.86566 | M56: 18707.46411 | N56: 18430.20996 | O56: 18303.30004 | P56: 18386.3792 | Q56: 18704.53135 | R56: 18797.70696 | S56: 18629.32944 | T56: 18201.83613 | U56: 18275.63773 | V56: 18428.24407
B57: Endeavour Energy | C57: NSW | D57: 4412.158313 | E57: 4755.220739 | F57: 5045.573824 | G57: 5438.504405 | H57: 5703.568717 | I57: 6111.348399 | J57: 6684.538587 | K57: 7151.560522 | L57: 7287.866913 | M57: 7510.9815 | N57: 7505.482113 | O57: 7454.766042 | P57: 7604.259344 | Q57: 7784.401571 | R57: 7870.057348 | S57: 7951.592056 | T57: 7971.125931 | U57: 8133.118285 | V57: 8570.59173
B58: Essential Energy | C58: NSW | D58: 4760.149573 | E58: 5233.960016 | F58: 5755.823057 | G58: 6366.218606 | H58: 6976.315913 | I58: 7570.914234 | J58: 8236.103556 | K58: 8702.40461 | L58: 8845.503694 | M58: 9118.708291 | N58: 9273.495003 | O58: 9390.310866 | P58: 9479.863546 | Q58: 9667.692725 | R58: 9896.809058 | S58: 9998.468756 | T58: 10102.9839 | U58: 10242.13099 | V58: 10433.05935
B59: Energex | C59: Qld | D59: 8059.233259 | E59: 8812.359963 | F59: 9438.439686 | G59: 10254.07411 | H59: 11272.04783 | I59: 12279.91708 | J59: 13165.45078 | K59: 13931.30847 | L59: 14461.34552 | M59: 14264.3525 | N59: 14494.5335 | O59: 14680.67473 | P59: 14805.82604 | Q59: 14889.26719 | R59: 15079.38222 | S59: 14999.27115 | T59: 14948.46976 | U59: 14923.43495 | V59: 14984.349
B60: Ergon Energy | C60: Qld | D60: 7520.101597 | E60: 8256.039649 | F60: 8848.652293 | G60: 9512.122104 | H60: 10242.76474 | I60: 10882.34229 | J60: 11425.25906 | K60: 12035.0043 | L60: 12472.9354 | M60: 12605.18361 | N60: 12839.13051 | O60: 12992.61731 | P60: 13120.40373 | Q60: 13290.11444 | R60: 13509.07907 | S60: 13650.80665 | T60: 13809.81228 | U60: 14098.32763 | V60: 14624.76116
B61: SA Power Networks | C61: SA | D61: 4365.795594 | E61: 4322.25694 | F61: 4263.550726 | G61: 4261.761215 | H61: 4154.979529 | I61: 4293.884126 | J61: 4487.656352 | K61: 4663.281384 | L61: 4753.59738 | M61: 4823.962303 | N61: 4877.685919 | O61: 4864.722334 | P61: 4964.252923 | Q61: 5051.158638 | R61: 5107.829512 | S61: 5101.688078 | T61: 5101.687133 | U61: 5147.409024 | V61: 5154.219963
B62: TasNetworks (D) | C62: Tas | D62: 1393.612011 | E62: 1553.557135 | F62: 1614.513337 | G62: 1738.531241 | H62: 1833.645242 | I62: 1917.810779 | J62: 1977.853732 | K62: 1985.207029 | L62: 1996.718216 | M62: 1993.218629 | N62: 2017.897718 | O62: 1998.386175 | P62: 2094.517315 | Q62: 2112.539006 | R62: 2134.596814 | S62: 2168.636881 | T62: 2177.591118 | U62: 2192.197202 | V62: 2317.70752
B63: AusNet (D) | C63: Vic | D63: 2271.440237 | E63: 2385.50618 | F63: 2456.685204 | G63: 2740.890482 | H63: 2969.322332 | I63: 3121.325511 | J63: 3441.150394 | K63: 3758.174116 | L63: 4086.935739 | M63: 4357.833805 | N63: 4524.734232 | O63: 4683.489254 | P63: 4899.120282 | Q63: 5107.394133 | R63: 5267.99173 | S63: 5408.522724 | T63: 5344.773286 | U63: 5203.94452 | V63: 5499.422218
B64: CitiPower | C64: Vic | D64: 1673.288282 | E64: 1712.389338 | F64: 1673.950005 | G64: 1773.759509 | H64: 1825.828966 | I64: 1912.391843 | J64: 1999.847125 | K64: 2078.682582 | L64: 2167.283435 | M64: 2231.934968 | N64: 2272.872045 | O64: 2237.614933 | P64: 2227.296603 | Q64: 2228.732623 | R64: 2251.369056 | S64: 2286.401854 | T64: 2193.558617 | U64: 2080.79218 | V64: 2116.5827
B65: Jemena Electricity | C65: Vic | D65: 992.9895553 | E65: 1044.622454 | F65: 1009.455443 | G65: 1085.412018 | H65: 1083.932171 | I65: 1180.065368 | J65: 1282.497419 | K65: 1358.535113 | L65: 1433.700651 | M65: 1502.540822 | N65: 1551.73234 | O65: 1613.685983 | P65: 1669.510609 | Q65: 1693.467586 | R65: 1710.978552 | S65: 1762.724363 | T65: 1780.565809 | U65: 1781.645703 | V65: 1897.354182
B66: Powercor Australia | C66: Vic | D66: 2793.780635 | E66: 2930.396358 | F66: 2924.753233 | G66: 3094.254823 | H66: 3138.665377 | I66: 3285.517618 | J66: 3520.707127 | K66: 3724.394925 | L66: 3966.214681 | M66: 4186.82034 | N66: 4327.663962 | O66: 4482.901682 | P66: 4663.148285 | Q66: 4847.938398 | R66: 5057.023452 | S66: 5242.537601 | T66: 5306.061538 | U66: 5282.87522 | V66: 5663.191321
B67: United Energy | C67: Vic | D67: 2020.887432 | E67: 2029.918954 | F67: 1935.270098 | G67: 2039.976804 | H67: 1957.707523 | I67: 2089.336289 | J67: 2256.206233 | K67: 2356.046486 | L67: 2473.775923 | M67: 2637.192114 | N67: 2698.272827 | O67: 2713.734349 | P67: 2708.873586 | Q67: 2725.017629 | R67: 2748.404026 | S67: 2778.742878 | T67: 2727.489058 | U67: 2661.931937 | V67: 2770.90035
B68: Power and Water Corporation | C68: NT | D68: 585.566079 | E68: 596.8107447 | F68: 651.9888767 | G68: 698.5477146 | H68: 784.8704433 | I68: 877.7456318 | J68: 928.051062 | K68: 1038.236448 | L68: 1117.691855 | M68: 1155.423904 | N68: 1175.220772 | O68: 1175.07242 | P68: 1164.269646 | Q68: 1147.430033 | R68: 1173.168664 | S68: 1167.568558 | T68: 1187.644796 | U68: 1229.632358 | V68: 1362.981876
B69: DNSP Total | D69: =SUM(D55:D68) -> 49727.28137 | E69: =SUM(E55:E68) -> 53361.31181 | F69: 56280.17967 | G69: 60641.48158 | H69: 66594.74123 | I69: 71961.24886 | J69: 77617.07067 | K69: 82060.02664 | L69: 84624.98414 | M69: 86228.76959 | N69: 87126.82605 | O69: 87724.80723 | P69: 88934.60282 | Q69: 90410.66592 | R69: 91764.90686 | S69: 92285.85894 | T69: 91990.9043 | U69: 92408.13664 | V69: 94959.71413
B71: Sources: For performance reporting purposes, the interim RAB calculations workbook is used to determine Actual RAB values. Closing RAB values are calculated by rolling forward the closing RAB from the previous regulatory period, with net capex, depreciation, inflation, and half year adjustments.
B73: Note:
B74: Power and Water Corporation 2006 to 2014: Revenue targets are not available for this period. An error in asset revaluation for the 2014 to 2019 regulatory period resulted in the forecasts not being aligned with the actual RAB. To ensure the DNSP total forecast RAB data is comparable with the DNSP total actual RAB data, the target RAB for PWC has been assumed to match the actual RAB.

Sheet 3. Capex
B4: Capital expenditure
B6: Capital expenditure (capex) is a measure of investment in the distribution networks. This includes augmentation of the network, replacement of assets, improving network performance and non-network investments (for example, buildings). Capex is reported on an as-incurred basis.
C19: Circuit length
B34: Forecast Capex
B35: $m 2024 | C35: State | D35: 2006 | E35: 2007 | F35: 2008 | G35: 2009 | H35: 2010 | I35: 2011 | J35: 2012 | K35: 2013 | L35: 2014 | M35: 2015 | N35: 2016 | O35: 2017 | P35: 2018 | Q35: 2019 | R35: 2020 | S35: 2021 | T35: 2022 | U35: 2023 | V35: 2024
B36: Evoenergy | C36: ACT | D36: 35.41076942 | E36: 39.39476694 | F36: 34.14201403 | G36: 35.78382926 | H36: 93.35357784 | I36: 84.99133599 | J36: 83.14125686 | K36: 73.8413409 | L36: 70.63932084 | M36: 94.68212397 | N36: 78.60155925 | O36: 83.97835698 | P36: 73.12086169 | Q36: 71.74982025 | R36: 68.4448396 | S36: 71.32102644 | T36: 88.06764483 | U36: 76.56793943 | V36: 70.57313468
B37: Ausgrid | C37: NSW | D37: 756.1807867 | E37: 980.1289777 | F37: 973.5522437 | G37: 980.981602 | H37: 2078.834579 | I37: 2126.626428 | J37: 2408.854769 | K37: 2440.815495 | L37: 2370.380677 | M37: 788.9244987 | N37: 839.8582102 | O37: 851.2917198 | P37: 775.0083631 | Q37: 676.7713215 | R37: 766.207864 | S37: 664.2510092 | T37: 577.3925533 | U37: 586.576968 | V37: 566.8377714
B38: Endeavour Energy | C38: NSW | D38: 501.1532625 | E38: 597.9971803 | F38: 605.9113895 | G38: 716.0846927 | H38: 838.7612371 | I38: 898.3877112 | J38: 798.4471179 | K38: 724.8074223 | L38: 694.4314602 | M38: 539.9006881 | N38: 437.2976308 | O38: 369.5219246 | P38: 358.8405673 | Q38: 342.850604 | R38: 436.1242708 | S38: 395.9538564 | T38: 399.9905376 | U38: 421.8308647 | V38: 411.9494271
B39: Essential Energy | C39: NSW | D39: 405.8119102 | E39: 600.2143627 | F39: 606.4791463 | G39: 606.903582 | H39: 1063.317425 | I39: 1103.864557 | J39: 1131.141144 | K39: 1135.080621 | L39: 1160.988056 | M39: 645.0920461 | N39: 643.5574342 | O39: 628.2901101 | P39: 594.8957224 | Q39: 564.9192337 | R39: 638.6286881 | S39: 495.216567 | T39: 511.1865464 | U39: 472.3608641 | V39: 454.8477808
B40: Energex | C40: Qld | D40: 1002.263655 | E40: 1068.201505 | F40: 1244.951158 | G40: 1242.1856 | H40: 1269.6143 | I40: 1622.505298 | J40: 1656.454177 | K40: 1632.652414 | L40: 1591.471901 | M40: 1672.725286 | N40: 708.0413703 | O40: 711.3936571 | P40: 651.1626512 | Q40: 651.1172646 | R40: 655.4596722 | S40: 484.9399906 | T40: 473.2211131 | U40: 479.0402579 | V40: 459.3751973
B41: Ergon Energy | C41: Qld | D41: 829.0219616 | E41: 888.7196175 | F41: 916.6560414 | G41: 906.3897454 | H41: 893.1297541 | I41: 1431.069416 | J41: 1377.603749 | K41: 1419.268562 | L41: 1479.315751 | M41: 1593.320879 | N41: 842.6558841 | O41: 758.8914257 | P41: 697.8213529 | Q41: 647.1229177 | R41: 634.3557864 | S41: 535.8045255 | T41: 540.6622035 | U41: 541.8849309 | V41: 518.5441778
B42: SA Power Networks | C42: SA | D42: 248.7166461 | E42: 250.397164 | F42: 241.9945746 | G42: 259.2179378 | H42: 272.2438964 | I42: 433.5106607 | J42: 497.4792215 | K42: 443.8617962 | L42: 446.577586 | M42: 441.7504353 | N42: 492.7326746 | O42: 482.4514105 | P42: 463.0599439 | Q42: 455.3319401 | R42: 461.8188464 | S42: 413.9262626 | T42: 410.3727023 | U42: 398.1674495 | V42: 393.724579
B43: TasNetworks (D) | C43: Tas | D43: 79.95676414 | E43: 79.57731075 | F43: 159.7256697 | G43: 185.7169081 | H43: 179.4152563 | I43: 175.652013 | J43: 172.6048875 | K43: 137.4683905 | L43: 141.849817 | M43: 132.4337894 | N43: 125.1477171 | O43: 125.4241648 | P43: 137.8615605 | Q43: 124.5619576 | R43: 168.7809865 | S43: 156.9826166 | T43: 142.6029065 | U43: 152.4794857 | V43: 157.1985755
B44: AusNet (D) | C44: Vic | D44: 216.1541222 | E44: 204.0125536 | F44: 205.2096097 | G44: 219.0612583 | H44: 229.3217388 | I44: 396.4960536 | J44: 402.7424231 | K44: 415.8755371 | L44: 402.9863382 | M44: 396.1305392 | N44: 420.8941152 | O44: 507.2456202 | P44: 470.0576831 | Q44: 503.0489336 | R44: 478.0501182 | S44: 484.7342724 | T44: 394.7203411 | U44: 371.6131266 | V44: 329.2178456
B45: CitiPower | C45: Vic | D45: 163.4836557 | E45: 155.7882953 | F45: 153.5651912 | G45: 168.6138959 | H45: 141.4236227 | I45: 209.6757507 | J45: 207.336767 | K45: 228.8657691 | L45: 227.1675644 | M45: 229.971613 | N45: 208.9551818 | O45: 241.045977 | P45: 213.6486504 | Q45: 180.6048633 | R45: 141.3985012 | S45: 143.8173336 | T45: 150.2926284 | U45: 149.8602337 | V45: 141.2435913
B46: Jemena Electricity | C46: Vic | D46: 79.12317574 | E46: 68.17500876 | F46: 72.4651824 | G46: 64.10209002 | H46: 75.66960387 | I46: 129.791173 | J46: 123.9622107 | K46: 125.6132764 | L46: 132.80159 | M46: 120.0415978 | N46: 176.9091077 | O46: 217.5031026 | P46: 177.1695418 | Q46: 174.6511302 | R46: 152.8770912 | S46: 142.272641 | T46: 183.6744014 | U46: 170.6664902 | V46: 150.7552926
B47: Powercor Australia | C47: Vic | D47: 249.5006838 | E47: 273.7838209 | F47: 281.1371652 | G47: 276.348941 | H47: 280.1111172 | I47: 367.0785206 | J47: 365.5852905 | K47: 375.9095452 | L47: 396.4953467 | M47: 402.2331153 | N47: 442.9067274 | O47: 482.0957479 | P47: 516.5927898 | Q47: 479.4661392 | R47: 455.6826896 | S47: 462.9340365 | T47: 469.566471 | U47: 524.7369212 | V47: 436.2297623
B48: United Energy | C48: Vic | D48: 165.7067598 | E48: 155.2752713 | F48: 156.6433354 | G48: 168.1008719 | H48: 180.0714325 | I48: 238.1392738 | J48: 243.0042955 | K48: 206.2803365 | L48: 190.8719964 | M48: 192.904851 | N48: 271.3929973 | O48: 259.0823463 | P48: 225.4988357 | Q48: 211.4410118 | R48: 199.7714162 | S48: 202.9082967 | T48: 261.2201848 | U48: 213.5500559 | V48: 200.3555762
B49: Power and Water Corporation | C49: NT | D49: =D70 -> 36.0409449 | E49: =E70 -> 43.90093382 | F49: 67.71470213 | G49: 81.00334306 | H49: 113.9726391 | I49: 126.3729709 | J49: 102.3237411 | K49: 134.3795811 | L49: 117.0049583 | M49: 81.39353795 | N49: 50.4320286 | O49: 35.97485457 | P49: 45.87416856 | Q49: 56.14033421 | R49: 103.5566141 | S49: 81.85027885 | T49: 93.75863054 | U49: 63.90346845 | V49: 60.5224953
B50: DNSP Total | D50: =SUM(D36:D49) -> 4768.525098 | E50: =SUM(E36:E49) -> 5405.566769 | F50: 5720.147424 | G50: 5910.494298 | H50: 7709.24018 | I50: 9344.161162 | J50: 9570.681051 | K50: 9494.720088 | L50: 9422.982364 | M50: 7331.505001 | N50: 5739.382639 | O50: 5754.190418 | P50: 5400.612692 | Q50: 5139.777472 | R50: 5361.157384 | S50: 4736.912713 | T50: 4696.728865 | U50: 4623.239056 | V50: =SUM(V36:V49) -> 4351.375207
B52: Sources:
B53: Forecast capex has been sourced from post tax revenue models developed as part of final regulatory decisions made by the AER or jurisdictional regulators, and amended to take into account any updates made after the final decision.
B55: Actual Capex
B56: $m 2024 | C56: State | D56: 2006 | E56: 2007 | F56: 2008 | G56: 2009 | H56: 2010 | I56: 2011 | J56: 2012 | K56: 2013 | L56: 2014 | M56: 2015 | N56: 2016 | O56: 2017 | P56: 2018 | Q56: 2019 | R56: 2020 | S56: 2021 | T56: 2022 | U56: 2023 | V56: 2024
B57: Evoenergy | C57: ACT | D57: 38.67119917 | E57: 47.28884933 | F57: 55.3869364 | G57: 32.24125619 | H57: 93.52909547 | I57: 99.13476817 | J57: 91.21733383 | K57: 87.92558745 | L57: 108.0641293 | M57: 92.66220304 | N57: 75.51998046 | O57: 66.86180465 | P57: 85.86924323 | Q57: 81.15151692 | R57: 75.32335228 | S57: 58.55822821 | T57: 77.91890972 | U57: 98.16616657 | V57: 67.6517445
B58: Ausgrid | C58: NSW | D58: 866.3399371 | E58: 1126.69132 | F58: 1238.577874 | G58: 1704.878192 | H58: 1904.552668 | I58: 2146.314849 | J58: 2278.525209 | K58: 1632.957315 | L58: 871.3796046 | M58: 696.8039043 | N58: 383.9897779 | O58: 563.3338412 | P58: 731.9445764 | Q58: 1048.560468 | R58: 646.1117954 | S58: 431.7407033 | T58: 191.5650497 | U58: 686.8078474 | V58: 780.6997895
B59: Endeavour Energy | C59: NSW | D59: 519.8875793 | E59: 572.2457358 | F59: 543.6055022 | G59: 637.4359911 | H59: 590.986918 | I59: 691.9546376 | J59: 851.1721117 | K59: 750.9458355 | L59: 678.5393431 | M59: 470.9837574 | N59: 266.1244814 | O59: 237.2107828 | P59: 436.0568094 | Q59: 491.9790612 | R59: 389.3278606 | S59: 404.4339028 | T59: 345.4605966 | U59: 479.874808 | V59: 444.7847384
B60: Essential Energy | C60: NSW | D60: 562.60297 | E60: 688.5347151 | F60: 750.0455658 | G60: 828.3275702 | H60: 960.0833429 | I60: 978.1130922 | J60: 999.0528857 | K60: 848.7278162 | L60: 736.2880058 | M60: 597.9331579 | N60: 512.5263327 | O60: 498.9804424 | P60: 462.7277455 | Q60: 530.6125214 | R60: 553.4014377 | S60: 469.7532617 | T60: 483.141266 | U60: 517.193295 | V60: 586.7951138
B61: Energex | C61: Qld | D61: 1168.880796 | E61: 1125.867885 | F61: 1020.718609 | G61: 1209.495222 | H61: 1403.272903 | I61: 1346.855449 | J61: 1274.186519 | K61: 1186.703709 | L61: 986.671407 | M61: 935.6110107 | N61: 655.0218445 | O61: 632.259241 | P61: 588.9824892 | Q61: 558.0176548 | R61: 540.3235888 | S61: 436.2018232 | T61: 428.5003846 | U61: 443.5975636 | V61: 570.547746
B62: Ergon Energy | C62: Qld | D62: 976.5555673 | E62: 1103.641258 | F62: 962.097326 | G62: 1057.262747 | H62: 961.4333438 | I62: 1085.008554 | J62: 987.2899718 | K62: 1076.6638 | L62: 930.1090228 | M62: 913.014664 | N62: 765.9793622 | O62: 622.5263012 | P62: 595.5002903 | Q62: 647.5106079 | R62: 854.7643044 | S62: 654.9919735 | T62: 664.2521419 | U62: 764.8419408 | V62: 1032.931383
B63: SA Power Networks | C63: SA | D63: 232.8875124 | E63: 186.4005085 | F63: 175.0074016 | G63: 242.0828639 | H63: 220.4885769 | I63: 363.1111515 | J63: 429.644551 | K63: 431.4254044 | L63: 364.2432241 | M63: 394.365982 | N63: 310.5325477 | O63: 333.4658022 | P63: 446.4148096 | Q63: 441.4380552 | R63: 445.6905998 | S63: 363.7860808 | T63: 365.2840593 | U63: 395.8062619 | V63: 381.1141979
B64: TasNetworks (D) | C64: Tas | D64: 174.9121929 | E64: 135.6284971 | F64: 155.8768321 | G64: 186.5930164 | H64: 201.7527032 | I64: 188.161317 | J64: 119.2368442 | K64: 116.066131 | L64: 125.9910955 | M64: 111.131089 | N64: 129.0687711 | O64: 161.1004605 | P64: 186.9897527 | Q64: 112.7062318 | R64: 136.5923117 | S64: 155.7071247 | T64: 134.2901243 | U64: 138.005945 | V64: 168.1791417
B65: AusNet (D) | C65: Vic | D65: 191.799084 | E65: 202.0542267 | F65: 285.6748709 | G65: 345.4509384 | H65: 340.048246 | I65: 363.7452751 | J65: 410.4750864 | K65: 482.5975858 | L65: 498.1789917 | M65: 399.9606004 | N65: 366.4639297 | O65: 403.0760976 | P65: 434.5356047 | Q65: 405.2433068 | R65: 397.8317444 | S65: 465.012887 | T65: 376.2248293 | U65: 335.199022 | V65: 366.5671189
B66: CitiPower | C66: Vic | D66: 133.8156405 | E66: 114.3326065 | F66: 120.3761986 | G66: 140.7187528 | H66: 150.1188245 | I66: 187.1340951 | J66: 152.26438 | K66: 180.0888255 | L66: 194.3952233 | M66: 179.5681374 | N66: 154.9764567 | O66: 110.0316613 | P66: 123.0910735 | Q66: 126.0553318 | R66: 163.7742323 | S66: 159.5119354 | T66: 100.466192 | U66: 99.02664066 | V66: 91.21577379
B67: Jemena Electricity | C67: Vic | D67: 92.11564403 | E67: 95.72352682 | F67: 59.98482738 | G67: 106.2596523 | H67: 114.5703736 | I67: 161.7076281 | J67: 150.655004 | K67: 154.6379859 | L67: 159.5661799 | M67: 166.4941868 | N67: 142.1173508 | O67: 163.1946338 | P67: 151.9357972 | Q67: 116.3781062 | R67: 125.0434201 | S67: 167.1628275 | T67: 167.3815246 | U67: 162.9743095 | V67: 144.6242435
B68: Powercor Australia | C68: Vic | D68: 260.2211541 | E68: 255.0091441 | F68: 257.5662213 | G68: 243.4679204 | H68: 271.1076125 | I68: 323.0065958 | J68: 349.6696189 | K68: 384.7637871 | L68: 432.9316156 | M68: 392.8438253 | N68: 346.2605295 | O68: 407.6034997 | P68: 414.9964267 | Q68: 413.4569942 | R68: 470.345862 | S68: 542.6595329 | T68: 433.1531229 | U68: 428.6498759 | V68: 444.1281982
B69: United Energy | C69: Vic | D69: 139.7623795 | E69: 121.2121641 | F69: 121.4994669 | G69: 169.1733167 | H69: 184.2630884 | I69: 243.3920359 | J69: 253.0996109 | K69: 235.2557538 | L69: 261.8575009 | M69: 256.8888401 | N69: 215.3999978 | O69: 185.5123665 | P69: 156.2553913 | Q69: 167.1101257 | R69: 191.1582087 | S69: 202.5740572 | T69: 172.1331584 | U69: 205.1404643 | V69: 185.8134991
B70: Power and Water Corporation | C70: NT | D70: 36.0409449 | E70: 43.90093382 | F70: 67.71470213 | G70: 81.00334306 | H70: 113.9726391 | I70: 126.3729709 | J70: 102.3237411 | K70: 134.3795811 | L70: 117.0049583 | M70: 101.5102994 | N70: 86.59222901 | O70: 61.74089882 | P70: 52.25210223 | Q70: 47.08297973 | R70: 73.49930074 | S70: 49.55248133 | T70: 76.96642959 | U70: 100.94288 | V70: 147.115418
B71: DNSP Total | D71: =SUM(D57:D70) -> 5394.492601 | E71: =SUM(E57:E70) -> 5818.531371 | F71: 5814.132334 | G71: 6984.390783 | H71: 7510.180335 | I71: 8304.01242 | J71: 8448.812867 | K71: 7703.139118 | L71: 6465.220302 | M71: 5709.771658 | N71: 4410.573591 | O71: 4446.897833 | P71: 4867.552112 | Q71: 5187.302962 | R71: 5063.188019 | S71: 4561.646819 | T71: 4016.737789 | U71: 4856.227021 | V71: 5412.168106
B73: Sources: Actual capex has been taken from roll forward models developed as part of final regulatory decisions made by the AER or jurisdictional regulators, and updated to reflect any decisions of the Australian Competition Tribunal, where applicable. The latest available roll forward model has been used, and if no roll forward model data is available, annual RIN responses are used. For actual capex for Year 5 of a regulatory period, annual RIN is applied regardless of the availability of roll forward model data.
B75: Note:
B76: Capital contributions have been removed from both forecast and actual capex. Power and Water Corporation (NT) 2006-2014: Capex forecasts are not available for this period. To ensure the aggregate forecast capex data is comparable with the aggregate actual capex data, the forecast capex for PWC has been assumed to match the actual capex in the years 2006 to 2014.

Sheet 4. Opex
B4: Operating expenditure
B6: Operating expenditure (opex) includes network operation, maintenance and other non-capital costs incurred by the distribution businesses.
C19: Circuit length
B30: Forecast Opex
B31: $m 2024 | C31: State | D31: 2006 | E31: 2007 | F31: 2008 | G31: 2009 | H31: 2010 | I31: 2011 | J31: 2012 | K31: 2013 | L31: 2014 | M31: 2015 | N31: 2016 | O31: 2017 | P31: 2018 | Q31: 2019 | R31: 2020 | S31: 2021 | T31: 2022 | U31: 2023 | V31: 2024
B32: Evoenergy | C32: ACT | D32: 66.30962647 | E32: 65.88377514 | F32: 67.66460795 | G32: 69.63197068 | H32: 89.43082589 | I32: 96.04885955 | J32: 102.6086994 | K32: 109.6305746 | L32: 113.1440815 | M32: 80.89845841 | N32: 61.44050536 | O32: 63.85405571 | P32: 64.5065904 | Q32: 66.31524184 | R32: 69.11592434 | S32: 69.83380251 | T32: 70.57283391 | U32: 71.31023621 | V32: 71.97614671
B33: Ausgrid | C33: NSW | D33: 531.5472305 | E33: 546.3829406 | F33: 554.9106268 | G33: 557.9329736 | H33: 746.2701671 | I33: 761.8045938 | J33: 777.9537634 | K33: 792.2937262 | L33: 794.3620582 | M33: 563.128187 | N33: 528.2136211 | O33: 537.683604 | P33: 528.9099077 | Q33: 536.963981 | R33: 568.0555626 | S33: 551.9863109 | T33: 554.0820125 | U33: 556.1764729 | V33: 558.1594761
B34: Endeavour Energy | C34: NSW | D34: 349.2590054 | E34: 353.8382524 | F34: 357.5145833 | G34: 359.444169 | H34: 437.5010622 | I34: 441.0135749 | J34: 447.591505 | K34: 453.1648031 | L34: 451.4090557 | M34: 311.6332483 | N34: 316.5987234 | O34: 321.7138914 | P34: 327.2114338 | Q34: 333.4690801 | R34: 331.1354774 | S34: 335.6970137 | T34: 342.5250907 | U34: 349.339319 | V34: 355.978358
B35: Essential Energy | C35: NSW | D35: 392.7737765 | E35: 464.9250751 | F35: 469.8740547 | G35: 476.6108066 | H35: 582.2401006 | I35: 594.1736934 | J35: 605.6167297 | K35: 615.563932 | L35: 622.3974673 | M35: 417.618969 | N35: 422.0968837 | O35: 426.5302912 | P35: 431.1852189 | Q35: 436.0364256 | R35: 461.1667438 | S35: 439.7467506 | T35: 426.3476595 | U35: 404.3014067 | V35: 366.2850218
B36: Energex | C36: Qld | D36: 357.9265498 | E36: 417.1994958 | F36: 467.8194707 | G36: 480.2369446 | H36: 477.8077178 | I36: 455.0765083 | J36: 457.5797934 | K36: 470.3737822 | L36: 481.8606792 | M36: 476.3784218 | N36: 437.3344712 | O36: 433.2526287 | P36: 439.3152009 | Q36: 453.2439871 | R36: 456.0210911 | S36: 427.6318139 | T36: 442.1495509 | U36: 423.1325289 | V36: 420.9908513
B37: Ergon Energy | C37: Qld | D37: 444.1379618 | E37: 439.8130318 | F37: 438.5624629 | G37: 391.3296982 | H37: 394.1557325 | I37: 506.2152156 | J37: 530.730143 | K37: 529.1643178 | L37: 524.4553156 | M37: 507.3384422 | N37: 433.0712727 | O37: 440.5441324 | P37: 447.8950047 | Q37: 457.1483325 | R37: 465.7477384 | S37: 441.3640614 | T37: 435.209482 | U37: 429.8560778 | V37: 424.0601601
B38: SA Power Networks | C38: SA | D38: 208.384217 | E38: 218.4673243 | F38: 222.2705114 | G38: 221.1961936 | H38: 222.7038068 | I38: 276.6634538 | J38: 273.4319196 | K38: 300.3421455 | L38: 306.8648325 | M38: 309.7352831 | N38: 310.8183116 | O38: 322.0067729 | P38: 321.8744895 | Q38: 326.0576878 | R38: 330.0036679 | S38: 325.5301032 | T38: 329.2144355 | U38: 344.1377829 | V38: 336.553794
B39: TasNetworks (D) | C39: Tas | D39: 54.95522129 | E39: 53.69133907 | F39: 97.02049738 | G39: 104.6785406 | H39: 108.2482546 | I39: 112.0660072 | J39: 111.857035 | K39: 99.74824775 | L39: 98.36924879 | M39: 99.45036107 | N39: 99.25625691 | O39: 98.44845038 | P39: 82.45070448 | Q39: 80.64984862 | R39: 108.2302171 | S39: 107.7326905 | T39: 106.7001511 | U39: 105.6672357 | V39: 104.649967
B40: AusNet (D) | C40: Vic | D40: 182.4655446 | E40: 187.0827608 | F40: 192.041993 | G40: 196.8302173 | H40: 202.3024735 | I40: 224.4182555 | J40: 234.0028743 | K40: 242.132167 | L40: 254.376946 | M40: 257.8585968 | N40: 284.9686804 | O40: 290.2690814 | P40: 297.2828536 | Q40: 303.0911874 | R40: 310.1152921 | S40: 317.3214353 | T40: 283.9587602 | U40: 282.6560895 | V40: 288.7137553
B41: CitiPower | C41: Vic | D41: 58.14272274 | E41: 60.05288219 | F41: 60.36582684 | G41: 61.5628829 | H41: 62.75993896 | I41: 61.80565454 | J41: 67.06213577 | K41: 70.49478216 | L41: 67.41162316 | M41: 68.48524109 | N41: 104.4259529 | O41: 105.9138082 | P41: 109.885278 | Q41: 111.7418264 | R41: 114.2996734 | S41: 116.8256521 | T41: 108.4256951 | U41: 108.2686753 | V41: 109.370329
B42: Jemena Electricity | C42: Vic | D42: 85.62248934 | E42: 86.98370252 | F42: 88.73823717 | G42: 90.69158688 | H42: 92.79289949 | I42: 82.2807712 | J42: 80.72741145 | K42: 81.03984058 | L42: 88.09995756 | M42: 86.71989411 | N42: 114.4868047 | O42: 112.2613547 | P42: 113.5824491 | Q42: 115.8595333 | R42: 116.4551764 | S42: 133.0994223 | T42: 115.4135423 | U42: 117.6397496 | V42: 120.5143394
B43: Powercor Australia | C43: Vic | D43: 194.9491292 | E43: 199.3953374 | F43: 203.3285216 | G43: 207.7747298 | H43: 213.075978 | I43: 210.8893498 | J43: 232.4728102 | K43: 245.6543012 | L43: 232.4753635 | M43: 235.6624676 | N43: 287.6566225 | O43: 295.1943293 | P43: 307.7746692 | Q43: 311.1051658 | R43: 318.030518 | S43: 326.2713812 | T43: 316.6456415 | U43: 323.7520851 | V43: 331.9660724
B44: United Energy | C44: Vic | D44: 138.1744705 | E44: 141.0816066 | F44: 143.9887428 | G44: 147.0668869 | H44: 146.7248709 | I44: 149.5540307 | J44: 152.6084028 | K44: 153.4176102 | L44: 159.3993267 | M44: 161.5311538 | N44: 177.5636258 | O44: 181.3669729 | P44: 185.3059815 | Q44: 186.4602498 | R44: 188.8925319 | S44: 192.179964 | T44: 166.2954699 | U44: 165.8193203 | V44: 169.1661756
B45: Power and Water Corporation | C45: NT | D45: =D66 -> 57.5842308 | E45: =E66 -> 59.56635629 | F45: 73.49355414 | G45: 109.6323925 | H45: 99.58800822 | I45: 115.0097907 | J45: 128.4880632 | K45: 124.5152817 | L45: 107.9323363 | M45: 127.83304 | N45: 119.826369 | O45: 115.2124543 | P45: 105.974896 | Q45: 96.6462996 | R45: 80.35058659 | S45: 79.74887044 | T45: 79.39248296 | U45: 78.90060506 | V45: 78.40228577
B46: DNSP Total | D46: =SUM(D32:D45) -> 3122.232176 | E46: =SUM(E32:E45) -> 3294.36388 | F46: 3437.593691 | G46: 3474.619993 | H46: 3875.601837 | I46: 4087.019759 | J46: 4202.731286 | K46: 4287.535512 | L46: 4302.558292 | M46: 3704.271764 | N46: 3697.758101 | O46: 3744.251828 | P46: 3763.154678 | Q46: 3814.788847 | R46: 3917.620201 | S46: 3864.969272 | T46: 3776.932808 | U46: 3760.957585 | V46: 3736.786732
B48: Sources:
B49: Forecast opex is sourced from post tax revenue models developed as part of final regulatory decisions made by the AER or jurisdictional regulators, and amended to take into account any updates made after the final decision.
B51: Actual Opex
B52: $m 2024 | C52: State | D52: 2006 | E52: 2007 | F52: 2008 | G52: 2009 | H52: 2010 | I52: 2011 | J52: 2012 | K52: 2013 | L52: 2014 | M52: 2015 | N52: 2016 | O52: 2017 | P52: 2018 | Q52: 2019 | R52: 2020 | S52: 2021 | T52: 2022 | U52: 2023 | V52: 2024
B53: Evoenergy | C53: ACT | D53: 55.8301291 | E53: 56.27500228 | F53: 60.4508992 | G53: 61.68188821 | H53: 69.22663924 | I53: 77.76675657 | J53: 84.26983801 | K53: 92.39195139 | L53: 104.5677371 | M53: 94.90400723 | N53: 51.29318962 | O53: 58.50511107 | P53: 68.54945289 | Q53: 66.25495941 | R53: 62.97432872 | S53: 64.07395952 | T53: 68.29569184 | U53: 63.27932058 | V53: 54.06905112
B54: Ausgrid | C54: NSW | D54: 638.5793841 | E54: 558.1180956 | F54: 784.456302 | G54: 718.3781373 | H54: 786.9608858 | I54: 763.2926543 | J54: 842.1843446 | K54: 679.5766792 | L54: 758.8041909 | M54: 839.3964791 | N54: 745.9362099 | O54: 662.4282707 | P54: 571.135791 | Q54: 536.7546913 | R54: 476.9321851 | S54: 450.6056737 | T54: 395.1032427 | U54: 423.4001978 | V54: 430.1561901
B55: Endeavour Energy | C55: NSW | D55: 277.1315576 | E55: 303.099232 | F55: 373.6645953 | G55: 347.250674 | H55: 331.0711392 | I55: 347.2553327 | J55: 354.0952809 | K55: 322.2038853 | L55: 366.0675819 | M55: 349.4797045 | N55: 394.31554 | O55: 380.4961527 | P55: 315.838029 | Q55: 299.7821913 | R55: 268.0422108 | S55: 285.5483285 | T55: 280.1450186 | U55: 270.5565435 | V55: 271.0446354
B56: Essential Energy | C56: NSW | D56: 399.495394 | E56: 474.3347204 | F56: 538.9399009 | G56: 509.2575867 | H56: 536.1545028 | I56: 553.5946149 | J56: 668.850833 | K56: 622.1699879 | L56: 601.9753871 | M56: 504.7024301 | N56: 396.9910465 | O56: 401.5232403 | P56: 423.9324332 | Q56: 483.7912459 | R56: 466.4749177 | S56: 449.73177 | T56: 411.9236596 | U56: 434.0251873 | V56: 466.44025
B57: Energex | C57: Qld | D57: 334.2234419 | E57: 389.2110645 | F57: 412.2099869 | G57: 424.5111135 | H57: 428.3543607 | I57: 471.3279968 | J57: 510.0427514 | K57: 545.9019997 | L57: 497.8100563 | M57: 507.3864079 | N57: 441.404028 | O57: 443.8073614 | P57: 446.1910322 | Q57: 421.9903695 | R57: 400.7549122 | S57: 449.3729806 | T57: 471.1492396 | U57: 499.0817044 | V57: 555.0454493
B58: Ergon Energy | C58: Qld | D58: 450.4464609 | E58: 421.0731694 | F58: 454.731599 | G58: 445.4022403 | H58: 443.6757398 | I58: 538.2622538 | J58: 563.6790947 | K58: 466.940875 | L58: 464.4849846 | M58: 500.2922966 | N58: 499.0667829 | O58: 443.0540955 | P58: 471.7954511 | Q58: 471.3564695 | R58: 476.2326958 | S58: 431.7135298 | T58: 434.1617357 | U58: 482.3406662 | V58: 596.7593733
B59: SA Power Networks | C59: SA | D59: 184.9629986 | E59: 175.280075 | F59: 197.4902044 | G59: 219.032933 | H59: 217.1348078 | I59: 272.7210293 | J59: 284.378094 | K59: 303.9348186 | L59: 310.7604716 | M59: 322.3971928 | N59: 271.4700032 | O59: 312.477921 | P59: 307.8972647 | Q59: 318.2336559 | R59: 284.040733 | S59: 290.7470528 | T59: 310.5369433 | U59: 353.7139913 | V59: 353.7941227
B60: TasNetworks (D) | C60: Tas | D60: 79.84871006 | E60: 81.26041788 | F60: 82.50462739 | G60: 92.8654839 | H60: 109.4655794 | I60: 105.967194 | J60: 116.5177477 | K60: 95.61871302 | L60: 97.58345079 | M60: 82.66228142 | N60: 88.98527382 | O60: 117.0702356 | P60: 105.9143682 | Q60: 94.35191577 | R60: 97.71837572 | S60: 104.9234657 | T60: 104.3190695 | U60: 92.60096174 | V60: 99.33001945
B61: AusNet (D) | C61: Vic | D61: 132.9101627 | E61: 163.5580781 | F61: 177.5771419 | G61: 204.345518 | H61: 200.2875232 | I61: 202.5302484 | J61: 215.2672254 | K61: 245.3233439 | L61: 248.6915323 | M61: 263.2411437 | N61: 291.3310574 | O61: 257.5229841 | P61: 238.8738541 | Q61: 245.7500481 | R61: 256.7531192 | S61: 258.7765257 | T61: 256.8100982 | U61: 238.6910314 | V61: 277.2739029
B62: CitiPower | C62: Vic | D62: 44.13057211 | E62: 50.86544123 | F62: 48.83391357 | G62: 57.18817887 | H62: 63.66538492 | I62: 58.32854389 | J62: 74.42120408 | K62: 72.47850024 | L62: 74.07236415 | M62: 71.45773343 | N62: 94.30018818 | O62: 92.80698206 | P62: 85.44829007 | Q62: 93.71008898 | R62: 90.45643581 | S62: 82.33476443 | T62: 84.83910053 | U62: 88.39527819 | V62: 92.881066
B63: Jemena Electricity | C63: Vic | D63: 84.93896624 | E63: 92.13203338 | F63: 78.99385559 | G63: 74.00716457 | H63: 88.06745289 | I63: 87.29799004 | J63: 99.90599886 | K63: 96.50965661 | L63: 94.09253835 | M63: 95.70554091 | N63: 104.0067492 | O63: 108.7521656 | P63: 99.56497699 | Q63: 104.6151133 | R63: 88.80662029 | S63: 82.33898503 | T63: 91.6629108 | U63: 93.88513397 | V63: 93.33059066
B64: Powercor Australia | C64: Vic | D64: 192.3285592 | E64: 170.1495232 | F64: 175.617054 | G64: 192.2433242 | H64: 187.1650394 | I64: 195.7883448 | J64: 233.0200466 | K64: 250.2381312 | L64: 228.2545393 | M64: 243.9072564 | N64: 248.3131614 | O64: 265.7327071 | P64: 275.2340888 | Q64: 269.6909873 | R64: 257.5263151 | S64: 260.0927422 | T64: 268.9425477 | U64: 296.2378031 | V64: 305.4625901
B65: United Energy | C65: Vic | D65: 133.9713386 | E65: 127.4422707 | F65: 129.2008773 | G65: 130.6422279 | H65: 138.237817 | I65: 170.0666789 | J65: 171.6419402 | K65: 154.3930516 | L65: 158.418157 | M65: 150.1625657 | N65: 174.3663782 | O65: 165.1273134 | P65: 133.8366926 | Q65: 134.1679587 | R65: 140.9924635 | S65: 140.9879675 | T65: 147.2319359 | U65: 145.8227993 | V65: 153.9145313
B66: Power and Water | C66: NT | D66: 57.5842308 | E66: 59.56635629 | F66: 73.49355414 | G66: 109.6323925 | H66: 99.58800822 | I66: 115.0097907 | J66: 128.4880632 | K66: 124.5152817 | L66: 107.9323363 | M66: 96.08637279 | N66: 103.6817887 | O66: 89.85121079 | P66: 105.0988973 | Q66: 107.2442545 | R66: 104.8111507 | S66: 92.16704778 | T66: 73.33525004 | U66: 70.75774349 | V66: 69.55894638
B67: DNSP Total | D67: =SUM(D53:D66) -> 3066.381906 | E67: =SUM(E53:E66) -> 3122.36548 | F67: 3588.164512 | G67: 3586.438863 | H67: 3699.05488 | I67: =SUM(I53:I66) -> 3959.209429 | J67: 4346.762463 | K67: 4072.196875 | L67: 4113.515328 | M67: 4121.781413 | N67: 3905.461397 | O67: 3799.155751 | P67: 3649.310622 | Q67: 3647.693949 | R67: 3472.516464 | S67: 3443.414793 | T67: 3398.456444 | U67: 3552.788362 | V67: 3819.060719
B69: Sources:
B70: Economic benchmarking RIN responses 2006 to 2024
B72: Note:
B73: Power and Water Corporation (NT) 2006-2014: Opex forecasts are not available for this period. Power and Water Corporation (NT) 2015-2019: Intra-period differences in service classifications between forecasts and actual data mean comparisons would be misleading. To ensure aggregate forecast opex data is comparable with aggregate actual opex data, the forecast opex for PWC has been assumed to match the actual opex. Only some networks have operating expenditure for metering services. Those which recorded no opex for metering across the span of the report were: Evoenergy, Citipower, Power and Water Corporation, Powercor Australia, SA Power Networks, TasNetworks (D) and United Energy.

Sheet 5. Incentive Schemes
B4: Incentive Schemes
B6: Incentive schemes incentivise distribution network service providers to outperform their revenue allowance to keep a share of profits or losses incurred. These schemes are targeted at improving efficiency, reliability and other factors to deliver better outcomes for consumers.
B31: Incentive Schemes
B32: $m 2024 | C32: State | D32: 2014 | E32: 2015 | F32: 2016 | G32: 2017 | H32: 2018 | I32: 2019 | J32: 2020 | K32: 2021 | L32: 2022 | M32: 2023 | N32: 2024
B33: Evoenergy | C33: ACT | D33: =SUM(D51,D69,D105,D123,D87,D141) -> 0 | E33: 0.1305756032 | F33: 0.1305756032 | G33: 0.1305756032 | H33: 0.1305756032 | I33: -0.9691311103 | J33: 1.656273047 | K33: -1.440977245 | L33: 0.1197879935 | M33: -1.227938231 | N33: -4.728250609
B34: Ausgrid | C34: NSW | D34: 4.852726372 | E34: 112.1374974 | F34: 104.2353202 | G34: 79.49516914 | H34: 68.86852802 | I34: 5.896100126 | J34: 38.92369785 | K34: 35.65632146 | L34: -0.5017790712 | M34: 33.40613816 | N34: 27.09870169
B35: Endeavour Energy | C35: NSW | D35: 9.544875743 | E35: 113.1739277 | F35: 25.34996837 | G35: 33.91398603 | H35: -29.40031282 | I35: 0.7834536194 | J35: 48.10570246 | K35: 128.746444 | L35: 114.072505 | M35: 112.2794881 | N35: 30.72889058
B36: Essential Energy | C36: NSW | D36: 0.792992421 | E36: 0.7738859212 | F36: 0.7966624251 | G36: 0.797571927 | H36: 4.587314047 | I36: -11.73759005 | J36: 1.103995962 | K36: -1.783452343 | L36: -4.207166264 | M36: 34.00900485 | N36: 28.03754832
B37: Energex | C37: Qld | D37: 0.438955105 | E37: 44.41253287 | F37: 18.36896239 | G37: 82.28510889 | H37: 35.42708831 | I37: 34.63605157 | J37: 33.19609944 | K37: 14.77267817 | L37: 97.62639615 | M37: 80.69451445 | N37: 64.53622106
B38: Ergon Energy | C38: Qld | D38: 2.422889379 | E38: 40.4567234 | F38: 74.91082825 | G38: 88.35113884 | H38: 118.6750757 | I38: 14.4415382 | J38: 31.99582397 | K38: 87.30556868 | L38: 36.30128673 | M38: 106.5925305 | N38: 0.693780734
B39: SA Power Networks | C39: SA | D39: 25.96140407 | E39: 18.24991925 | F39: 0.8948249478 | G39: 15.809525 | H39: 32.05008743 | I39: 34.71845491 | J39: 42.52015457 | K39: 56.97252635 | L39: 68.37066386 | M39: 41.06187336 | N39: 37.29195304
B40: TasNetworks (D) | C40: Tas | D40: 0 | E40: 0 | F40: -3.255971846 | G40: 10.37547227 | H40: 17.79578919 | I40: 17.47322621 | J40: -22.80156564 | K40: -23.96918997 | L40: -19.97293488 | M40: 0.6559772876 | N40: -12.53662633
B41: AusNet (D) | C41: Vic | D41: 35.7059002 | E41: 22.18107029 | F41: 29.70287102 | G41: 57.44887453 | H41: 3.63433859 | I41: 16.3748164 | J41: 9.501443838 | K41: 9.702640604 | L41: 53.91069464 | M41: 46.90184067 | N41: 66.09678613
B42: CitiPower | C42: Vic | D42: -8.903145597 | E42: -7.636413704 | F42: -4.663941528 | G42: -2.713002101 | H42: 3.452011077 | I42: -0.09474409054 | J42: 4.77799467 | K42: 4.799882208 | L42: 19.23717486 | M42: 23.05154363 | N42: 24.23899869
B43: Jemena Electricity | C43: Vic | D43: 27.92147222 | E43: 20.08828494 | F43: 19.15168975 | G43: 12.30770792 | H43: -4.047757783 | I43: 9.829474529 | J43: 8.923925108 | K43: 9.040678244 | L43: 16.94666997 | M43: 21.71463612 | N43: 16.76163134
B44: Powercor Australia | C44: Vic | D44: 20.1266467 | E44: 4.860596182 | F44: -7.181172687 | G44: 34.3572236 | H44: 24.17697038 | I44: 27.41505751 | J44: 26.24130976 | K44: 26.30320921 | L44: 37.64961436 | M44: 36.44560692 | N44: 30.37834145
B45: United Energy | C45: Vic | D45: -24.30491212 | E45: -29.76431873 | F45: -16.2224966 | G45: 10.41022562 | H45: 22.3406987 | I45: 30.60731195 | J45: 32.81289789 | K45: 32.84932514 | L45: 30.3808177 | M45: 51.77798661 | N45: 60.2120169
B46: Power and Water Corporation | C46: NT | D46: 0 | E46: 0 | F46: 0 | G46: 0 | H46: 0 | I46: 0 | J46: 0.3663340311 | K46: 0.3711836163 | L46: 0.3740647322 | M46: 0.3778009607 | N46: 0.3796441591
B47: DNSP Total | D47: =SUM(D33:D46) -> 94.55980449 | E47: 339.0642811 | F47: 242.2181203 | G47: 422.9695773 | H47: 297.6904065 | I47: 179.3740198 | J47: 257.3240869 | K47: 379.3268381 | L47: 450.3077958 | M47: 587.7410035 | N47: 369.1896372
B49: Efficiency Benefit Sharing Scheme
B50: $m 2024 | C50: State | D50: 2014 | E50: 2015 | F50: 2016 | G50: 2017 | H50: 2018 | I50: 2019 | J50: 2020 | K50: 2021 | L50: 2022 | M50: 2023 | N50: 2024
B51: Evoenergy | C51: ACT | D51: 0 | E51: 0 | F51: 0 | G51: 0 | H51: 0 | I51: 0 | J51: 0 | K51: 0 | L51: 0 | M51: 0 | N51: 0
B52: Ausgrid | C52: NSW | D52: 0 | E52: 110.81699 | F52: 99.57176382 | G52: 78.18110236 | H52: 54.28689805 | I52: 0 | J52: 0 | K52: 0 | L52: 0 | M52: 0 | N52: 0
B53: Endeavour Energy | C53: NSW | D53: 0 | E53: 103.4653308 | F53: 15.90174971 | G53: 33.13053241 | H53: -30.18376644 | I53: 0 | J53: 27.27994137 | K53: 82.5178011 | L53: 92.91253921 | M53: 74.01880937 | N53: 0
B54: Essential Energy | C54: NSW | D54: 0 | E54: 0 | F54: 0 | G54: 0 | H54: 0 | I54: 0 | J54: 0 | K54: 0 | L54: 0 | M54: 0 | N54: 0
B55: Energex | C55: Qld | D55: 0 | E55: 0 | F55: 0 | G55: 0 | H55: 0 | I55: 0 | J55: 0 | K55: -43.39796145 | L55: 43.16922133 | M55: 39.40162957 | N55: 36.64998697
B56: Ergon Energy | C56: Qld | D56: 0 | E56: 0 | F56: 44.82513997 | G56: 60.99407917 | H56: 85.24694312 | I56: -18.27912348 | J56: 0 | K56: 43.54306228 | L56: 23.57332884 | M56: 43.6390369 | N56: 4.587736152
B57: SA Power Networks | C57: SA | D57: 0.5250031157 | E57: 0 | F57: 0.128783672 | G57: -5.672412659 | H57: -2.444240747 | I57: 6.436159986 | J57: 0 | K57: 0 | L57: 0 | M57: 0 | N57: 2.442972809
B58: TasNetworks (D) | C58: Tas | D58: 0 | E58: 0 | F58: 0 | G58: 0 | H58: 14.84948031 | I58: 14.93744335 | J58: -22.35555631 | K58: -22.59279383 | L58: -22.15309635 | M58: 4.844459745 | N58: 0
B59: AusNet (D) | C59: Vic | D59: -5.910107908 | E59: -6.43974801 | F59: 6.432725981 | G59: 6.486330551 | H59: 6.559791158 | I59: 6.723054855 | J59: 6.945148252 | K59: 7.068219174 | L59: 25.11374393 | M59: 24.49877728 | N59: 24.15434155
B60: CitiPower | C60: Vic | D60: -3.994651251 | E60: -4.010781455 | F60: -0.8212925809 | G60: -0.8176739109 | H60: -0.8170967965 | I60: -0.8190439314 | J60: -0.815595062 | K60: -0.8153374635 | L60: 0.1765497864 | M60: 0.1707467319 | N60: 0.1702926899
B61: Jemena Electricity | C61: Vic | D61: 14.30279876 | E61: 15.31689238 | F61: 6.279967126 | G61: 6.282296643 | H61: 6.456913127 | I61: 6.25325535 | J61: 6.475306534 | K61: 6.545065045 | L61: 6.04324005 | M61: 5.617835605 | N61: 5.945483586
B62: Powercor Australia | C62: Vic | D62: -0.5264672166 | E62: -0.5284380683 | F62: 5.671105402 | G62: 5.646116338 | H62: 5.64213339 | I62: 5.655578551 | J62: 5.631765293 | K62: 5.62998538 | L62: -2.716060297 | M62: -2.626797995 | N62: -2.619799577
B63: United Energy | C63: Vic | D63: 0 | E63: 0 | F63: 0 | G63: 9.446994509 | H63: 9.440329423 | I63: 9.462825647 | J63: 9.422980714 | K63: 9.42000455 | L63: 16.6713102 | M63: 16.22045115 | N63: 16.17723635
B64: Power and Water Corporation | C64: NT | D64: 0 | E64: 0 | F64: 0 | G64: 0 | H64: 0 | I64: 0 | J64: 0 | K64: 0 | L64: 0 | M64: 0 | N64: 0
B65: DNSP Total | D65: =SUM(D51:D64) -> 4.396575498 | E65: 218.6202456 | F65: 177.9899431 | G65: 193.6773654 | H65: 149.0373846 | I65: 30.37015033 | J65: 32.58399079 | K65: 87.91804479 | L65: 182.7907767 | M65: 205.7849484 | N65: =SUM(N51:N64) -> 87.50825053
B67: Service Target Performance Incentive Scheme
B68: $m 2024 | C68: State | D68: 2014 | E68: 2015 | F68: 2016 | G68: 2017 | H68: 2018 | I68: 2019 | J68: 2020 | K68: 2021 | L68: 2022 | M68: 2023 | N68: 2024
B69: Evoenergy | C69: ACT | D69: 0 | E69: 0 | F69: 0 | G69: 0 | H69: 0 | I69: -1.099706714 | J69: 1.538550657 | K69: -1.561217943 | L69: 0 | M69: -1.350464888 | N69: -4.85189114
B70: Ausgrid | C70: NSW | D70: 0 | E70: 0 | F70: 0 | G70: 0 | H70: 13.26321302 | I70: 4.571345556 | J70: 16.22957154 | K70: 12.84449254 | L70: -23.03436663 | M70: 11.32076487 | N70: 4.637007754
B71: Endeavour Energy | C71: NSW | D71: 0 | E71: 0 | F71: 0 | G71: 0 | H71: 0 | I71: 0 | J71: 3.129779389 | K71: 43.53888239 | L71: 18.47504612 | M71: 35.6184533 | N71: 28.12299456
B72: Essential Energy | C72: NSW | D72: 0 | E72: 0 | F72: 0 | G72: 0 | H72: 3.792373951 | I72: -12.53267583 | J72: 0 | K72: -19.30006098 | L72: -21.81023092 | M72: 16.76756873 | N72: 10.51845527
B73: Energex | C73: Qld | D73: 0.438955105 | E73: 44.41253287 | F73: 17.09222693 | G73: 81.00837343 | H73: 34.15035285 | I73: 33.35931611 | J73: 31.91936398 | K73: 32.68573843 | L73: 30.35164656 | M73: 17.91547005 | N73: 4.10314266
B74: Ergon Energy | C74: Qld | D74: 2.422889379 | E74: 40.4567234 | F74: 28.80895281 | G74: 26.08032422 | H74: 32.15139713 | I74: 31.44392622 | J74: 30.71908851 | K74: 30.85290364 | L74: 0 | M74: 50.75491484 | N74: -16.66905463
B75: SA Power Networks | C75: SA | D75: 25.43640095 | E75: 18.24991925 | F75: 0 | G75: 20.71589639 | H75: 33.7282869 | I75: 27.51625364 | J75: 41.75411329 | K75: 38.19283259 | L75: 49.61205075 | M75: 22.27194241 | N75: 16.0566422
B76: TasNetworks (D) | C76: Tas | D76: 0 | E76: 0 | F76: -3.255971846 | G76: 10.37547227 | H76: 2.427452569 | I76: 2.016926556 | J76: 1.981024657 | K76: 1.077635757 | L76: 4.574058665 | M76: -1.911280523 | N76: -10.13837525
B77: AusNet (D) | C77: Vic | D77: 49.03327127 | E77: 37.10937376 | F77: 24.02750708 | G77: 49.88388353 | H77: -0.6293067851 | I77: 11.13425233 | J77: 5.618943439 | K77: 5.696209913 | L77: -6.557534745 | M77: 4.104578415 | N77: 22.78377786
B78: CitiPower | C78: Vic | D78: -0.8943443088 | E78: 0.5002156022 | F78: -4.520980632 | G78: -3.076224465 | H78: 3.427070819 | I78: 0 | J78: 4.880172369 | K78: 4.878632181 | L78: 2.67229982 | M78: 6.533562227 | N78: 7.700956064
B79: Jemena Electricity | C79: Vic | D79: 13.57813288 | E79: 6.333665391 | F79: 12.3988176 | G79: 4.632073524 | H79: -12.63698217 | I79: 2.135002247 | J79: 0.9781514028 | K79: 0.9886886744 | L79: 0 | M79: 5.271971171 | N79: 0
B80: Powercor Australia | C80: Vic | D80: 27.21640522 | E80: 18.26951133 | F80: -9.280186585 | G80: 28.65266247 | H80: 18.10166414 | I80: 17.92417678 | J80: 21.14195554 | K80: 21.13527922 | L80: 22.21189085 | M80: 23.51390256 | N80: 16.57380868
B81: United Energy | C81: Vic | D81: -16.59420288 | E81: -14.23814061 | F81: -13.86263138 | G81: -0.9513894481 | H81: 10.45829663 | I81: 19.64941544 | J81: 22.16007373 | K81: 22.15307467 | L81: 0 | M81: 21.78317321 | N81: 30.19909364
B82: Power and Water Corporation | C82: NT | D82: 0 | E82: 0 | F82: 0 | G82: 0 | H82: 0 | I82: 0 | J82: 0 | K82: 0 | L82: 0 | M82: 0 | N82: 0
B83: DNSP Total | D83: =SUM(D69:D82) -> 100.6375076 | E83: 151.093801 | F83: 51.40773398 | G83: 217.3210719 | H83: 138.2338191 | I83: 136.1182323 | J83: 182.0507885 | K83: 193.1830911 | L83: 76.49486046 | M83: 212.5945564 | N83: =SUM(N69:N82) -> 109.0365577
B85: S Factor True up
B86: $m 2024 | C86: State | D86: 2014 | E86: 2015 | F86: 2016 | G86: 2017 | H86: 2018 | I86: 2019 | J86: 2020 | K86: 2021 | L86: 2022 | M86: 2023 | N86: 2024
B87: Evoenergy | C87: ACT | D87: 0 | E87: 0 | F87: 0 | G87: 0 | H87: 0 | I87: 0 | J87: 0 | K87: 0 | L87: 0 | M87: 0 | N87: 0
B88: Ausgrid | C88: NSW | D88: 0 | E88: 0 | F88: 0 | G88: 0 | H88: 0 | I88: 0 | J88: 0 | K88: 0 | L88: 0 | M88: 0 | N88: 0
B89: Endeavour Energy | C89: NSW | D89: 0 | E89: 0 | F89: 0 | G89: 0 | H89: 0 | I89: 0 | J89: 15.06204368 | K89: 0 | L89: 0 | M89: 0 | N89: 0
B90: Essential Energy | C90: NSW | D90: 0 | E90: 0 | F90: 0 | G90: 0 | H90: 0 | I90: 0 | J90: 0 | K90: 0 | L90: 0 | M90: 0 | N90: 0
B91: Energex | C91: Qld | D91: 0 | E91: 0 | F91: 0 | G91: 0 | H91: 0 | I91: 0 | J91: 0 | K91: 0 | L91: 0 | M91: 0 | N91: 0
B92: Ergon Energy | C92: Qld | D92: 0 | E92: 0 | F92: 0 | G92: 0 | H92: 0 | I92: 0 | J92: 0 | K92: 0 | L92: 0 | M92: 0 | N92: 0
B93: SA Power Networks | C93: SA | D93: 0 | E93: 0 | F93: 0 | G93: 0 | H93: 0 | I93: 0 | J93: 0 | K93: 0 | L93: 0 | M93: 0 | N93: 0
B94: TasNetworks (D) | C94: Tas | D94: 0 | E94: 0 | F94: 0 | G94: 0 | H94: 0 | I94: 0 | J94: 0 | K94: 0 | L94: 0 | M94: 0 | N94: 0
B95: AusNet (D) | C95: Vic | D95: -10.08662014 | E95: -10.99054247 | F95: -3.881640295 | G95: -3.913986405 | H95: -3.958314059 | I95: -4.05683076 | J95: -4.190846523 | K95: -4.265110071 | L95: 16.87985837 | M95: 0 | N95: 0
B96: CitiPower | C96: Vic | D96: -4.027149228 | E96: -4.042935492 | F96: 0.4231927191 | G96: 0.4213273252 | H96: 0.4210303305 | I96: 0.4220336446 | J96: 0.4202561859 | K96: 0.4201234517 | L96: 0 | M96: 0 | N96: 0
B97: Jemena Electricity | C97: Vic | D97: -0.4404294742 | E97: -0.4716564188 | F97: 1.055412266 | G97: 1.055803654 | H97: 1.084615174 | I97: 1.050405303 | J97: 1.087704875 | K97: 1.099422634 | L97: 0 | M97: 0 | N97: 0
B98: Powercor Australia | C98: Vic | D98: -9.774091363 | E98: -9.812719808 | F98: -2.466975144 | G98: -2.45610507 | H98: -2.454372164 | I98: -2.460220913 | J98: -2.449862077 | K98: -2.449087139 | L98: 0 | M98: 0 | N98: 0
B99: United Energy | C99: Vic | D99: -8.870198042 | E99: -15.57136114 | F99: 0 | G99: 0.7244215861 | H99: 0.7239109645 | I99: 0.7256360394 | J99: 0.7225809019 | K99: 0.7223526812 | L99: 0 | M99: 0 | N99: 0
B100: Power and Water Corporation | C100: NT | D100: 0 | E100: 0 | F100: 0 | G100: 0 | H100: 0 | I100: 0 | J100: 0 | K100: 0 | L100: 0 | M100: 0 | N100: 0
B101: DNSP Total | D101: =SUM(D87:D100) -> -33.19848825 | E101: -40.88921534 | F101: -4.870010455 | G101: -4.16853891 | H101: -4.183129754 | I101: -4.318976686 | J101: 10.65187704 | K101: -4.472298442 | L101: 16.87985837 | M101: 0 | N101: =SUM(N87:N100) -> 0
B103: Capital Expenditure Sharing Scheme
B104: $m 2024 | C104: State | D104: 2014 | E104: 2015 | F104: 2016 | G104: 2017 | H104: 2018 | I104: 2019 | J104: 2020 | K104: 2021 | L104: 2022 | M104: 2023 | N104: 2024
B105: Evoenergy | C105: ACT | D105: 0 | E105: 0 | F105: 0 | G105: 0 | H105: 0 | I105: 0 | J105: -0.2686557806 | K105: -0.2686557806 | L105: -0.2686557806 | M105: -0.2686557806 | N105: -0.2686557806
B106: Ausgrid | C106: NSW | D106: 0 | E106: 0 | F106: 0 | G106: 0 | H106: 0 | I106: 0 | J106: 21.09844555 | K106: 21.2024054 | L106: 20.9345317 | M106: 20.50784663 | N106: 20.88060286
B107: Endeavour Energy | C107: NSW | D107: 0 | E107: 0 | F107: 0 | G107: 0 | H107: 0 | I107: 0 | J107: 1.671880537 | K107: 1.679982439 | L107: 1.658436112 | M107: 1.624770451 | N107: 1.654018142
B108: Essential Energy | C108: NSW | D108: 0 | E108: 0 | F108: 0 | G108: 0 | H108: 0 | I108: 0 | J108: 0 | K108: 16.41238316 | L108: 16.4909559 | M108: 16.15619071 | N108: 16.44617382
B109: Energex | C109: Qld | D109: 0 | E109: 0 | F109: 0 | G109: 0 | H109: 0 | I109: 0 | J109: 0 | K109: 24.26634547 | L109: 22.85714319 | M109: 22.13179688 | N109: 22.54010351
B110: Ergon Energy | C110: Qld | D110: 0 | E110: 0 | F110: 0 | G110: 0 | H110: 0 | I110: 0 | J110: 0 | K110: 11.65995262 | L110: 11.49761382 | M110: 10.95949589 | N110: 11.57893816
B111: SA Power Networks | C111: SA | D111: 0 | E111: 0 | F111: 0 | G111: 0 | H111: 0 | I111: 0 | J111: 0 | K111: 17.89230466 | L111: 17.89230466 | M111: 17.89230466 | N111: 17.89230466
B112: TasNetworks (D) | C112: Tas | D112: 0 | E112: 0 | F112: 0 | G112: 0 | H112: 0 | I112: 0 | J112: -2.87348579 | K112: -2.903979267 | L112: -2.847462469 | M112: -2.752225702 | N112: -2.871259495
B113: AusNet (D) | C113: Vic | D113: 0 | E113: 0 | F113: 0 | G113: 0 | H113: 0 | I113: 0 | J113: 0 | K113: 0 | L113: 17.13362194 | M113: 17.13362194 | N113: 17.13362194
B114: CitiPower | C114: Vic | D114: 0 | E114: 0 | F114: 0 | G114: 0 | H114: 0 | I114: 0 | J114: 0 | K114: 0 | L114: 15.85308943 | M114: 15.85308943 | N114: 15.85308943
B115: Jemena Electricity | C115: Vic | D115: 0 | E115: 0 | F115: 0 | G115: 0 | H115: 0 | I115: 0 | J115: 0 | K115: 0 | L115: 10.30458201 | M115: 10.30458201 | N115: 10.30458201
B116: Powercor Australia | C116: Vic | D116: 0 | E116: 0 | F116: 0 | G116: 0 | H116: 0 | I116: 0 | J116: 0 | K116: 0 | L116: 13.07914436 | M116: 13.07914436 | N116: 13.07914436
B117: United Energy | C117: Vic | D117: 0 | E117: 0 | F117: 0 | G117: 0 | H117: 0 | I117: 0 | J117: 0 | K117: 0 | L117: 13.04564541 | M117: 13.04564541 | N117: 13.04564541
B118: Power and Water Corporation | C118: NT | D118: 0 | E118: 0 | F118: 0 | G118: 0 | H118: 0 | I118: 0 | J118: 0 | K118: 0 | L118: 0 | M118: 0 | N118: 0
B119: DNSP Total | D119: =SUM(D105:D118) -> 0 | E119: 0 | F119: 0 | G119: 0 | H119: 0 | I119: 0 | J119: 19.62818452 | K119: 89.94073871 | L119: 157.6309503 | M119: 155.6676069 | N119: =SUM(N105:N118) -> 157.268309
B121: Demand Management Incentive Scheme / Demand Management Innovation Allowance
B122: $m 2024 | C122: State | D122: 2014 | E122: 2015 | F122: 2016 | G122: 2017 | H122: 2018 | I122: 2019 | J122: 2020 | K122: 2021 | L122: 2022 | M122: 2023 | N122: 2024
B123: Evoenergy | C123: ACT | D123: 0 | E123: 0.1305756032 | F123: 0.1305756032 | G123: 0.1305756032 | H123: 0.1305756032 | I123: 0.1305756032 | J123: 0.3863781709 | K123: 0.3888964786 | L123: 0.3884437742 | M123: 0.3911824372 | N123: 0.3922963117
B124: Ausgrid | C124: NSW | D124: 4.852726372 | E124: 1.320507344 | F124: 4.663556391 | G124: 1.314066777 | H124: 1.318416942 | I124: 1.32475457 | J124: 1.595680756 | K124: 1.609423512 | L124: 1.598055855 | M124: 1.577526664 | N124: 1.581091081
B125: Endeavour Energy | C125: NSW | D125: 9.544875743 | E125: 9.708596943 | F125: 9.448218663 | G125: 0.7834536194 | H125: 0.7834536194 | I125: 0.7834536194 | J125: 0.9620574851 | K125: 1.009778093 | L125: 1.02648359 | M125: 1.017454999 | N125: 0.951877879
B126: Essential Energy | C126: NSW | D126: 0.792992421 | E126: 0.7738859212 | F126: 0.7966624251 | G126: 0.797571927 | H126: 0.7949400966 | I126: 0.7950857732 | J126: 1.103995962 | K126: 1.104225472 | L126: 1.112108757 | M126: 1.085245422 | N126: 1.072919227
B127: Energex | C127: Qld | D127: 0 | E127: 0 | F127: 1.27673546 | G127: 1.27673546 | H127: 1.27673546 | I127: 1.27673546 | J127: 1.27673546 | K127: 1.218555717 | L127: 1.248385067 | M127: 1.245617956 | N127: 1.242987924
B128: Ergon Energy | C128: Qld | D128: 0 | E128: 0 | F128: 1.27673546 | G128: 1.27673546 | H128: 1.27673546 | I128: 1.27673546 | J128: 1.27673546 | K128: 1.249650142 | L128: 1.230344065 | M128: 1.239082916 | N128: 1.196161051
B129: SA Power Networks | C129: SA | D129: 0 | E129: 0 | F129: 0.7660412758 | G129: 0.7660412758 | H129: 0.7660412758 | I129: 0.7660412758 | J129: 0.7660412758 | K129: 0.8873890929 | L129: 0.8663084521 | M129: 0.8976262932 | N129: 0.9000333736
B130: TasNetworks (D) | C130: Tas | D130: 0 | E130: 0 | F130: 0 | G130: 0 | H130: 0.518856305 | I130: 0.518856305 | J130: 0.4464518052 | K130: 0.4499473699 | L130: 0.4535652739 | M130: 0.4750237666 | N130: 0.4730084199
B131: AusNet (D) | C131: Vic | D131: 0 | E131: 0 | F131: 0.8220997235 | G131: 0.7519337017 | H131: 0.7519337017 | I131: 0.7519337017 | J131: 0.7519337017 | K131: 0.8218825736 | L131: 0.8792997415 | M131: 0.8291043147 | N131: 0.8065504527
B132: CitiPower | C132: Vic | D132: 0 | E132: 0 | F132: 0.2740332412 | G132: 0.2506445672 | H132: 0.2506445672 | I132: 0.2506445672 | J132: 0.2506445672 | K132: 0.2739608579 | L132: 0.4992795607 | M132: 0.5012765217 | N132: 0.5051739556
B133: Jemena Electricity | C133: Vic | D133: 0 | E133: 0 | F133: 0.2740332412 | G133: 0.2506445672 | H133: 0.2506445672 | I133: 0.2506445672 | J133: 0.2506445672 | K133: 0.2739608579 | L133: 0.4659809833 | M133: 0.4667627001 | N133: 0.4674992099
B134: Powercor Australia | C134: Vic | D134: 0 | E134: 0 | F134: 0.8220997235 | G134: 0.7519337017 | H134: 0.7519337017 | I134: 0.7519337017 | J134: 0.7519337017 | K134: 0.8218825736 | L134: 0.7996117523 | M134: 0.8060992329 | N134: 0.8156462726
B135: United Energy | C135: Vic | D135: 0 | E135: 0 | F135: 0.5480664824 | G135: 0.5012891344 | H135: 0.5012891344 | I135: 0.5012891344 | J135: 0.5012891344 | K135: 0.5479217158 | L135: 0.5926344614 | M135: 0.6142921364 | N135: 0.6116332212
B136: Power and Water Corporation | C136: NT | D136: 0 | E136: 0 | F136: 0 | G136: 0 | H136: 0 | I136: 0 | J136: 0.3663340311 | K136: 0.3711836163 | L136: 0.3740647322 | M136: 0.3778009607 | N136: 0.3796441591
B137: DNSP Total | D137: =SUM(D123:D136) -> 15.19059454 | E137: 11.93356581 | F137: 21.09885769 | G137: 8.851625794 | H137: 9.372200434 | I137: 9.378683738 | J137: 10.68685608 | K137: 11.02865807 | L137: 11.53456607 | M137: 11.52409632 | N137: =SUM(N123:N136) -> 11.39652254
B139: F Factor
B140: $m 2024 | C140: State | D140: 2014 | E140: 2015 | F140: 2016 | G140: 2017 | H140: 2018 | I140: 2019 | J140: 2020 | K140: 2021 | L140: 2022 | M140: 2023 | N140: 2024
B141: Evoenergy | C141: ACT | D141: 0 | E141: 0 | F141: 0 | G141: 0 | H141: 0 | I141: 0 | J141: 0 | K141: 0 | L141: 0 | M141: 0 | N141: 0
B142: Ausgrid | C142: NSW | D142: 0 | E142: 0 | F142: 0 | G142: 0 | H142: 0 | I142: 0 | J142: 0 | K142: 0 | L142: 0 | M142: 0 | N142: 0
B143: Endeavour Energy | C143: NSW | D143: 0 | E143: 0 | F143: 0 | G143: 0 | H143: 0 | I143: 0 | J143: 0 | K143: 0 | L143: 0 | M143: 0 | N143: 0
B144: Essential Energy | C144: NSW | D144: 0 | E144: 0 | F144: 0 | G144: 0 | H144: 0 | I144: 0 | J144: 0 | K144: 0 | L144: 0 | M144: 0 | N144: 0
B145: Energex | C145: Qld | D145: 0 | E145: 0 | F145: 0 | G145: 0 | H145: 0 | I145: 0 | J145: 0 | K145: 0 | L145: 0 | M145: 0 | N145: 0
B146: Ergon Energy | C146: Qld | D146: 0 | E146: 0 | F146: 0 | G146: 0 | H146: 0 | I146: 0 | J146: 0 | K146: 0 | L146: 0 | M146: 0 | N146: 0
B147: SA Power Networks | C147: SA | D147: 0 | E147: 0 | F147: 0 | G147: 0 | H147: 0 | I147: 0 | J147: 0 | K147: 0 | L147: 0 | M147: 0 | N147: 0
B148: TasNetworks (D) | C148: Tas | D148: 0 | E148: 0 | F148: 0 | G148: 0 | H148: 0 | I148: 0 | J148: 0 | K148: 0 | L148: 0 | M148: 0 | N148: 0
B149: AusNet (D) | C149: Vic | D149: 2.669356976 | E149: 2.501987017 | F149: 2.302178531 | G149: 4.240713157 | H149: 0.9102345745 | I149: 1.822406279 | J149: 0.3762649686 | K149: 0.3814390138 | L149: 0.4617054106 | M149: 0.3357587274 | N149: 1.218494327
B150: CitiPower | C150: Vic | D150: 0.01299919053 | E150: -0.0829123586 | F150: -0.01889427532 | G150: 0.5089243831 | H150: 0.1703621564 | I150: 0.05162162912 | J150: 0.04251660929 | K150: 0.0425031808 | L150: 0.03595625674 | M150: -0.007131284919 | N150: 0.009486546485
B151: Jemena Electricity | C151: Vic | D151: 0.4809700498 | E151: -1.090616409 | F151: -0.8565404813 | G151: 0.08688952882 | H151: 0.7970515176 | I151: 0.1401670624 | J151: 0.1321177281 | K151: 0.1335410323 | L151: 0.1328669296 | M151: 0.05348463689 | N151: 0.04406653851
B152: Powercor Australia | C152: Vic | D152: 3.210800062 | E152: -3.067757268 | F152: -1.927216083 | G152: 1.762616156 | H152: 2.135611318 | I152: 5.543589394 | J152: 1.165517298 | K152: 1.16514918 | L152: 4.275027706 | M152: 1.673258761 | N152: 2.529541718
B153: United Energy | C153: Vic | D153: 1.159488798 | E153: 0.04518302604 | F153: -2.907931709 | G153: 0.6889098356 | H153: 1.216872546 | I153: 0.2681456846 | J153: 0.005973407917 | K153: 0.00597152127 | L153: 0.07122763239 | M153: 0.114424708 | N153: 0.1784082775
B154: Power and Water Corporation | C154: NT | D154: 0 | E154: 0 | F154: 0 | G154: 0 | H154: 0 | I154: 0 | J154: 0 | K154: 0 | L154: 0 | M154: 0 | N154: 0
B155: DNSP Total | D155: =SUM(D141:D154) -> 7.533615077 | E155: -1.694115994 | F155: -3.408404017 | G155: 7.288053061 | H155: 5.230132113 | I155: 7.825930049 | J155: 1.722390012 | K155: 1.728603928 | L155: 4.976783935 | M155: 2.169795549 | N155: =SUM(N141:N154) -> 3.979997407
B157: Sources: Economic Benchmarking RINs 2014 - 2024 or Post Tax Revenue Models developed as part of final regulatory decisions made by the AER or jurisdictional regulators
B159: Note: The incentive schemes for the Capital Expenditure Sharing Scheme and Demand Management Incentive Scheme / Demand Management Innovation Allowance incentive schemes are based on disclosures provided by the DNSPs in the Basis of Preparation for the respective Economic Benchmaking RIN, as well as revenue adjustments in the Post Tax Revenue Models for the regulatory year.

Sheet 6. Outage duration
B4: Outage duration
B6: Outage duration is measured using a System Average Interruption Duration Index (SAIDI). This shows the average length of time each customer was without supply when averaged over all customers in the distribution network. This data does not include outages caused by force majeure events or other outages primarily caused or initiated by third parties. Aggregate data has been weighted by each network service provider's customer numbers.
B36: Minutes/customer | C36: State | D36: 2006 | E36: 2007 | F36: 2008 | G36: 2009 | H36: 2010 | I36: 2011 | J36: 2012 | K36: 2013 | L36: 2014 | M36: 2015 | N36: 2016 | O36: 2017 | P36: 2018 | Q36: 2019 | R36: 2020 | S36: 2021 | T36: 2022 | U36: 2023 | V36: 2024
B37: Evoenergy | C37: ACT | D37: 35 | E37: 44.3 | F37: 25.6 | G37: 29.9 | H37: 25.8 | I37: 47.7 | J37: 32.5 | K37: 28.7 | L37: 26.806 | M37: 32.87 | N37: 35.096162 | O37: 39.5 | P37: 31.4 | Q37: 34.943235 | R37: 34.811067 | S37: 37.788771 | T37: 48.314976 | U37: 40.674617 | V37: 45.218649
B38: Ausgrid | C38: NSW | D38: 86.99 | E38: 85.5 | F38: 97.03 | G38: 106.5 | H38: 78.94 | I38: 89.33 | J38: 79.27 | K38: 67.62 | L38: 76.52 | M38: 71.4 | N38: 76.00686554 | O38: 78.96340031 | P38: 69.59 | Q38: 74.65 | R38: 92.17400626 | S38: 70.67008512 | T38: 74.94318016 | U38: 59.61577451 | V38: 69.13504812
B39: Endeavour Energy | C39: NSW | D39: 99.3 | E39: 96 | F39: 101.7 | G39: 96.3 | H39: 79.4 | I39: 76.9 | J39: 93.3 | K39: 104.3 | L39: 82.6 | M39: 91.32190844 | N39: 86.71112251 | O39: 73.43429785 | P39: 70.58808723 | Q39: 78.05593034 | R39: 87.39039309 | S39: 65.88318451 | T39: 91.661 | U39: 77.345 | V39: 73.6
B40: Essential Energy | C40: NSW | D40: 297 | E40: 222.3 | F40: 218.4 | G40: 261 | H40: 196.5 | I40: 222.5 | J40: 237.5 | K40: 232.5 | L40: 181.2 | M40: 221.5684893 | N40: 214.148294 | O40: 235.9106624 | P40: 212.1077095 | Q40: 236.4 | R40: 237.8797651 | S40: 215.2108572 | T40: 218.3288367 | U40: 222.1744239 | V40: 205.679182
B41: Energex | C41: Qld | D41: 128.2224408 | E41: 88.22087393 | F41: 100.3451251 | G41: 90.78905388 | H41: 87.67528473 | I41: 78.77865094 | J41: 64.17191898 | K41: 67.3030582 | L41: 70.044 | M41: 84.462 | N41: 74.053 | O41: 62.42 | P41: 67.563 | Q41: 68.958 | R41: 73.244 | S41: 74.2609 | T41: 88.2810883 | U41: 72.30410979 | V41: 88.23552223
B42: Ergon Energy | C42: Qld | D42: 380.488 | E42: 264.065 | F42: 316.668 | G42: 352.064 | H42: 352.245 | I42: 324.963 | J42: 295.802 | K42: 264.105 | L42: 228.0554 | M42: 281.0522 | N42: 280.4913 | O42: 217.496 | P42: 234.914 | Q42: 276.4889 | R42: 271.0161 | S42: 265.1599 | T42: 314.3111706 | U42: 278.5034062 | V42: 286.5229164
B43: SA Power Networks | C43: SA | D43: 156.4 | E43: 180.2 | F43: 129.6 | G43: 136.4 | H43: 180.6 | I43: 161.7 | J43: 130.1 | K43: 143.3 | L43: 167.6 | M43: 123.7 | N43: 138.97 | O43: 151.41 | P43: 131.68 | Q43: 146.36 | R43: 119.9 | S43: 126.44 | T43: 135.712 | U43: 142.731 | V43: 142.119
B44: TasNetworks (D) | C44: Tas | D44: 132 | E44: 173 | F44: 175 | G44: 201 | H44: 205 | I44: 139 | J44: 160 | K44: 137 | L44: 184.8419861 | M44: 141.258 | N44: 150.406 | O44: 136.604 | P44: 157.3483833 | Q44: 158.2940364 | R44: 151.3904812 | S44: 161.2313 | T44: 181.3189059 | U44: 157.937775 | V44: 181.4583834
B45: AusNet (D) | C45: Vic | D45: 189.545 | E45: 177.201 | F45: 132.11 | G45: 178.128 | H45: 129.865 | I45: 145.469 | J45: 125.602 | K45: 133.1231936 | L45: 157.292656 | M45: 136.7630302 | N45: 171.3733345 | O45: 121.2805536 | P45: 167.4981332 | Q45: 179.2810097 | R45: 172.8272826 | S45: 126.5941886 | T45: 155.9875953 | U45: 170.7032946 | V45: 161.4822866
B46: CitiPower | C46: Vic | D46: 24.72557076 | E46: 21.9062177 | F46: 16.60111331 | G46: 29.61872823 | H46: 30.02119867 | I46: 22.7105199 | J46: 29.14513647 | K46: 26.92380565 | L46: 34.50716922 | M46: 26.38073735 | N46: 24.5 | O46: 20.40182866 | P46: 25.01913263 | Q46: 21.6333893 | R46: 27.87897046 | S46: 22.03853417 | T46: 18.78195608 | U46: 18.27021149 | V46: 20.85442755
B47: Jemena Electricity | C47: Vic | D47: 69.02135236 | E47: 67.81122229 | F47: 62.87830604 | G47: 71.27955432 | H47: 62.34678196 | I47: 55.2386537 | J47: 50.24194607 | K47: 59.79165072 | L47: 58.62141639 | M47: 46.94821058 | N47: 45.59627473 | O47: 42.37444451 | P47: 43.19216074 | Q47: 47.53789948 | R47: 49.7098023 | S47: 46.35319026 | T47: 46.40448519 | U47: 39.11873241 | V47: 44.77899397
B48: Powercor Australia | C48: Vic | D48: 121.1557351 | E48: 140.6075922 | F48: 118.906607 | G48: 170.2682173 | H48: 149.9490369 | I48: 125.1156674 | J48: 129.5445426 | K48: 139.1516479 | L48: 166.2270097 | M48: 134.3970818 | N48: 129.7 | O48: 100.0955055 | P48: 134.664307 | Q48: 130.1102752 | R48: 127.0472115 | S48: 101.8579445 | T48: 114.4124529 | U48: 121.7744927 | V48: 105.7904877
B49: United Energy | C49: Vic | D49: 50.54970923 | E49: 60.65117807 | F49: 62.64485253 | G49: 61.49068359 | H49: 56.71593033 | I49: 60.97453934 | J49: 78.65114542 | K49: 73.56 | L49: 77.94014865 | M49: 66.302 | N49: 54.67308482 | O49: 42.938318 | P49: 46.19211925 | Q49: 43.35506 | R49: 33.31492 | S49: 26.12291 | T49: 36.84979 | U49: 30.90754 | V49: 33.4272
B50: Power and Water Corporation | C50: NT | D50: 215.5135177 | E50: 211.3390986 | F50: 226.6671139 | G50: 239.3043439 | H50: 174.2813025 | I50: 304.6476966 | J50: 242.9100536 | K50: 214.1012817 | L50: 114.4758245 | M50: 178.0241264 | N50: 175.2116356 | O50: 179.3878158 | P50: 157.33 | Q50: 132.079 | R50: 147.439 | S50: 144.328 | T50: 114.524 | U50: 129.747 | V50: 145.96
B51: Weighted Average | D51: 145.9643578 | E51: 129.2900116 | F51: 127.4893418 | G51: 143.2146825 | H51: 128.6627034 | I51: 126.2077411 | J51: 120.3687091 | K51: 118.4309699 | L51: 118.1009457 | M51: 117.7257703 | N51: 118.6727868 | O51: 107.2356211 | P51: 110.2744724 | Q51: 118.6269997 | R51: 119.2866543 | S51: 105.9104288 | T51: 120.1690584 | U51: 112.58979 | V51: 114.5245345
B53: Sources:
B54: Economic benchmarking RIN responses 2006 to 2024.

Sheet 7. Outage frequency
B4: Outage frequency
B6: Outage frequency is measured using a System Average Interruption Frequency Index (SAIFI). This shows the number of supply interruptions each customer experienced in a year when averaged over all customers on the distribution network. This data does not include outages caused by force majeure events or other outages primarily caused or initiated by third parties. Aggregate data has been weighted by each network service provider's customer numbers.
C20: 9. Circuit length
B35: Interruptions/customer | C35: State | D35: 2006 | E35: 2007 | F35: 2008 | G35: 2009 | H35: 2010 | I35: 2011 | J35: 2012 | K35: 2013 | L35: 2014 | M35: 2015 | N35: 2016 | O35: 2017 | P35: 2018 | Q35: 2019 | R35: 2020 | S35: 2021 | T35: 2022 | U35: 2023 | V35: 2024
B36: Evoenergy | C36: ACT | D36: 0.71 | E36: 0.64 | F36: 0.56 | G36: 0.59 | H36: 0.62 | I36: 0.8 | J36: 0.63 | K36: 0.59 | L36: 0.498 | M36: 0.605 | N36: 0.6745115213 | O36: 0.7 | P36: 0.5 | Q36: 0.634246 | R36: 0.489435 | S36: 0.523304 | T36: 0.827589 | U36: 0.622582 | V36: 0.589393
B37: Ausgrid | C37: NSW | D37: 1.155 | E37: 1.043 | F37: 1.151 | G37: 1.301 | H37: 1.06 | I37: 1.032 | J37: 0.8831 | K37: 0.7325 | L37: 0.825 | M37: 0.685 | N37: 0.7028484729 | O37: 0.7134002966 | P37: 0.6776 | Q37: 0.66 | R37: 0.6839751318 | S37: 0.56248751 | T37: 0.6068247945 | U37: 0.5183031164 | V37: 0.5769156127
B38: Endeavour Energy | C38: NSW | D38: 1.212 | E38: 1.22 | F38: 1.232 | G38: 1.102 | H38: 0.973 | I38: 0.898 | J38: 1.013 | K38: 1.216 | L38: 0.98 | M38: 1.092291233 | N38: 0.8742864181 | O38: 0.852163776 | P38: 0.7827592421 | Q38: 0.8233210696 | R38: 0.7857003888 | S38: 0.6187975674 | T38: 0.697 | U38: 0.678 | V38: 0.6
B39: Essential Energy | C39: NSW | D39: 2.637 | E39: 2.299 | F39: 2.255 | G39: 2.337 | H39: 1.996 | I39: 1.866 | J39: 2.121 | K39: 1.847 | L39: 1.726 | M39: 1.968165738 | N39: 1.76703677 | O39: 1.860143839 | P39: 1.780348245 | Q39: 1.8747 | R39: 1.765556323 | S39: 1.70245473 | T39: 1.60742488 | U39: 1.578657797 | V39: 1.523046147
B40: Energex | C40: Qld | D40: 1.716266337 | E40: 1.254929113 | F40: 1.376518151 | G40: 1.297188373 | H40: 1.382727944 | I40: 1.10031842 | J40: 0.8474851344 | K40: 0.8823829058 | L40: 0.8929 | M40: 0.914 | N40: 0.8643 | O40: 0.7502 | P40: 0.74904 | Q40: 0.76917 | R40: 0.7637 | S40: 0.7371 | T40: 0.7843468312 | U40: 0.6576080293 | V40: 0.7838618735
B41: Ergon Energy | C41: Qld | D41: 3.946 | E41: 2.749 | F41: 2.939 | G41: 3.423 | H41: 3.273 | I41: 2.831 | J41: 2.71 | K41: 2.422 | L41: 2.317 | M41: 2.5192 | N41: 2.4945 | O41: 2.1409 | P41: 2.1739 | Q41: 2.3006 | R41: 2.4253 | S41: 2.2236 | T41: 2.338437787 | U41: 2.14567076 | V41: 2.11296697
B42: SA Power Networks | C42: SA | D42: 1.663 | E42: 1.736 | F42: 1.353 | G42: 1.374 | H42: 1.649 | I42: 1.546 | J42: 1.308 | K42: 1.326 | L42: 1.446 | M42: 1.123 | N42: 1.201 | O42: 1.244 | P42: 1.142 | Q42: 1.131 | R42: 0.9 | S42: 0.96 | T42: 0.982 | U42: 1.003 | V42: 0.997
B43: TasNetworks (D) | C43: Tas | D43: 2.04 | E43: 1.77 | F43: 1.77 | G43: 1.72 | H43: 1.84 | I43: 1.45 | J43: 1.73 | K43: 1.46 | L43: 1.818439893 | M43: 1.298 | N43: 1.559 | O43: 1.449 | P43: 1.65887837 | Q43: 1.558499452 | R43: 1.475131649 | S43: 1.537655611 | T43: 1.578618143 | U43: 1.559689568 | V43: 1.919040765
B44: AusNet (D) | C44: Vic | D44: 2.491 | E44: 2.327 | F44: 1.956 | G44: 2.184 | H44: 1.91 | I44: 1.941 | J44: 1.655 | K44: 1.899312208 | L44: 1.803630587 | M44: 1.726178583 | N44: 1.688953488 | O44: 1.49997354 | P44: 1.870226453 | Q44: 1.765387841 | R44: 1.784422888 | S44: 1.258385391 | T44: 1.146705823 | U44: 1.212859842 | V44: 1.255996772
B45: CitiPower | C45: Vic | D45: 0.5311691896 | E45: 0.4683009859 | F45: 0.3072371596 | G45: 0.5459891505 | H45: 0.4356663086 | I45: 0.4029759727 | J45: 0.4689475017 | K45: 0.3945271844 | L45: 0.4158395285 | M45: 0.3903779012 | N45: 0.4 | O45: 0.3339629288 | P45: 0.3428704378 | Q45: 0.2569531013 | R45: 0.3868962854 | S45: 0.3262800837 | T45: 0.2310594455 | U45: 0.2363171721 | V45: 0.2479054456
B46: Jemena Electricity | C46: Vic | D46: 1.189391355 | E46: 1.318578893 | F46: 1.003846306 | G46: 1.172449491 | H46: 0.936378788 | I46: 0.9028535687 | J46: 0.9230373758 | K46: 1.112069128 | L46: 0.9563105119 | M46: 0.772690928 | N46: 0.877074768 | O46: 0.7896726795 | P46: 0.7318939052 | Q46: 0.7951082234 | R46: 0.8027935791 | S46: 0.7254529886 | T46: 0.7008707144 | U46: 0.6844550676 | V46: 0.7265093433
B47: Powercor Australia | C47: Vic | D47: 1.894391124 | E47: 1.733180906 | F47: 1.498111552 | G47: 1.811685291 | H47: 1.766842969 | I47: 1.351228017 | J47: 1.373025996 | K47: 1.436382992 | L47: 1.600836406 | M47: 1.380350891 | N47: 1.3 | O47: 1.112930364 | P47: 1.277801733 | Q47: 1.442184909 | R47: 1.249827624 | S47: 1.265152263 | T47: 1.322558472 | U47: 1.230462579 | V47: 1.116822585
B48: United Energy | C48: Vic | D48: 0.9204866003 | E48: 1.06685384 | F48: 1.304529604 | G48: 1.301218897 | H48: 0.9830136545 | I48: 0.9596711657 | J48: 1.091805725 | K48: 1.01 | L48: 1.000357059 | M48: 0.908 | N48: 0.8051778809 | O48: 0.642371 | P48: 0.5843023956 | Q48: 0.58999 | R48: 0.53756 | S48: 0.41385 | T48: 0.47418 | U48: 0.40656 | V48: 0.49257
B49: Power and Water Corporation | C49: NT | D49: 3.613046999 | E49: 3.333162555 | F49: 2.775501979 | G49: 3.682848189 | H49: 2.56212232 | I49: 3.645393295 | J49: 3.455779126 | K49: 3.455926083 | L49: 1.739721461 | M49: 1.852418108 | N49: 2.625700232 | O49: 2.745968353 | P49: 2.39 | Q49: 2.396 | R49: 2.356 | S49: 2.233 | T49: 1.627 | U49: 1.809 | V49: 1.98
B50: Weighted Average | D50: 1.766338107 | E50: 1.551666477 | F50: 1.517180071 | G50: 1.625042917 | H50: 1.506380217 | I50: 1.369052466 | J50: 1.308579491 | K50: 1.275472649 | L50: 1.257989445 | M50: 1.208389809 | N50: 1.173440957 | O50: 1.096245158 | P50: 1.102456307 | Q50: 1.128009723 | R50: 1.087943577 | S50: 0.983216372 | T50: 1.006771581 | U50: 0.9466836776 | V50: 0.9714172259
B52: Sources:
B53: Economic benchmarking RIN responses 2006 to 2024.

Sheet 8. Energy delivered
B4: Energy delivered
B6: Energy delivered is a measure of total energy transported through the distribution networks to end users over the course of a year.
B34: Forecast energy delivered
B35: Gwh (000's) | C35: State | D35: 2006 | E35: 2007 | F35: 2008 | G35: 2009 | H35: 2010 | I35: 2011 | J35: 2012 | K35: 2013 | L35: 2014 | M35: 2015 | N35: 2016 | O35: 2017 | P35: 2018 | Q35: 2019 | R35: 2020 | S35: 2021 | T35: 2022 | U35: 2023 | V35: 2024
B36: Evoenergy | C36: ACT | D36: 2.655 | E36: 2.694 | F36: 2.733 | G36: 2.906273672 | H36: 2.933 | I36: 2.916 | J36: 2.908 | K36: 2.898 | L36: 2.889 | M36: 2.736688309 | N36: 2.729814865 | O36: 2.761282285 | P36: 2.959 | Q36: 2.926 | R36: 2.914 | S36: 2.9 | T36: 2.924 | U36: 2.938 | V36: 2.949
B37: Ausgrid | C37: NSW | D37: 26.771 | E37: 27.236 | F37: 27.843 | G37: 28.482 | H37: 27.948 | I37: 28.041 | J37: 27.989 | K37: 27.673 | L37: 27.477 | M37: 25.05658553 | N37: 24.94351094 | O37: 24.79541798 | P37: 25.3318682 | Q37: 25.36826989 | R37: 25.52239143 | S37: 25.50922835 | T37: 25.83968972 | U37: 24.706 | V37: 24.449
B38: Endeavour Energy | C38: NSW | D38: 17.796 | E38: 18.091 | F38: 18.483 | G38: 18.86 | H38: 17.373 | I38: 17.313 | J38: 17.526 | K38: 17.967 | L38: 18.202 | M38: 15.36717344 | N38: 15.24467526 | O38: 15.25919233 | P38: 16.31307294 | Q38: 16.31297883 | R38: 16.62135044 | S38: 16.72980917 | T38: 16.8311429 | U38: 16.791 | V38: 17.22773426
B39: Essential Energy | C39: NSW | D39: 11.071 | E39: 11.269 | F39: 11.455 | G39: 11.61 | H39: 12.092 | I39: 12.147 | J39: 12.202 | K39: 12.258 | L39: 12.314 | M39: 11.6807162 | N39: 11.6283436 | O39: 11.5573428 | P39: 12.306396 | Q39: 12.287095 | R39: 12.288602 | S39: 12.272196 | T39: 12.248595 | U39: 12.394 | V39: 12.307099
B40: Energex | C40: Qld | D40: 20.48 | E40: 21.305 | F40: 22.25 | G40: 23.17 | H40: 24.085 | I40: 22.416 | J40: 23.138 | K40: 24.042 | L40: 24.795 | M40: 20.62862206 | N40: 20.56860912 | O40: 20.50433951 | P40: 20.5475955 | Q40: 20.68061882 | R40: 21.12128061 | S40: 21.22255454 | T40: 21.30791466 | U40: 21.28774569 | V40: 21.43513725
B41: Ergon Energy | C41: Qld | D41: 13.358 | E41: 13.65 | F41: 13.944 | G41: 14.592 | H41: 14.889 | I41: 15.871 | J41: 16.45 | K41: 16.874 | L41: 17.433 | M41: 14.11469959 | N41: 14.39877914 | O41: 14.77343999 | P41: 15.15887253 | Q41: 15.53178264 | R41: 15.91173407 | S41: 13.65263413 | T41: 13.68516622 | U41: 13.71966996 | V41: 13.74727294
B42: SA Power Networks | C42: SA | D42: 10.509 | E42: 10.69 | F42: 10.869 | G42: 10.994 | H42: 11.119 | I42: 11.618 | J42: 11.422 | K42: 11.264 | L42: 11.194 | M42: 10.418 | N42: 10.51 | O42: 10.53 | P42: 10.467 | Q42: 10.447 | R42: 10.43 | S42: 9.639301 | T42: 9.664072 | U42: 9.687391 | V42: 9.737105
B43: TasNetworks (D) | C43: Tas | D43: 4.176 | E43: 4.297 | F43: 4.11 | G43: 4.694 | H43: 4.625 | I43: 4.601 | J43: 4.56 | K43: 4.46718 | L43: 4.508633 | M43: 4.550649 | N43: 4.08137155 | O43: 4.073986538 | P43: 4.18672529 | Q43: 4.196587066 | R43: 4.208414988 | S43: 4.220219167 | T43: 4.233132297 | U43: 4.625 | V43: 10.0061
B44: AusNet (D) | C44: Vic | D44: 7.374 | E44: 7.588 | F44: 7.785 | G44: 7.967 | H44: 8.173 | I44: 7.975 | J44: 7.978 | K44: 7.961 | L44: 7.974 | M44: 7.448761126 | N44: 7.456423615 | O44: 7.457515871 | P44: 7.452755754 | Q44: 7.448825562 | R44: 7.461681892 | S44: 7.335996945 | T44: 7.299570539 | U44: 7.258527258 | V44: 7.229019334
B45: CitiPower | C45: Vic | D45: 5.702 | E45: 5.803 | F45: 5.901 | G45: 5.959 | H45: 6.014 | I45: 6.18 | J45: 6.227 | K45: 6.218 | L45: 6.201 | M45: 6.371387527 | N45: 6.565982755 | O45: 6.725857692 | P45: 6.846726854 | Q45: 6.942216437 | R45: 7.028315582 | S45: 5.802613698 | T45: 5.824292221 | U45: 5.86797444 | V45: 5.911984272
B46: Jemena Electricity | C46: Vic | D46: 4.213 | E46: 4.264 | F46: 4.302 | G46: 4.326 | H46: 4.357 | I46: 4.334 | J46: 4.322 | K46: 4.271 | L46: 4.222 | M46: 4.273825805 | N46: 4.325894748 | O46: 4.343794407 | P46: 4.406003123 | Q46: 4.471050805 | R46: 4.537363823 | S46: 4.44098074 | T46: 4.506266192 | U46: 4.577454783 | V46: 4.605340734
B47: Powercor Australia | C47: Vic | D47: 10.024 | E47: 10.228 | F47: 10.419 | G47: 10.605 | H47: 10.804 | I47: 10.726 | J47: 10.795 | K47: 10.781 | L47: 10.761 | M47: 11.08655896 | N47: 11.22514261 | O47: 11.33870127 | P47: 11.49139974 | Q47: 11.64623027 | R47: 11.79011488 | S47: 11.0531819 | T47: 11.10817291 | U47: 11.21925474 | V47: 11.33144739
B48: United Energy | C48: Vic | D48: 7.665 | E48: 7.817 | F48: 7.943 | G48: 8.046 | H48: 8.161 | I48: 7.936 | J48: 7.964 | K48: 7.905 | L48: 7.842 | M48: 7.625286002 | N48: 7.585329966 | O48: 7.600230683 | P48: 7.672554181 | Q48: 7.726104705 | R48: 7.776535146 | S48: 7.603840129 | T48: 7.622876428 | U48: 7.660990904 | V48: 7.699295945
B49: Power and Water Corporation | C49: NT | D49: =D70 -> 1.43183256 | E49: =E70 -> 1.475974944 | F49: 1.544836951 | G49: 1.576210579 | H49: 1.639530499 | I49: 1.642565315 | J49: 1.639681417 | K49: 1.671308003 | L49: 1.718611883 | M49: 1.750981749 | N49: 1.812178202 | O49: 1.77950141 | P49: 1.766942185 | Q49: 1.738901512 | R49: 1.725676267 | S49: 1.725713862 | T49: 1.726540579 | U49: 1.716 | V49: 1.731573112
B50: DNSP Total | D50: =SUM(D36:D49) -> 143.2258326 | E50: 146.4079749 | F50: 149.581837 | G50: 153.7874843 | H50: 154.2125305 | I50: 153.7165653 | J50: 155.1206814 | K50: 156.250488 | L50: 157.5312449 | M50: 143.1099353 | N50: 143.0760564 | O50: 143.5006028 | P50: 146.9069123 | Q50: 147.7236615 | R50: 149.3374611 | S50: 144.1082696 | T50: 144.8214317 | U50: 144.4490088 | V50: 150.3671092
B52: Source:
B53: Regulatory proposal RIN responses.
B55: Actual energy delivered
B56: Gwh (000's) | C56: State | D56: 2006 | E56: 2007 | F56: 2008 | G56: 2009 | H56: 2010 | I56: 2011 | J56: 2012 | K56: 2013 | L56: 2014 | M56: 2015 | N56: 2016 | O56: 2017 | P56: 2018 | Q56: 2019 | R56: 2020 | S56: 2021 | T56: 2022 | U56: 2023 | V56: 2024
B57: Evoenergy | C57: ACT | D57: 2.758259993 | E57: 2.820838425 | F57: 2.847302653 | G57: 2.872918971 | H57: 2.896443011 | I57: 2.909890738 | J57: 2.891139634 | K57: 2.903924452 | L57: 2.829772 | M57: 2.85606 | N57: 2.876111962 | O57: 2.914 | P57: 2.852 | Q57: 2.886245794 | R57: 2.85494063 | S57: 2.851 | T57: 2.897 | U57: 2.981 | V57: 2.977
B58: Ausgrid | C58: NSW | D58: 30.12025333 | E58: 30.44183728 | F58: 30.55527846 | G58: 30.70725376 | H58: 30.53341466 | I58: 30.56962901 | J58: 29.34473393 | K58: 26.33808591 | L58: 25.52344619 | M58: 25.63006576 | N58: 25.61765635 | O58: 25.66878047 | P58: 25.387 | Q58: 25.424 | R58: 24.933 | S58: 24.456 | T58: 24.234 | U58: 24.566 | V58: 24.431
B59: Endeavour Energy | C59: NSW | D59: 17.196 | E59: 17.48255937 | F59: 18.111697 | G59: 17.425962 | H59: 17.410773 | I59: 17.50118628 | J59: 16.5058002 | K59: 16.00080743 | L59: 15.6369511 | M59: 16.12750073 | N59: 16.64529694 | O59: 16.71615702 | P59: 16.63935942 | Q59: 16.75889635 | R59: 16.51135943 | S59: 16.71687009 | T59: 16.71134094 | U59: 16.88262561 | V59: 18.30571744
B60: Essential Energy | C60: NSW | D60: 11.96484 | E60: 11.97412 | F60: 12.0369 | G60: 12.12143028 | H60: 12.10352 | I60: 11.943293 | J60: 11.85330476 | K60: 12.29114058 | L60: 12.02980298 | M60: 12.27065744 | N60: 12.31324419 | O60: 12.3885364 | P60: 12.532744 | Q60: 12.730251 | R60: 12.45035 | S60: 12.44 | T60: 12.452 | U60: 12.64551 | V60: 12.697544
B61: Energex | C61: Qld | D61: 20.618 | E61: 20.707 | F61: 21.155 | G61: 21.994 | H61: 22.193 | I61: 21.454 | J61: 21.21 | K61: 21.055 | L61: 20.8380672 | M61: 21.15447097 | N61: 21.13812827 | O61: 21.35462835 | P61: 21.26195727 | Q61: 21.427 | R61: 21.142 | S61: 21.206 | T61: 21.29459 | U61: 21.71586353 | V61: 22.36427
B62: Ergon Energy | C62: Qld | D62: 13.486171 | E62: 13.57644 | F62: 13.813451 | G62: 14.130074 | H62: 14.256528 | I62: 13.227153 | J62: 13.691726 | K62: 13.495528 | L62: 13.7162449 | M62: 13.65612759 | N62: 13.74738535 | O62: 13.33196415 | P62: 13.24317596 | Q62: 13.504 | R62: 13.567 | S62: 13.477 | T62: 13.78 | U62: 13.868 | V62: 13.9264
B63: SA Power Networks | C63: SA | D63: 10.9545 | E63: 11.2586 | F63: 11.3443 | G63: 11.2667 | H63: 11.5035 | I63: 11.2589 | J63: 11.0186 | K63: 11.0081 | L63: 10.603248 | M63: 10.34249555 | N63: 10.35511591 | O63: 10.21462006 | P63: 10.15386686 | Q63: 10.05096112 | R63: 9.849652518 | S63: 9.666184087 | T63: 9.774400756 | U63: 9.808520323 | V63: 9.729652029
B64: TasNetworks (D) | C64: Tas | D64: 4.448672044 | E64: 4.417073641 | F64: 4.441049623 | G64: 4.58605031 | H64: 4.545226702 | I64: 4.444815798 | J64: 4.317994319 | K64: 4.247662006 | L64: 4.111747772 | M64: 4.185726622 | N64: 4.243322081 | O64: 4.192745002 | P64: 4.293044443 | Q64: 4.320773264 | R64: 4.401136268 | S64: 4.48263556 | T64: 4.580844305 | U64: 4.630502256 | V64: 4.565693654
B65: AusNet (D) | C65: Vic | D65: 7.39794 | E65: 7.500023 | F65: 7.885966 | G65: 7.750028 | H65: 7.909096 | I65: 7.629531 | J65: 7.594744 | K65: 7.501 | L65: 7.447648959 | M65: 7.686101727 | N65: 7.559854199 | O65: 7.67326116 | P65: 7.570276907 | Q65: 7.658296151 | R65: 7.460333608 | S65: 7.465382539 | T65: 7.6271 | U65: 7.6277 | V65: 7.599333938
B66: CitiPower | C66: Vic | D66: 5.974992647 | E66: 6.079298233 | F66: 6.09959684 | G66: 6.096471959 | H66: 6.209711059 | I66: 6.105050574 | J66: 6.085130123 | K66: 5.981354949 | L66: 5.919400489 | M66: 5.944173062 | N66: 5.876 | O66: 5.91732 | P66: 5.823768972 | Q66: 5.812 | R66: 5.177 | S66: 5.124 | T66: 5.252 | U66: 5.42007 | V66: 5.45867
B67: Jemena Electricity | C67: Vic | D67: 4.27887 | E67: 4.37872 | F67: 4.48968 | G67: 4.37497 | H67: 4.45031 | I67: 4.41467 | J67: 4.36437 | K67: 4.2537161 | L67: 4.135521856 | M67: 4.212017764 | N67: 4.186892257 | O67: 4.264387438 | P67: 4.218710352 | Q67: 4.22865046 | R67: 4.106599942 | S67: 4.108524903 | T67: 4.256241155 | U67: 4.373947218 | V67: 4.321377843
B68: Powercor Australia | C68: Vic | D68: 10.14779959 | E68: 10.29920124 | F68: 10.51032742 | G68: 10.49071713 | H68: 10.67810596 | I68: 10.47067659 | J68: 10.74380614 | K68: 10.55588131 | L68: 10.33296149 | M68: 10.71265544 | N68: 10.657 | O68: 10.72033 | P68: 10.75271478 | Q68: 10.882 | R68: 10.648 | S68: 10.776 | T68: 10.963 | U68: 11.02627 | V68: 11.20439
B69: United Energy | C69: Vic | D69: 7.91534 | E69: 7.972746578 | F69: 7.895859675 | G69: 8.013413584 | H69: 8.163283263 | I69: 8.022526835 | J69: 8.120628817 | K69: 7.856271216 | L69: 7.696308822 | M69: 7.604017314 | N69: 8.067929411 | O69: 7.844 | P69: 7.66659352 | Q69: 7.693 | R69: 7.501 | S69: 7.487 | T69: 7.592 | U69: 7.608 | V69: 7.5072
B70: Power and Water Corporation | C70: NT | D70: 1.43183256 | E70: 1.475974944 | F70: 1.544836951 | G70: 1.576210579 | H70: 1.639530499 | I70: 1.642565315 | J70: 1.639681417 | K70: 1.671308003 | L70: 1.718611883 | M70: 1.750981749 | N70: 1.812178202 | O70: 1.77950141 | P70: 1.730477935 | Q70: 1.717642 | R70: 1.66657 | S70: 1.64593 | T70: 1.72769 | U70: 1.64795 | V70: 1.68996
B71: DNSP Total | D71: =SUM(D57:D70) -> 148.6934712 | E71: 150.3844327 | F71: 152.7312456 | G71: 153.4062006 | H71: 154.4924421 | I71: 151.5938881 | J71: 149.3816593 | K71: 145.15978 | L71: 142.5397336 | M71: 144.1330517 | N71: 145.0961151 | O71: 144.9802315 | P71: =IF(P65="","",SUM(P57:P70)) -> 144.1256904 | Q71: 145.0937161 | R71: 142.2689424 | S71: 141.9025272 | T71: 143.1422072 | U71: 144.8019589 | V71: 146.7782089
B73: Sources:
B74: Economic benchmarking RIN responses 2006 to 2024.
B76: Note:
B77: Power and Water Corporation (NT): Forecasts of energy delivered for Power and Water Corporation (NT) are not available for the years prior to 2018. To ensure the aggregate forecast energy delivered data is comparable with the aggregate actual energy delivered data, the forecast for Power and Water Corporation has been assumed to match actual energy delivered.

Sheet 9. Utilisation
B4: Network utilisation
B6: Network utilisation is a measure of the use of the network's capacity. Utilisation rates are derived by comparing maximum demand to the total capacity of the distribution network, at the zone substation level.
B35: Network utilisation
C36: State | D36: 2006 | E36: 2007 | F36: 2008 | G36: 2009 | H36: 2010 | I36: 2011 | J36: 2012 | K36: 2013 | L36: 2014 | M36: 2015 | N36: 2016 | O36: 2017 | P36: 2018 | Q36: 2019 | R36: 2020 | S36: 2021 | T36: 2022 | U36: 2023 | V36: 2024
B37: Evoenergy | C37: ACT | D37: 0.479523455 | E37: 0.5003723008 | F37: 0.4940652819 | G37: 0.517975055 | H37: 0.4930300807 | I37: 0.490832158 | J37: 0.4548660085 | K37: 0.4565217391 | L37: 0.459052774 | M37: 0.4427713126 | N37: 0.4621109608 | O37: 0.4661754856 | P37: 0.4499139997 | Q37: 0.4708640322 | R37: 0.4470284238 | S37: 0.4302325581 | T37: 0.4638242894 | U37: 0.453875969 | V37: 0.4478223508
B38: Ausgrid | C38: NSW | D38: 0.5278464662 | E38: 0.4960968915 | F38: 0.4886220641 | G38: 0.4628812496 | H38: 0.4176404782 | I38: 0.4187332087 | J38: 0.3506145422 | K38: 0.3445352372 | L38: 0.296837043 | M38: 0.2946512355 | N38: 0.3214260021 | O38: 0.3593579021 | P38: 0.3329658854 | Q38: 0.3417109145 | R38: 0.3412386264 | S38: 0.3220998056 | T38: 0.3444487278 | U38: 0.3554095374 | V38: 0.3989733352
B39: Endeavour Energy | C39: NSW | D39: 0.6536034114 | E39: 0.5789136424 | F39: 0.5672270578 | G39: 0.6039914865 | H39: 0.5776055169 | I39: 0.5996931774 | J39: 0.4793360919 | K39: 0.5187329768 | L39: 0.4391760336 | M39: 0.4440909475 | N39: 0.4874591467 | O39: 0.5321254114 | P39: 0.5008384557 | Q39: 0.5167131258 | R39: 0.5335087158 | S39: 0.4920516804 | T39: 0.4985974529 | U39: 0.5167173106 | V39: 0.5584978715
B40: Essential Energy | C40: NSW | D40: 0.3967870009 | E40: 0.3552835489 | F40: 0.3245627911 | G40: 0.3291723603 | H40: 0.3054646917 | I40: 0.2905134894 | J40: 0.2606174231 | K40: 0.2709847332 | L40: 0.2769530136 | M40: 0.2576274632 | N40: 0.2663357452 | O40: 0.2832796926 | P40: 0.2686354357 | Q40: 0.2640984704 | R40: 0.2656466663 | S40: 0.2534312425 | T40: 0.2506950857 | U40: 0.250689163 | V40: 0.2598595912
B41: Energex | C41: Qld | D41: 0.5011834994 | E41: 0.4784062222 | F41: 0.4780156749 | G41: 0.4999243102 | H41: 0.4955030565 | I41: 0.4642019047 | J41: 0.4490187423 | K41: 0.4380099428 | L41: 0.4222764511 | M41: 0.3924452777 | N41: 0.4094918009 | O41: 0.4282534429 | P41: 0.4203819369 | Q41: 0.4276510841 | R41: 0.4306736454 | S41: 0.4054054054 | T41: 0.440408973 | U41: 0.4336181901 | V41: 0.4714636392
B42: Ergon Energy | C42: Qld | D42: 0.7111229344 | E42: 0.7278759282 | F42: 0.7556412195 | G42: 0.7678320219 | H42: 0.6903736368 | I42: 0.6472281832 | J42: 0.6413659186 | K42: 0.6412118348 | L42: 0.5548787034 | M42: 0.5699042023 | N42: 0.5215014116 | O42: 0.5327173223 | P42: 0.559858992 | Q42: 0.5609262554 | R42: 0.5798069183 | S42: 0.5407963859 | T42: 0.6124256152 | U42: 0.5468589259 | V42: 0.585321571
B43: SA Power Networks | C43: SA | D43: 0.7122155216 | E43: 0.688248213 | F43: 0.7139182749 | G43: 0.7455513143 | H43: 0.6970144642 | I43: 0.6943666164 | J43: 0.5893777992 | K43: 0.5874685502 | L43: 0.5946994733 | M43: 0.5288082303 | N43: 0.5457291385 | O43: 0.5705051727 | P43: 0.5448499676 | Q43: 0.5934038764 | R43: 0.5576791411 | S43: 0.4967560816 | T43: 0.469899002 | U43: 0.5231404938 | V43: 0.4856419579
B44: TasNetworks (D) | C44: Tas | D44: 0.4323232323 | E44: 0.5575757576 | F44: 0.5196261682 | G44: 0.452173913 | H44: 0.452173913 | I44: 0.36 | J44: 0.3496296296 | K44: 0.362962963 | L44: 0.3679231838 | M44: 0.3689670202 | N44: 0.347851719 | O44: 0.3443891669 | P44: 0.3878365802 | Q44: 0.3581007226 | R44: 0.373390593 | S44: 0.3971641739 | T44: 0.3858195136 | U44: 0.3899639941 | V44: 0.3631448815
B45: AusNet (D) | C45: Vic | D45: 0.6416436175 | E45: 0.6521526244 | F45: 0.6694243366 | G45: 0.6649054786 | H45: 0.6247916398 | I45: 0.5819863954 | J45: 0.5661230046 | K45: 0.5700694633 | L45: 0.618061669 | M45: 0.5353930078 | N45: 0.5421199759 | O45: 0.4946732514 | P45: 0.5464101875 | Q45: 0.578534213 | R45: 0.6069461703 | S45: 0.5366311866 | T45: 0.545873783 | U45: 0.5936385818 | V45: 0.6145373253
B46: CitiPower | C46: Vic | D46: 0.6096524985 | E46: 0.6239039728 | F46: 0.6509618501 | G46: 0.6750150669 | H46: 0.5859220286 | I46: 0.6115493281 | J46: 0.5406768873 | K46: 0.5626728114 | L46: 0.5489051611 | M46: 0.4746627245 | N46: 0.4958588405 | O46: 0.5175054705 | P46: 0.5072080293 | Q46: 0.5388620305 | R46: 0.5237584852 | S46: 0.4293498002 | T46: 0.4502506357 | U46: 0.4669077758 | V46: 0.4767051808
B47: Jemena Electricity | C47: Vic | D47: 0.570647906 | E47: 0.6154319549 | F47: 0.6395235849 | G47: 0.6778279532 | H47: 0.6495140578 | I47: 0.6339196758 | J47: 0.5631929047 | K47: 0.6129287377 | L47: 0.6338042068 | M47: 0.5255499068 | N47: 0.5722299405 | O47: 0.5789617264 | P47: 0.5899374576 | Q47: 0.5725191723 | R47: 0.5776073558 | S47: 0.4994354302 | T47: 0.5198229599 | U47: 0.5305881347 | V47: 0.5589390512
B48: Powercor Australia | C48: Vic | D48: 0.825992588 | E48: 0.8033868639 | F48: 0.828793792 | G48: 0.870753543 | H48: 0.8277506028 | I48: 0.8042076688 | J48: 0.7451365048 | K48: 0.7655927432 | L48: 0.7414514411 | M48: 0.7172178727 | N48: 0.7443811807 | O48: 0.725821242 | P48: 0.7643140601 | Q48: 0.781592614 | R48: 0.7593768032 | S48: 0.7410460489 | T48: 0.7092493151 | U48: 0.7083557951 | V48: 0.7038821954
B49: United Energy | C49: Vic | D49: 0.6496081361 | E49: 0.6621671544 | F49: 0.6931265179 | G49: 0.7338161338 | H49: 0.7057490349 | I49: 0.6660470061 | J49: 0.6049353362 | K49: 0.6410661301 | L49: 0.6636483187 | M49: 0.5709355868 | N49: 0.6425955977 | O49: 0.6176291884 | P49: 0.6408649331 | Q49: 0.6497793625 | R49: 0.6532484355 | S49: 0.5564137731 | T49: 0.5817272332 | U49: 0.5888853881 | V49: 0.5935045448
B50: Power and Water Corporation | C50: NT | D50: 0.2794855772 | E50: 0.2929977332 | F50: 0.300587721 | G50: 0.3115091222 | H50: 0.3134351635 | I50: 0.3031958003 | J50: 0.2697461424 | K50: 0.2762751433 | L50: 0.2389171711 | M50: 0.239917006 | N50: 0.2341246632 | O50: 0.2537707812 | P50: 0.3152350081 | Q50: 0.298013245 | R50: 0.2831940576 | S50: 0.272223082 | T50: 0.2855578157 | U50: 0.2837220486 | V50: 0.2929719201
B51: DNSP Average | D51: =AVERAGE(D37:D50) -> 0.5708311317 | E51: 0.5737723434 | F51: 0.5802925954 | G51: 0.5938092149 | H51: 0.5597120261 | I51: 0.5404624723 | J51: 0.4903312097 | K51: 0.5035023576 | L51: 0.489756046 | M51: 0.4544958424 | N51: 0.4709440088 | O51: 0.4789403754 | P51: 0.4878036378 | Q51: 0.4966263656 | R51: 0.495221717 | S51: 0.4552169039 | T51: 0.4684714573 | U51: 0.4744550934 | V51: 0.4865189583
B53: Sources:
B54: Economic benchmarking RIN responses 2006 to 2024.

Sheet 10. Customer numbers
B4: Customer numbers
B6: Customer numbers represent the number of customers connected to the distribution networks, including both metered and unmetered customers.
B35: Customer numbers
B36: (000's) | C36: State | D36: 2006 | E36: 2007 | F36: 2008 | G36: 2009 | H36: 2010 | I36: 2011 | J36: 2012 | K36: 2013 | L36: 2014 | M36: 2015 | N36: 2016 | O36: 2017 | P36: 2018 | Q36: 2019 | R36: 2020 | S36: 2021 | T36: 2022 | U36: 2023 | V36: 2024
B37: Evoenergy | C37: ACT | D37: 154.51 | E37: 156.36 | F37: 158.455 | G37: 161.092 | H37: 164.9 | I37: 168.937 | J37: 173.186 | K37: 177.255 | L37: 178.71 | M37: 181.851 | N37: 184.9615 | O37: 191.482 | P37: 197.537 | Q37: 203.157 | R37: 207.237 | S37: 212.505 | T37: 216.948 | U37: 221.429 | V37: 225.475
B38: Ausgrid | C38: NSW | D38: 1546.1945 | E38: 1561.614 | F38: 1574.318 | G38: 1586.138 | H38: 1596.8975 | I38: 1608.7345 | J38: 1621.6585 | K38: 1635.0525 | L38: 1651.1595 | M38: 1669.5585 | N38: 1688.281721 | O38: 1706.9135 | P38: 1727.294 | Q38: 1746.274 | R38: 1762.079 | S38: 1774.204 | T38: 1783.052 | U38: 1792.704 | V38: 1801.396
B39: Endeavour Energy | C39: NSW | D39: 849.5482933 | E39: 859.7223053 | F39: 869.6545368 | G39: 878.6122078 | H39: 886.0642927 | I39: 895.0882698 | J39: 903.7466884 | K39: 919.3848239 | L39: 940.0285 | M39: 955.8325 | N39: 968.3545 | O39: 984.2295 | P39: 1005.562 | Q39: 1027.5855 | R39: 1049.1645 | S39: 1067.349 | T39: 1082.9185 | U39: 1099.87308 | V39: 1112.797
B40: Essential Energy | C40: NSW | D40: 799.028 | E40: 805.19 | F40: 814.865 | G40: 821.578 | H40: 825.215 | I40: 834.417 | J40: 838.385 | K40: 844.244 | L40: 854.231 | M40: 867.001 | N40: 879.0645 | O40: 891.9345 | P40: 905.97 | Q40: 916.4705 | R40: 925.966 | S40: 935.1785 | T40: 945.3925 | U40: 948.2245 | V40: 956.776
B41: Energex | C41: Qld | D41: 1212.063562 | E41: 1236.100977 | F41: 1263.762943 | G41: 1287.435683 | H41: 1307.554333 | I41: 1326.5635 | J41: 1343.8645 | K41: 1359.7115 | L41: 1376.483 | M41: 1397.191 | N41: 1421.522 | O41: 1448.247 | P41: 1473.805 | Q41: 1496.317 | R41: 1516.198 | S41: 1535.4 | T41: 1569.75 | U41: 1602.119 | V41: 1618.37
B42: Ergon Energy | C42: Qld | D42: 624.13 | E42: 635.123 | F42: 647.729 | G42: 663.216 | H42: 676.96 | I42: 688.959 | J42: 699.264 | K42: 710.431 | L42: 721.93 | M42: 728.2905 | N42: 739.3535 | O42: 745.501 | P42: 752.141 | Q42: 757.726 | R42: 762.303 | S42: 767.583 | T42: 776.533 | U42: 786.523 | V42: 792.127
B43: SA Power Networks | C43: SA | D43: 778.839 | E43: 779.426 | F43: 781.11 | G43: 814.467 | H43: 826.964 | I43: 836.055 | J43: 844.153 | K43: 847.766 | L43: 851.7665 | M43: 853.939 | N43: 858.6465 | O43: 878.2995 | P43: 894.397 | Q43: 906.1975 | R43: 914.603 | S43: 920.841 | T43: 928.729 | U43: 936.66 | V43: 945.709
B44: TasNetworks (D) | C44: Tas | D44: 250.6425242 | E44: 255.4843855 | F44: 260.4242595 | G44: 265.4641302 | H44: 270.606022 | I44: 275.852 | J44: 278.392 | K44: 279.868 | L44: 280.75 | M44: 283.059 | N44: 285.325 | O44: 287.6515001 | P44: 287.936 | Q44: 290.446 | R44: 293.949 | S44: 297.656 | T44: 301.0635 | U44: 304.34 | V44: 307.118
B45: AusNet (D) | C45: Vic | D45: 605.408 | E45: 616.5855 | F45: 627.5525 | G45: 638.6135 | H45: 645.6945 | I45: 654.641 | J45: 668.703 | K45: 681.299 | L45: 685.194 | M45: 706.424 | N45: 712.767 | O45: 734.644 | P45: 741.836 | Q45: 762.382 | R45: 776.854 | S45: 784.2455 | T45: 796.6235 | U45: 810.58 | V45: 823.4545
B46: CitiPower | C46: Vic | D46: 294.9716582 | E46: 299.9512942 | F46: 303.151804 | G46: 305.9849843 | H46: 310.1749627 | I46: 314.4396181 | J46: 318.64322 | K46: 322.7358158 | L46: 325.9171518 | M46: 327.9071747 | N46: 336.07 | O46: 339.4 | P46: 342.669 | Q46: 345.009 | R46: 346.468 | S46: 346.855 | T46: 348.303 | U46: 349.689 | V46: 350.648
B47: Jemena Electricity | C47: Vic | D47: 293.1755 | E47: 299.1185 | F47: 302.6275 | G47: 305.243 | H47: 309.598 | I47: 307.191 | J47: 312.839 | K47: 319.591 | L47: 325.927 | M47: 332.267 | N47: 339.467 | O47: 346.887 | P47: 353.729 | Q47: 360.431 | R47: 366.841 | S47: 369.3315 | T47: 374.388 | U47: 378.889 | V47: 383.818
B48: Powercor Australia | C48: Vic | D48: 663.9663573 | E48: 675.8215901 | F48: 688.3564319 | G48: 701.0045418 | H48: 715.2196966 | I48: 731.2815271 | J48: 743.5615155 | K48: 753.9134168 | L48: 765.240739 | M48: 777.1610087 | N48: 799.54 | O48: 816.349 | P48: 835.781 | Q48: 853.771 | R48: 863.408 | S48: 877.935 | T48: 902.215 | U48: 920.608 | V48: 936.897
B49: United Energy | C49: Vic | D49: 612.728 | E49: 618.25 | F49: 624.094 | G49: 628.12 | H49: 633.823 | I49: 641.1297742 | J49: 647.892 | K49: 656.516 | L49: 658.453 | M49: 664.549 | N49: 669.826 | O49: 676.807 | P49: 685.025 | Q49: 697.594 | R49: 703.119 | S49: 705.367 | T49: 710.296 | U49: 715.652 | V49: 717.973
B50: Power and Water Corporation | C50: NT | D50: 67.109 | E50: 67.839 | F50: 68.943 | G50: 72.011 | H50: 74.34 | I50: 75.737 | J50: 77.028 | K50: 78.622 | L50: 80.971 | M50: 82.646 | N50: 84.201 | O50: 85.71 | P50: 85.276 | Q50: 85.743 | R50: 86.263 | S50: 83.236 | T50: 84.065 | U50: 85.906 | V50: 86.559
B51: DNSP Total | D51: =SUM(D37:D50) -> 8752.314395 | E51: 8866.586552 | F51: 8985.043975 | G51: 9128.980047 | H51: 9244.011307 | I51: 9359.026189 | J51: 9471.316424 | K51: 9586.390056 | L51: 9696.761391 | M51: 9827.676683 | N51: 9967.380221 | O51: 10134.0555 | P51: =IF(P45="","",SUM(P37:P50)) -> 10288.958 | Q51: 10449.1035 | R51: 10574.4525 | S51: 10677.6865 | T51: 10820.277 | U51: 10953.19658 | V51: 11059.1175
B53: Sources:
B54: Economic benchmarking RIN responses 2006 to 2024.

Sheet 11. Circuit length
B4: Circuit length
B6: Circuit length is measured at the end of each regulatory year. It includes both overhead lines and underground cables. Circuit length is always greater than or equal to route length, as a double circuit line that traverses 10 kms is counted as 20 km of circuit length.
B34: Circuit length
B35: Km (000's) | C35: State | D35: 2006 | E35: 2007 | F35: 2008 | G35: 2009 | H35: 2010 | I35: 2011 | J35: 2012 | K35: 2013 | L35: 2014 | M35: 2015 | N35: 2016 | O35: 2017 | P35: 2018 | Q35: 2019 | R35: 2020 | S35: 2021 | T35: 2022 | U35: 2023 | V35: 2024
B36: Evoenergy | C36: ACT | D36: =SUM(D55,D76) -> 4.648929884 | E36: =SUM(E55,E76) -> 4.684470013 | F36: 4.740295606 | G36: 4.813325985 | H36: 4.886080744 | I36: 4.989921491 | J36: 5.107792908 | K36: 5.170811418 | L36: 5.150785 | M36: 5.272084029 | N36: 5.31156867 | O36: 5.333 | P36: 5.384201872 | Q36: 5.435152858 | R36: 5.61017673 | S36: 5.6851959 | T36: 5.722921 | U36: 5.74319 | V36: 5.816064
B37: Ausgrid | C37: NSW | D37: =SUM(D56,D77) -> 38.742395 | E37: 38.8749402 | F37: 39.2239062 | G37: 39.4623062 | H37: 39.7452755 | I37: 40.272423 | J37: 40.626293 | K37: 40.963506 | L37: 41.271488 | M37: 41.32358394 | N37: 41.45321074 | O37: 41.64227551 | P37: 41.847 | Q37: 42.007 | R37: 42.29452 | S37: 42.48479 | T37: 42.71414 | U37: 42.92719 | V37: 43.13268
B38: Endeavour Energy | C38: NSW | D38: 32.432 | E38: 32.832 | F38: 33.299 | G38: 33.579 | H38: 33.817 | I38: 34.172 | J38: 34.568 | K38: 35.029 | L38: 35.492 | M38: 36.00518162 | N38: 36.467861 | O38: 36.99303938 | P38: 37.54307481 | Q38: 38.28539511 | R38: 38.72500584 | S38: 39.14632792 | T38: 39.622208 | U38: 40.011367 | V38: 40.43
B39: Essential Energy | C39: NSW | D39: 199.551 | E39: 189.452 | F39: 185.829 | G39: 187.75 | H39: 188.634 | I39: 190.592 | J39: 190.819 | K39: 191.107 | L39: 191.156072 | M39: 191.4752925 | N39: 191.9453242 | O39: 192.0998744 | P39: 192.20035 | Q39: 192.5346898 | R39: 192.68176 | S39: 192.87947 | T39: 193.12025 | U39: 193.373 | V39: 193.43737
B40: Energex | C40: Qld | D40: 46.658 | E40: 47.645 | F40: 48.486 | G40: 49.427 | H40: 50.117 | I40: 50.771 | J40: 51.342 | K40: 51.781 | L40: 52.097041 | M40: 52.56471 | N40: 53.20188 | O40: 53.757 | P40: 54.266 | Q40: 54.777 | R40: 55.19 | S40: 55.53 | T40: 55.887 | U40: 56.276 | V40: 56.798
B41: Ergon Energy | C41: Qld | D41: 148.3534389 | E41: 150.1364984 | F41: 150.6600393 | G41: 151.7700553 | H41: 152.5796555 | I41: 152.7295325 | J41: 153.7478514 | K41: 150.4723773 | L41: 151.121812 | M41: 152.4595 | N41: 152.2546389 | O41: 152.4913741 | P41: 151.9759735 | Q41: 152.279183 | R41: 152.89621 | S41: 153.79852 | T41: 154.1764 | U41: 154.43743 | V41: 154.4259
B42: SA Power Networks | C42: SA | D42: 84.83040569 | E42: 85.32612062 | F42: 85.82183555 | G42: 86.62471804 | H42: 87.20855088 | I42: 87.19368141 | J42: 87.64769704 | K42: 87.88227 | L42: 88.082643 | M42: 88.201 | N42: 88.808 | O42: 88.971 | P42: 89.311 | Q42: 89.298 | R42: 89.416 | S42: 89.608 | T42: 90.006 | U42: 90.311 | V42: 90.576
B43: TasNetworks (D) | C43: Tas | D43: 21.2099 | E43: 21.2101 | F43: 21.2101 | G43: 21.2678 | H43: 21.6317 | I43: 22.0271 | J43: 22.2221 | K43: 22.3359 | L43: 22.4959 | M43: 22.629245 | N43: 22.681083 | O43: 22.725013 | P43: 22.767252 | Q43: 22.8622944 | R43: 22.911734 | S43: 22.65728228 | T43: 22.54511469 | U43: 22.71066353 | V43: 22.94340987
B44: AusNet (D) | C44: Vic | D44: 41.50707 | E44: 41.835893 | F44: 42.110843 | G44: 42.711531 | H44: 42.968715 | I44: 43.213931 | J44: 43.702131 | K44: 43.799956 | L44: 44.36999952 | M44: 44.32716567 | N44: 44.68118306 | O44: 44.88480724 | P44: 45.09259 | Q44: 45.47184 | R44: 45.71209 | S44: 45.85671978 | T44: 46.0427535 | U44: 46.32206665 | V44: 46.48915564
B45: CitiPower | C45: Vic | D45: 3.928164878 | E45: 4.051660628 | F45: 4.011389429 | G45: 4.044 | H45: 4.071914378 | I45: 4.255 | J45: 4.274 | K45: 4.318 | L45: 4.481474961 | M45: 4.50547812 | N45: 4.5412 | O45: 4.54955 | P45: 4.535990839 | Q45: 4.55752 | R45: 4.569141 | S45: 4.58272683 | T45: 4.57827 | U45: 4.59507 | V45: 4.59584
B46: Jemena Electricity | C46: Vic | D46: 5.718732586 | E46: 5.76985608 | F46: 5.868088215 | G46: 5.92673015 | H46: 5.970972 | I46: 6.041593948 | J46: 6.102439107 | K46: 6.13484476 | L46: 6.160572946 | M46: 6.24631468 | N46: 6.300920291 | O46: 6.408990758 | P46: 6.5676 | Q46: 6.627926915 | R46: 6.698616615 | S46: 6.755841425 | T46: 6.8178 | U46: 6.8985 | V46: 7.013802675
B47: Powercor Australia | C47: Vic | D47: 71.6768619 | E47: 71.9305 | F47: 72.1205 | G47: 72.93923018 | H47: 73.49850781 | I47: 73.133 | J47: 73.597 | K47: 73.889 | L47: 74.18143914 | M47: 74.45176954 | N47: 74.6751 | O47: 75.12061 | P47: 75.41216896 | Q47: 75.81515 | R47: 76.30647 | S47: 76.54492663 | T47: 76.999 | U47: 77.43768 | V47: 77.74706
B48: United Energy | C48: Vic | D48: 12.384 | E48: 12.4763 | F48: 12.5827 | G48: 12.5375 | H48: 12.6444 | I48: 12.7254 | J48: 12.8176 | K48: 12.8347 | L48: 12.823415 | M48: 12.87322177 | N48: 12.87546696 | O48: 13.34225 | P48: 13.38179 | Q48: 13.40781 | R48: 13.42619 | S48: 13.4525 | T48: 13.47486 | U48: 13.49539 | V48: 13.53128
B49: Power and Water Corporation | C49: NT | D49: 5.74683454 | E49: 5.92853774 | F49: 6.109823308 | G49: 6.186262752 | H49: 6.308338916 | I49: 6.45997267 | J49: 6.521821607 | K49: 6.601201826 | L49: 6.663750781 | M49: 6.845045249 | N49: 6.944826219 | O49: 7.014799367 | P49: 7.049 | Q49: 7.103262915 | R49: 6.991099695 | S49: 6.99695421 | T49: 7.032114256 | U49: 7.092617571 | V49: 7.154889509
B50: DNSP Total | D50: =SUM(D36:D49) -> 717.3877334 | E50: 712.1538767 | F50: 712.0735206 | G50: 719.0394596 | H50: 724.0821107 | I50: 728.576556 | J50: 733.0957261 | K50: 732.3195673 | L50: 735.5483933 | M50: 739.1795921 | N50: 742.142263 | O50: 745.3335837 | P50: 747.333992 | Q50: 750.462225 | R50: 753.4290139 | S50: 755.979255 | T50: 758.7388314 | U50: 761.6311647 | V50: 764.0914517
B53: Circuit length - overhead
B54: Km (000's) | C54: State | D54: 2006 | E54: 2007 | F54: 2008 | G54: 2009 | H54: 2010 | I54: 2011 | J54: 2012 | K54: 2013 | L54: 2014 | M54: 2015 | N54: 2016 | O54: 2017 | P54: 2018 | Q54: 2019 | R54: 2020 | S54: 2021 | T54: 2022 | U54: 2023 | V54: 2024
B55: Evoenergy | C55: ACT | D55: 2.422245757 | E55: 2.41357909 | F55: 2.40357909 | G55: 2.39557909 | H55: 2.39057909 | I55: 2.40357909 | J55: 2.40402593 | K55: 2.39502593 | L55: 2.364485 | M55: 2.36845798 | N55: 2.36515699 | O55: 2.361 | P55: 2.360164864 | Q55: 2.356412162 | R55: 2.40924442 | S55: 2.41319569 | T55: 2.41495967 | U55: 2.41367 | V55: 2.411424
B56: Ausgrid | C56: NSW | D56: 26.1088 | E56: 25.8845 | F56: 25.9861 | G56: 25.934 | H56: 25.9667 | I56: 26.1387 | J56: 26.0847 | K56: 26.0719 | L56: 26.0441 | M56: 26.005772 | N56: 25.93396345 | O56: 25.8901576 | P56: 25.892 | Q56: 25.868 | R56: 25.89704 | S56: 25.91529 | T56: 25.93298 | U56: 25.98271 | V56: 26.01289
B57: Endeavour Energy | C57: NSW | D57: 23.387 | E57: 23.409 | F57: 23.44 | G57: 23.443 | H57: 23.431 | I57: 23.411 | J57: 23.417 | K57: 23.412 | L57: 23.388 | M57: 23.369325 | N57: 23.294759 | O57: 23.22655425 | P57: 23.16513192 | Q57: 23.04850684 | R57: 22.93527754 | S57: 22.86952821 | T57: 22.825294 | U57: 22.785388 | V57: 22.812
B58: Essential Energy | C58: NSW | D58: 194.385 | E58: 183.413 | F58: 179.875 | G58: 181.761 | H58: 182.431 | I58: 183.526 | J58: 183.454 | K58: 183.5 | L58: 183.490172 | M58: 183.529791 | N58: 183.6118998 | O58: 183.3856778 | P58: 183.24685 | Q58: 183.3238537 | R58: 183.2 | S58: 183.09864 | T58: 183.05703 | U58: 182.93584 | V58: 182.70802
B59: Energex | C59: Qld | D59: 34.457 | E59: 34.623 | F59: 34.659 | G59: 34.731 | H59: 34.78 | I59: 34.9 | J59: 34.992 | K59: 35.033 | L59: 35.10233 | M59: 35.12237 | N59: 35.12932 | O59: 35.119 | P59: 35.09 | Q59: 35.075 | R59: 35.073 | S59: 35.064 | T59: 35.096 | U59: 35.098 | V59: 35.08
B60: Ergon Energy | C60: Qld | D60: 144.3959289 | E60: 145.6540524 | F60: 145.3671623 | G60: 145.4240393 | H60: 145.6848515 | I60: 145.3901975 | J60: 146.0229654 | K60: 142.2930523 | L60: 142.618259 | M60: 143.546256 | N60: 143.1139036 | O60: 143.1761573 | P60: 143.1659324 | Q60: 143.300013 | R60: 143.80599 | S60: 144.56057 | T60: 144.75175 | U60: 144.81653 | V60: 144.58283
B61: SA Power Networks | C61: SA | D61: 71.06855804 | E61: 71.0252632 | F61: 70.98196836 | G61: 71.13577447 | H61: 71.32333851 | I61: 71.06569054 | J61: 71.1478122 | K61: 71.15282 | L61: 71.159672 | M61: 71.23 | N61: 71.322 | O61: 71.217 | P61: 71.247 | Q61: 71.233 | R61: 71.128 | S61: 70.984 | T61: 70.941 | U61: 70.864 | V61: 70.782
B62: TasNetworks (D) | C62: Tas | D62: 19.3076 | E62: 19.3076 | F62: 19.3076 | G62: 19.3372 | H62: 19.5365 | I62: 19.7522 | J62: 19.8828 | K62: 19.9622 | L62: 20.0631 | M62: 20.163956 | N62: 20.178814 | O62: 20.200591 | P62: 20.206821 | Q62: 20.2546687 | R62: 20.263525 | S62: 19.977225 | T62: 19.87038439 | U62: 19.95617957 | V62: 20.147
B63: AusNet (D) | C63: Vic | D63: 37.642311 | E63: 37.724492 | F63: 37.820121 | G63: 38.099015 | H63: 38.175801 | I63: 38.144855 | J63: 38.379736 | K63: 38.297684 | L63: 38.64184873 | M63: 38.36123084 | N63: 38.41418472 | O63: 38.31021346 | P63: 38.184 | Q63: 38.16661 | R63: 38.12763 | S63: 38.12463506 | T63: 38.08554184 | U63: 38.08583201 | V63: 37.9487165
B64: CitiPower | C64: Vic | D64: 2.260873677 | E64: 2.292184015 | F64: 2.193027317 | G64: 2.192 | H64: 2.185293495 | I64: 2.223 | J64: 2.23 | K64: 2.233 | L64: 2.27033839 | M64: 2.27223366 | N64: 2.2744 | O64: 2.27509 | P64: 2.2678393 | Q64: 2.26758 | R64: 2.259 | S64: 2.25872683 | T64: 2.26127 | U64: 2.263 | V64: 2.259
B65: Jemena Electricity | C65: Vic | D65: 4.41784218 | E65: 4.425525764 | F65: 4.452411926 | G65: 4.46346393 | H65: 4.46381282 | I65: 4.475959463 | J65: 4.472429107 | K65: 4.455565 | L65: 4.435507204 | M65: 4.45089452 | N65: 4.449611497 | O65: 4.452814405 | P65: 4.4895 | Q65: 4.47763528 | R65: 4.473 | S65: 4.506550456 | T65: 4.4961 | U65: 4.4896 | V65: 4.48854355
B66: Powercor Australia | C66: Vic | D66: 68.3530628 | E66: 68.418 | F66: 68.579 | G66: 68.35452406 | H66: 68.36984576 | I66: 68.445 | J66: 68.767 | K66: 68.824 | L66: 68.93303279 | M66: 68.875047 | N66: 68.8143 | O66: 68.79507 | P66: 68.72880162 | Q66: 68.68254 | R66: 68.633 | S66: 68.62192663 | T66: 68.765 | U66: 68.792 | V66: 68.75
B67: United Energy | C67: Vic | D67: 10.108 | E67: 10.1579 | F67: 10.1966 | G67: 10.1132 | H67: 10.1476 | I67: 10.13 | J67: 10.1857 | K67: 10.1439 | L67: 10.085317 | M67: 10.08007422 | N67: 10.04110936 | O67: 10.04558 | P67: 10.04239 | Q67: 10.03417 | R67: 10.02217 | S67: 10.02416 | T67: 10.01956 | U67: 10.0115 | V67: 10.0019
B68: Power and Water Corporation | C68: NT | D68: 4.662604621 | E68: 4.804430594 | F68: 4.952590521 | G68: 5.003058951 | H68: 5.042195724 | I68: 5.120355268 | J68: 5.153114557 | K68: 5.177949391 | L68: 5.203882135 | M68: 5.331418148 | N68: 5.366596132 | O68: 5.405062138 | P68: 5.4278 | Q68: 5.45987 | R68: 5.38904 | S68: 5.3774 | T68: 5.39742 | U68: 5.44441 | V68: 5.46335
B69: DNSP Total | D69: =SUM(D55:D68) -> 642.976827 | E69: 633.5525271 | F69: 630.2141605 | G69: 632.3868548 | H69: 633.9285179 | I69: 635.1265368 | J69: 636.5932832 | K69: 632.9520966 | L69: 633.8000442 | M69: 634.7068264 | N69: 634.3100185 | O69: 633.8599679 | P69: 633.5142311 | Q69: 633.5478597 | R69: 633.615917 | S69: 633.7958479 | T69: 633.9142899 | U69: 633.9386596 | V69: 633.4476741
B71: Sources:
B72: Economic benchmarking RIN responses 2006 to 2024.
B74: Circuit length - underground
B75: Km (000's) | C75: State | D75: 2006 | E75: 2007 | F75: 2008 | G75: 2009 | H75: 2010 | I75: 2011 | J75: 2012 | K75: 2013 | L75: 2014 | M75: 2015 | N75: 2016 | O75: 2017 | P75: 2018 | Q75: 2019 | R75: 2020 | S75: 2021 | T75: 2022 | U75: 2023 | V75: 2024
B76: Evoenergy | C76: ACT | D76: 2.226684128 | E76: 2.270890923 | F76: 2.336716516 | G76: 2.417746895 | H76: 2.495501654 | I76: 2.586342401 | J76: 2.703766978 | K76: 2.775785488 | L76: 2.7863 | M76: 2.903626049 | N76: 2.94641168 | O76: 2.972 | P76: 3.024037008 | Q76: 3.078740697 | R76: 3.20093231 | S76: 3.27200021 | T76: 3.30796133 | U76: 3.32952 | V76: 3.40464
B77: Ausgrid | C77: NSW | D77: 12.633595 | E77: 12.9904402 | F77: 13.2378062 | G77: 13.5283062 | H77: 13.7785755 | I77: 14.133723 | J77: 14.541593 | K77: 14.891606 | L77: 15.227388 | M77: 15.31781193 | N77: 15.51924728 | O77: 15.75211792 | P77: 15.955 | Q77: 16.139 | R77: 16.39748 | S77: 16.5695 | T77: 16.78116 | U77: 16.94448 | V77: 17.11979
B78: Endeavour Energy | C78: NSW | D78: 9.045 | E78: 9.423 | F78: 9.859 | G78: 10.136 | H78: 10.386 | I78: 10.761 | J78: 11.151 | K78: 11.617 | L78: 12.104 | M78: 12.63585662 | N78: 13.173102 | O78: 13.76648513 | P78: 14.37794289 | Q78: 15.23688827 | R78: 15.7897283 | S78: 16.27679972 | T78: 16.796914 | U78: 17.225979 | V78: 17.618
B79: Essential Energy | C79: NSW | D79: 5.166 | E79: 6.039 | F79: 5.954 | G79: 5.989 | H79: 6.203 | I79: 7.066 | J79: 7.365 | K79: 7.607 | L79: 7.6659 | M79: 7.945501497 | N79: 8.33342442 | O79: 8.714196593 | P79: 8.9535 | Q79: 9.210836143 | R79: 9.48176 | S79: 9.78083 | T79: 10.06322 | U79: 10.43716 | V79: 10.72935
B80: Energex | C80: Qld | D80: 12.201 | E80: 13.022 | F80: 13.827 | G80: 14.696 | H80: 15.337 | I80: 15.871 | J80: 16.35 | K80: 16.748 | L80: 16.994711 | M80: 17.44234 | N80: 18.07256 | O80: 18.638 | P80: 19.176 | Q80: 19.702 | R80: 20.117 | S80: 20.466 | T80: 20.791 | U80: 21.178 | V80: 21.718
B81: Ergon Energy | C81: Qld | D81: 3.95751 | E81: 4.482446 | F81: 5.292877 | G81: 6.346016 | H81: 6.894804 | I81: 7.339335 | J81: 7.724886 | K81: 8.179325 | L81: 8.503553 | M81: 8.913244 | N81: 9.140735265 | O81: 9.315216805 | P81: 8.810041105 | Q81: 8.97917 | R81: 9.09022 | S81: 9.23795 | T81: 9.42465 | U81: 9.6209 | V81: 9.84307
B82: SA Power Networks | C82: SA | D82: 13.76184766 | E82: 14.30085742 | F82: 14.83986719 | G82: 15.48894357 | H82: 15.88521237 | I82: 16.12799087 | J82: 16.49988484 | K82: 16.72945 | L82: 16.922971 | M82: 16.971 | N82: 17.486 | O82: 17.754 | P82: 18.064 | Q82: 18.065 | R82: 18.288 | S82: 18.624 | T82: 19.065 | U82: 19.447 | V82: 19.794
B83: TasNetworks (D) | C83: Tas | D83: 1.9023 | E83: 1.9025 | F83: 1.9025 | G83: 1.9306 | H83: 2.0952 | I83: 2.2749 | J83: 2.3393 | K83: 2.3737 | L83: 2.4328 | M83: 2.465289 | N83: 2.502269 | O83: 2.524422 | P83: 2.560431 | Q83: 2.6076257 | R83: 2.648209 | S83: 2.680057275 | T83: 2.674730297 | U83: 2.754483957 | V83: 2.796409866
B84: AusNet (D) | C84: Vic | D84: 3.864759 | E84: 4.111401 | F84: 4.290722 | G84: 4.612516 | H84: 4.792914 | I84: 5.069076 | J84: 5.322395 | K84: 5.502272 | L84: 5.728150794 | M84: 5.965934825 | N84: 6.266998338 | O84: 6.574593778 | P84: 6.90859 | Q84: 7.30523 | R84: 7.58446 | S84: 7.73208472 | T84: 7.95721166 | U84: 8.236234639 | V84: 8.540439134
B85: CitiPower | C85: Vic | D85: 1.6672912 | E85: 1.759476613 | F85: 1.818362113 | G85: 1.852 | H85: 1.886620883 | I85: 2.032 | J85: 2.044 | K85: 2.085 | L85: 2.211136571 | M85: 2.23324446 | N85: 2.2668 | O85: 2.27446 | P85: 2.268151539 | Q85: 2.28994 | R85: 2.310141 | S85: 2.324 | T85: 2.317 | U85: 2.33207 | V85: 2.33684
B86: Jemena Electricity | C86: Vic | D86: 1.300890405 | E86: 1.344330316 | F86: 1.415676289 | G86: 1.46326622 | H86: 1.50715918 | I86: 1.565634485 | J86: 1.63001 | K86: 1.67927976 | L86: 1.725065742 | M86: 1.79542016 | N86: 1.851308794 | O86: 1.956176353 | P86: 2.0781 | Q86: 2.150291635 | R86: 2.225616615 | S86: 2.249290969 | T86: 2.3217 | U86: 2.4089 | V86: 2.525259125
B87: Powercor Australia | C87: Vic | D87: 3.323799102 | E87: 3.5125 | F87: 3.5415 | G87: 4.584706121 | H87: 5.128662049 | I87: 4.688 | J87: 4.83 | K87: 5.065 | L87: 5.248406349 | M87: 5.57672254 | N87: 5.8608 | O87: 6.32554 | P87: 6.683367337 | Q87: 7.13261 | R87: 7.67347 | S87: 7.923 | T87: 8.234 | U87: 8.64568 | V87: 8.99706
B88: United Energy | C88: Vic | D88: 2.276 | E88: 2.3184 | F88: 2.3861 | G88: 2.4243 | H88: 2.4968 | I88: 2.5954 | J88: 2.6319 | K88: 2.6908 | L88: 2.738098 | M88: 2.793147543 | N88: 2.834357601 | O88: 3.29667 | P88: 3.3394 | Q88: 3.37364 | R88: 3.40402 | S88: 3.42834 | T88: 3.4553 | U88: 3.48389 | V88: 3.52938
B89: Power and Water Corporation | C89: NT | D89: 1.08422992 | E89: 1.124107146 | F89: 1.157232787 | G89: 1.1832038 | H89: 1.266143192 | I89: 1.339617402 | J89: 1.36870705 | K89: 1.423252435 | L89: 1.459868646 | M89: 1.513627101 | N89: 1.578230087 | O89: 1.609737229 | P89: 1.6212 | Q89: 1.643392915 | R89: 1.602059694 | S89: 1.61955421 | T89: 1.634694256 | U89: 1.648207571 | V89: 1.691539509
B90: DNSP Total | D90: =SUM(D76:D89) -> 74.41090641 | E90: 78.60134962 | F90: 81.85936009 | G90: 86.6526048 | H90: 90.15359283 | I90: 93.45001916 | J90: 96.50244287 | K90: 99.36747068 | L90: 101.7483491 | M90: 104.4727657 | N90: 107.8322445 | O90: 111.4736158 | P90: 113.8197609 | Q90: 116.9143654 | R90: 119.8130969 | S90: 122.1834071 | T90: 124.8245415 | U90: 127.6925052 | V90: 130.6437776
B92: Sources: Economic benchmarking RIN responses 2006-2013, 2014, 2015, 2016, 2017, 2018, 2019, 2020
B93: Economic benchmarking RIN responses 2006 to 2024.

Sheet 12. Reg service life
B4: Regulatory Service Life
B6: Regulatory service life is an indicator of the regulatory age of assets in service across the distribution network service providers. In general terms an increasing regulatory service life implies increased maintenance expenditure may be required, or the asset may be reaching the end of its useful life and may need to be replaced. Regulatory service life has been calculated as the difference between the expected life of a new asset and the residual life of the existing assets in service.
B36: Regulatory service life - overhead lines less than 33Kv (wires and poles)
C37: State | D37: 2006 | E37: 2007 | F37: 2008 | G37: 2009 | H37: 2010 | I37: 2011 | J37: 2012 | K37: 2013 | L37: 2014 | M37: 2015 | N37: 2016 | O37: 2017 | P37: 2018 | Q37: 2019 | R37: 2020 | S37: 2021 | T37: 2022 | U37: 2023 | V37: 2024
B38: Evoenergy | C38: ACT | D38: 42.2 | E38: 42.2 | F38: 42.2 | G38: 42.2 | H38: 42.2 | I38: 42.2 | J38: 42.2 | K38: 42.2 | L38: 41.6 | M38: 33.77635455 | N38: 36.106421 | O38: 38 | P38: 40.39670524 | Q38: 36.36 | R38: 36 | S38: 36 | T38: 36 | U38: 32 | V38: 35.27
B39: Ausgrid | C39: NSW | D39: 14.46456932 | E39: 13.7894889 | F39: 13.14916357 | G39: 12.72386298 | H39: 13.47264432 | I39: 12.68590933 | J39: 11.94262226 | K39: 11.54168566 | L39: 11.8262216 | M39: 12.03211617 | N39: 12.53209305 | O39: 13.03597503 | P39: 13.45 | Q39: 14.44 | R39: 14.28 | S39: 14.8 | T39: 15.16 | U39: 15.35 | V39: 15.61
B40: Endeavour Energy | C40: NSW | D40: 12.43623567 | E40: 2.500858487 | F40: 4.579430695 | G40: 6.141080288 | H40: 7.258226616 | I40: 7.340031738 | J40: 8.207802084 | K40: 8.266203888 | L40: 8.615819661 | M40: 12.3796166 | N40: 12.17698632 | O40: 12.63188209 | P40: 12.90580427 | Q40: 13.43023765 | R40: 13.43990603 | S40: 13.72075395 | T40: 13.52753288 | U40: 14 | V40: 13
B41: Essential Energy | C41: NSW | D41: 27.74062339 | E41: 28.31233638 | F41: 28.82334773 | G41: 29.38799797 | H41: 29.93524157 | I41: 30.4042437 | J41: 30.84762685 | K41: 31.60530187 | L41: 39.15912884 | M41: 41.39564406 | N41: 41.99477408 | O41: 42.68748353 | P41: 43.522 | Q41: 44.103 | R41: 45.25 | S41: 45.852 | T41: 46.33 | U41: 47.21 | V41: 47
B42: Energex | C42: Qld | D42: 24.0181201 | E42: 20.89475556 | F42: 18.8718604 | G42: 17.07172716 | H42: 15.355013 | I42: 14.11268757 | J42: 13.38191025 | K42: 12.67581114 | L42: 11.78614305 | M42: 12.1984971 | N42: 12.03600458 | O42: 12 | P42: 11.9456038 | Q42: 12 | R42: 13 | S42: 12.71 | T42: 13.06 | U42: 13.28 | V42: 13.45
B43: Ergon Energy | C43: Qld | D43: 25.45 | E43: 25.7 | F43: 25.4 | G43: 25 | H43: 24.9 | I43: 15.35236782 | J43: 23 | K43: 23 | L43: 22.8 | M43: 22.3 | N43: 22 | O43: 22 | P43: 20.8 | Q43: 20 | R43: 19.6 | S43: 13.5 | T43: 13.48 | U43: 13.25 | V43: 12.95
B44: SA Power Networks | C44: SA | D44: 33.43169559 | E44: 34.06837108 | F44: 34.58360874 | G44: 35.14162009 | H44: 37.81471774 | I44: 38.4745473 | J44: 38.43684522 | K44: 38.8846879 | L44: 39.46265888 | M44: 39.80562074 | N44: 42.97566233 | O44: 43.44149304 | P44: 44.01 | Q44: 44.27 | R44: 43.01 | S44: 43.36 | T44: 43.82 | U44: 43.65 | V44: 43.82
B45: TasNetworks (D) | C45: Tas | D45: 18.73020639 | E45: 18.83630847 | F45: 18.87785222 | G45: 18.90222876 | H45: 18.82503149 | I45: 18.90270459 | J45: 19.30642355 | K45: 19.69972391 | L45: 20.03048575 | M45: 20.48517934 | N45: 21 | O45: 20.9243305 | P45: 13.11197166 | Q45: 13.09255778 | R45: 13.00393736 | S45: 12.81730251 | T45: 12.73073925 | U45: 12.72392064 | V45: 12.73172222
B46: AusNet (D) | C46: Vic | D46: 24 | E46: 24 | F46: 24 | G46: 24 | H46: 24 | I46: 24 | J46: 24 | K46: 24 | L46: 30.4 | M46: 29.413 | N46: 30.78120493 | O46: 34.07721951 | P46: 34.22381907 | Q46: 34.92469748 | R46: 35.43869566 | S46: 36.08766413 | T46: 36.59281794 | U46: 37.12523557 | V46: 37.73198594
B47: CitiPower | C47: Vic | D47: 26.45620538 | E47: 26.61124106 | F47: 26.77203561 | G47: 26.94482107 | H47: 27.13022087 | I47: 27.32215899 | J47: 26.43181947 | K47: 26.25006962 | L47: 26.3604251 | M47: 26.50432378 | N47: 26 | O47: 28 | P47: 29.3 | Q47: 30 | R47: 30 | S47: 30 | T47: 29.3 | U47: 30 | V47: 30
B48: Jemena Electricity | C48: Vic | D48: 31.94 | E48: 31.15 | F48: 31.62 | G48: 31.48 | H48: 28.21 | I48: 31.72 | J48: 29.15 | K48: 31.88 | L48: 28.127 | M48: 29.62 | N48: 26.56230899 | O48: 26.13382545 | P48: 26.69061398 | Q48: 27.16486493 | R48: 27.9349779 | S48: 27.87545509 | T48: 27.37559803 | U48: 27.783575 | V48: 28.59990128
B49: Powercor Australia | C49: Vic | D49: 31.83195309 | E49: 30.50950554 | F49: 29.18777375 | G49: 27.86519647 | H49: 26.5406005 | I49: 25.21416024 | J49: 24.52076307 | K49: 23.97478443 | L49: 23.97194419 | M49: 24.05620397 | N49: 24 | O49: 25 | P49: 25.9 | Q49: 27 | R49: 27 | S49: 26 | T49: 25.9 | U49: 26 | V49: 26
B50: United Energy | C50: Vic | D50: 14.0976691 | E50: 14.0976691 | F50: 14.0976691 | G50: 14.0976691 | H50: 14.0976691 | I50: 14.0976691 | J50: 14.0976691 | K50: 14.0976691 | L50: 14.0976691 | M50: 14.0976691 | N50: 14.0976691 | O50: 12.6 | P50: 12.6 | Q50: 14 | R50: 15 | S50: 15 | T50: 14.6 | U50: 16 | V50: 18.1
B51: Power and Water Corporation | C51: NT | D51: 22.03460675 | E51: 21.60216624 | F51: 21.23374455 | G51: 21.16494846 | H51: 22.06150711 | I51: 22.05081991 | J51: 21.79673501 | K51: 20.29565683 | L51: 14.90694398 | M51: 25.53622161 | N51: 25.54004291 | O51: 25.47118581 | P51: 28 | Q51: 29 | R51: 28 | S51: 32 | T51: 31 | U51: 18 | V51: 17
B52: DNSP Average | D52: =AVERAGE(D38:D51) -> 24.9165632 | E52: =AVERAGE(E38:E51) -> 23.87662149 | F52: 23.81403474 | G52: 23.72293945 | H52: 23.70006231 | I52: 23.13409288 | J52: 23.38001549 | K52: 23.45511388 | L52: 23.79603144 | M52: 24.54288907 | N52: 24.84308338 | O52: 25.42881393 | P52: 25.48975129 | Q52: 25.69895413 | R52: 25.78267978 | S52: 25.69451255 | T52: 25.63404915 | U52: 24.74090937 | V52: 25.09025782
B54: Regulatory service life - distribution substations and transformers
C55: State | D55: 2006 | E55: 2007 | F55: 2008 | G55: 2009 | H55: 2010 | I55: 2011 | J55: 2012 | K55: 2013 | L55: 2014 | M55: 2015 | N55: 2016 | O55: 2017 | P55: 2018 | Q55: 2019* | R55: 2020 | S55: 2021 | T55: 2022 | U55: 2023 | V55: 2024
B56: Evoenergy | C56: ACT | D56: 39.4 | E56: 39.4 | F56: 39.4 | G56: 39.4 | H56: 39.4 | I56: 39.4 | J56: 39.4 | K56: 39.4 | L56: 39.4 | M56: 24.52404364 | N56: 25 | O56: 25 | P56: 25.35491028 | Q56: 25.98 | R56: 28 | S56: 29 | T56: 29 | U56: 30 | V56: 31
B57: Ausgrid | C57: NSW | D57: 23.05556864 | E57: 21.15036816 | F57: 19.17518045 | G57: 16.92744148 | H57: 14.05274832 | I57: 12.83334919 | J57: 11.79664846 | K57: 11.61277235 | L57: 12.753878 | M57: 13.07432816 | N57: 13.48926936 | O57: 14.12206409 | P57: 14.93 | Q57: 15.92 | R57: 15.57 | S57: 16.29 | T57: 16.99 | U57: 17.47 | V57: 17.97
B58: Endeavour Energy | C58: NSW | D58: 7.362208666 | E58: 1.538674369 | F58: 2.748520432 | G58: 3.898310212 | H58: 7.5358403 | I58: 5.491731224 | J58: 6.343065211 | K58: 6.594100032 | L58: 7.043087763 | M58: 7.629363028 | N58: 8.106203396 | O58: 8.617823517 | P58: 8.901317808 | Q58: 9.915698872 | R58: 11.05198951 | S58: 11.62886875 | T58: 11.95566733 | U58: 13 | V58: 14
B59: Essential Energy | C59: NSW | D59: 21.49312039 | E59: 21.98954528 | F59: 22.46647779 | G59: 23.06868879 | H59: 23.641447 | I59: 24.19310149 | J59: 24.73047799 | K59: 25.57092066 | L59: 22.69883446 | M59: 23.10374546 | N59: 23.19655387 | O59: 23.51433376 | P59: 23.934 | Q59: 24.057 | R59: 23.879 | S59: 24.833 | T59: 25.19 | U59: 25.68 | V59: 24
B60: Energex | C60: Qld | D60: 13.71425403 | E60: 13.08701613 | F60: 12.50144026 | G60: 11.88418162 | H60: 11.37873273 | I60: 11.04980224 | J60: 10.89321533 | K60: 10.73914535 | L60: 10.00352686 | M60: 10.8107927 | N60: 10.9359351 | O60: 11 | P60: 11.55843714 | Q60: 12 | R60: 12 | S60: 12.75 | T60: 13.24 | U60: 13.68 | V60: 13.85
B61: Ergon Energy | C61: Qld | D61: 20.4 | E61: 21 | F61: 19.3 | G61: 18.7 | H61: 17.7 | I61: 21.23254355 | J61: 15.8 | K61: 15.7 | L61: 15.3 | M61: 15.6 | N61: 15 | O61: 15.1 | P61: 15 | Q61: 15.3 | R61: 15.7 | S61: 15.21 | T61: 15.1 | U61: 15 | V61: 14.86
B62: SA Power Networks | C62: SA | D62: 25.16845714 | E62: 25.50626812 | F62: 25.73667352 | G62: 25.8520993 | H62: 27.0335464 | I62: 27.0207563 | J62: 26.02847119 | K62: 26.01945008 | L62: 25.98404813 | M62: 27.29084366 | N62: 24.21106149 | O62: 25.30928902 | P62: 25.73 | Q62: 25.86 | R62: 27.44 | S62: 28.24 | T62: 28.8 | U62: 28.92 | V62: 29.86
B63: TasNetworks (D) | C63: Tas | D63: 19.62005066 | E63: 20.03783563 | F63: 20.48305972 | G63: 20.57254492 | H63: 20.56787875 | I63: 20.51244239 | J63: 20.79904445 | K63: 21.23714673 | L63: 21.5452174 | M63: 21.82279956 | N63: 22 | O63: 22.31860426 | P63: 16.74428806 | Q63: 16.64686163 | R63: 16.56128697 | S63: 16.15165584 | T63: 16.05204712 | U63: 16.28876612 | V63: 16.24533752
B64: AusNet (D) | C64: Vic | D64: 23 | E64: 23 | F64: 23 | G64: 23 | H64: 23 | I64: 23 | J64: 23 | K64: 23 | L64: 26.1 | M64: 26.701 | N64: 24.78220498 | O64: 25.40607047 | P64: 25.67597798 | Q64: 26.13009713 | R64: 26.53375608 | S64: 26.85886708 | T64: 27.30321481 | U64: 27.78154593 | V64: 28.22199008
B65: CitiPower | C65: Vic | D65: 26.45620538 | E65: 26.61124106 | F65: 26.77203561 | G65: 26.94482107 | H65: 27.13022087 | I65: 27.32215899 | J65: 26.43181947 | K65: 26.25006962 | L65: 26.3604251 | M65: 26.50432378 | N65: 26 | O65: 28 | P65: 29.3 | Q65: 30 | R65: 30 | S65: 30 | T65: 29.3 | U65: 30 | V65: 30
B66: Jemena Electricity | C66: Vic | D66: 20.89 | E66: 20.59 | F66: 21.64 | G66: 21.55 | H66: 21.13 | I66: 19.67 | J66: 19.23 | K66: 18.03 | L66: 18.602 | M66: 17.81 | N66: 26.56230899 | O66: 26.13382545 | P66: 26.69061398 | Q66: 27.16486493 | R66: 27.9349779 | S66: 27.87545509 | T66: 27.37559803 | U66: 27.783575 | V66: 28.59990128
B67: Powercor Australia | C67: Vic | D67: 31.83195309 | E67: 30.50950554 | F67: 29.18777375 | G67: 27.86519647 | H67: 26.5406005 | I67: 25.21416024 | J67: 24.52076307 | K67: 23.97478443 | L67: 23.97194419 | M67: 24.05620397 | N67: 24 | O67: 25 | P67: 25.9 | Q67: 27 | R67: 27 | S67: 26 | T67: 25.9 | U67: 26 | V67: 26
B68: United Energy | C68: Vic | D68: 14.0976691 | E68: 14.0976691 | F68: 14.0976691 | G68: 14.0976691 | H68: 14.0976691 | I68: 14.0976691 | J68: 14.0976691 | K68: 14.0976691 | L68: 14.0976691 | M68: 14.0976691 | N68: 14.0976691 | O68: 12.6 | P68: 12.6 | Q68: 14 | R68: 15 | S68: 15 | T68: 14.6 | U68: 16 | V68: 18.1
B69: Power and Water Corporation | C69: NT | D69: 31.74736661 | E69: 32.51850071 | F69: 0 | G69: 0 | H69: 16.41396647 | I69: 16.44276456 | J69: 18.38237939 | K69: 19.06155753 | L69: 19.55481755 | M69: 19.22807212 | N69: 17.84090699 | O69: 16.92932554 | P69: 21 | Q69: 20 | R69: 14 | S69: 20 | T69: 21 | U69: 19 | V69: 20
B70: DNSP Average | D70: =AVERAGE(D56:D69) -> 22.73120384 | E70: =AVERAGE(E56:E69) -> 22.21690172 | F70: =AVERAGE(F56:F69) -> 19.75063076 | G70: =AVERAGE(G56:G69) -> 19.55435378 | H70: =AVERAGE(H56:H69) -> 20.68733217 | I70: =AVERAGE(I56:I69) -> 20.53431995 | J70: =AVERAGE(J56:J69) -> 20.10382526 | K70: =AVERAGE(K56:K69) -> 20.09197256 | L70: =AVERAGE(L56:L69) -> 20.24396061 | M70: =AVERAGE(M56:M69) -> 19.44665608 | N70: =AVERAGE(N56:N69) -> 19.65872238 | O70: =AVERAGE(O56:O69) -> 19.93223829 | P70: =AVERAGE(P56:P69) -> 20.23711037 | Q70: =AVERAGE(Q56:Q69) -> 20.7124659 | R70: =AVERAGE(R56:R69) -> 20.76221503 | S70: =AVERAGE(S56:S69) -> 21.41698906 | T70: =AVERAGE(T56:T69) -> 21.55760909 | U70: =AVERAGE(U56:U69) -> 21.90027765 | V70: =AVERAGE(V56:V69) -> 22.33623063
B72: Regulatory service life - zone substations and transformers
C73: State | D73: 2006 | E73: 2007 | F73: 2008 | G73: 2009 | H73: 2010 | I73: 2011 | J73: 2012 | K73: 2013 | L73: 2014 | M73: 2015 | N73: 2016 | O73: 2017 | P73: 2018 | Q73: 2019* | R73: 2020 | S73: 2021 | T73: 2022 | U73: 2023 | V73: 2024
B74: Evoenergy | C74: ACT | D74: 20.9 | E74: 20.9 | F74: 20.9 | G74: 20.9 | H74: 20.9 | I74: 20.9 | J74: 20.9 | K74: 20.9 | L74: 23.5 | M74: 24.97299315 | N74: 32 | O74: 30 | P74: 32.7 | Q74: 33.66 | R74: 33 | S74: 34 | T74: 35 | U74: 36 | V74: 35.4
B75: Ausgrid | C75: NSW | D75: 21.47284308 | E75: 20.07699688 | F75: 18.60429562 | G75: 16.64591453 | H75: 13.35800819 | I75: 11.87354367 | J75: 10.77823686 | K75: 10.43599324 | L75: 11.58666479 | M75: 12.26857189 | N75: 12.42080627 | O75: 12.86367982 | P75: 13.44 | Q75: 14.29 | R75: 14.56 | S75: 15.29 | T75: 16.02 | U75: 16.57 | V75: 17.18
B76: Endeavour Energy | C76: NSW | D76: 12.6912106 | E76: 1.497883879 | F76: 2.609750469 | G76: 3.497233435 | H76: 4.013229484 | I76: 5.167897219 | J76: 5.743761021 | K76: 5.977938959 | L76: 5.93645942 | M76: 5.535756837 | N76: 5.629603944 | O76: 6.506986508 | P76: 7.239683982 | Q76: 8.115452684 | R76: 8.818142836 | S76: 9.409839472 | T76: 9.395740256 | U76: 11 | V76: 11
B77: Essential Energy | C77: NSW | D77: 30.7632189 | E77: 26.73630677 | F77: 27.08833594 | G77: 27.64225989 | H77: 27.66099103 | I77: 28.22170629 | J77: 28.55385505 | K77: 30.10505855 | L77: 20.84986397 | M77: 24.18435933 | N77: 24.22148681 | O77: 24.92746261 | P77: 25.452 | Q77: 25.788 | R77: 26.406 | S77: 23.179 | T77: 23.75 | U77: 24.45 | V77: 22
B78: Energex | C78: Qld | D78: 21.62437614 | E78: 19.39517358 | F78: 17.91815837 | G78: 16.98190456 | H78: 15.52893757 | I78: 14.42210673 | J78: 13.52513896 | K78: 12.83990583 | L78: 12.82423033 | M78: 12.19164894 | N78: 12.64920978 | O78: 13 | P78: 13.78288996 | Q78: 14 | R78: 16 | S78: 19.47 | T78: 20.2 | U78: 20.94 | V78: 21.52
B79: Ergon Energy | C79: Qld | D79: 19.35 | E79: 19.5 | F79: 20.9 | G79: 16.5 | H79: 18 | I79: 16.91925653 | J79: 15.3 | K79: 13.7 | L79: 12.7 | M79: 17.6 | N79: 15 | O79: 12.4 | P79: 12.2 | Q79: 10.2 | R79: 13.7 | S79: 18.37 | T79: 18.55 | U79: 18.71 | V79: 18.58
B80: SA Power Networks | C80: SA | D80: 25.16845714 | E80: 25.50626812 | F80: 25.73667352 | G80: 25.8520993 | H80: 27.0335464 | I80: 27.0207563 | J80: 26.02847119 | K80: 26.01945008 | L80: 25.98753995 | M80: 27.32672701 | N80: 18.23649854 | O80: 19.26974361 | P80: 19.27 | Q80: 18.95 | R80: 22.09 | S80: 22.89 | T80: 23.25 | U80: 23.07 | V80: 24.14
B81: TasNetworks (D) | C81: Tas | D81: 25.75564831 | E81: 24.78420183 | F81: 25.7244143 | G81: 26.0012518 | H81: 26.66001222 | I81: 26.01366451 | J81: 26.69533825 | K81: 27.03294815 | L81: 26.3904829 | M81: 26.44696023 | N81: 27 | O81: 26.47597513 | P81: 11.53646906 | Q81: 12.25396519 | R81: 12.39047866 | S81: 12.60812944 | T81: 13.10237673 | U81: 14.03063862 | V81: 14.96470452
B82: AusNet (D) | C82: Vic | D82: 28 | E82: 28 | F82: 28 | G82: 28 | H82: 28 | I82: 28 | J82: 28 | K82: 28 | L82: 26.4 | M82: 35.281 | N82: 36.56028369 | O82: 37.56028369 | P82: 38.40645161 | Q82: 36.16447368 | R82: 20.89473684 | S82: 35.16 | T82: 33.87671233 | U82: 33.31081081 | V82: 33.84
B83: CitiPower | C83: Vic | D83: 26.45620538 | E83: 26.61124106 | F83: 26.77203561 | G83: 26.94482107 | H83: 27.13022087 | I83: 27.32215899 | J83: 26.43181947 | K83: 26.25006962 | L83: 26.3604251 | M83: 26.50432378 | N83: 26 | O83: 28 | P83: 29.3 | Q83: 30 | R83: 30 | S83: 30 | T83: 29.3 | U83: 30 | V83: 30
B84: Jemena Electricity | C84: Vic | D84: 27.5 | E84: 29.55 | F84: 28.82 | G84: 27.89 | H84: 29.75 | I84: 23.91 | J84: 34.2 | K84: 20.94 | L84: 31.149 | M84: 30.63 | N84: 23.36166054 | O84: 23.70266019 | P84: 25.1269222 | Q84: 23.85764284 | R84: 23.14355976 | S84: 22.9852348 | T84: 22.3895104 | U84: 23.59816868 | V84: 23.99169457
B85: Powercor Australia | C85: Vic | D85: 31.83195309 | E85: 30.50950554 | F85: 29.18777375 | G85: 27.86519647 | H85: 26.5406005 | I85: 25.21416024 | J85: 24.52076307 | K85: 23.97478443 | L85: 23.97194419 | M85: 24.05620397 | N85: 24 | O85: 25 | P85: 25.9 | Q85: 27 | R85: 27 | S85: 26 | T85: 25.9 | U85: 26 | V85: 26
B86: United Energy | C86: Vic | D86: 36 | E86: 36 | F86: 36 | G86: 36 | H86: 36 | I86: 36 | J86: 36 | K86: 36 | L86: 36 | M86: 36 | N86: 36 | O86: 37 | P86: 37 | Q86: 38 | R86: 39 | S86: 39 | T86: 39 | U86: 39 | V86: 41
B87: Power and Water Corporation | C87: NT | D87: 23.30501526 | E87: 23.55698369 | F87: 24.44481738 | G87: 17.67024121 | H87: 31.70435077 | I87: 29.60174064 | J87: 28.62138176 | K87: 9.396679154 | L87: 31.24455744 | M87: 34.08938785 | N87: 34.38163407 | O87: 32.05750325 | P87: 33 | Q87: 35 | R87: 23 | S87: 25 | T87: 25 | U87: 29 | V87: 30
B88: DNSP Average | D88: =AVERAGE(D74:D87) -> 25.05849485 | E88: =AVERAGE(E74:E87) -> 23.75889724 | F88: =AVERAGE(F74:F87) -> 23.7647325 | G88: =AVERAGE(G74:G87) -> 22.74220873 | H88: =AVERAGE(H74:H87) -> 23.73427836 | I88: =AVERAGE(I74:I87) -> 22.89907079 | J88: =AVERAGE(J74:J87) -> 23.23562612 | K88: =AVERAGE(K74:K87) -> 20.82663057 | L88: =AVERAGE(L74:L87) -> 22.49294058 | M88: =AVERAGE(M74:M87) -> 24.0777095 | N88: =AVERAGE(N74:N87) -> 23.39008455 | O88: =AVERAGE(O74:O87) -> 23.48316391 | P88: =AVERAGE(P74:P87) -> 23.16817263 | Q88: =AVERAGE(Q74:Q87) -> 23.3771096 | R88: =AVERAGE(R74:R87) -> 22.14306558 | S88: =AVERAGE(S74:S87) -> 23.81158598 | T88: =AVERAGE(T74:T87) -> 23.90959569 | U88: =AVERAGE(U74:U87) -> 24.69140129 | V88: =AVERAGE(V74:V87) -> 24.97259993
B90: Sources:
B91: Economic benchmarking RIN responses, 2006 to 2024.

Sheet 13. Smart meter installed
B4: Smart meter installations
B6: Smart meter installations represent the proportion of customers with a smart meter or interval meter installed. It refers to those customers with either a type 4 or type 5 meter installed, which allows, at a minimum, time of use pricing. Victorian DNSPs have been excluded from the chart. In 2007, the Victorian Government introduced an Order in Council (revised in 2008) to mandate Victorian DNSPs roll out smart meters to customers consuming less than 160MWh of electricity per annum. In Victoria smart meters have all but replaced types 5 and 6 meters. Data reported by the Victorian DNSPs shows that at least 99 per cent of residential and 94 per cent of small business customers have a smart meter.
B29: Proportion of residential customers with smart meter or interval meter installed
C30: State | D30: 2018 | E30: 2019 | F30: 2020 | G30: 2021 | H30: 2022 | I30: 2023 | J30: 2024
B31: Evoenergy | C31: ACT | D31: 0.031424075 | E31: 0.07495288342 | F31: 0.1615578302 | G31: 0.2464630748 | H31: 0.2910030088 | I31: 0.3530628309 | J31: 0.3934009378
B32: Ausgrid | C32: NSW | D32: 0.314078541 | E32: 0.3335634625 | F32: 0.3619055124 | G32: 0.3858072554 | H32: 0.4152687972 | I32: 0.4545679605 | J32: 0.4947954998
B33: Endeavour Energy | C33: NSW | D33: 0.08410979326 | E33: 0.1407452163 | F33: 0.1982787045 | G33: 0.2546764939 | H33: 0.3094238005 | I33: 0.4036524752 | J33: 0.5484361199
B34: Essential Energy | C34: NSW | D34: 0.05356951254 | E34: 0.107350959 | F34: 0.1999571876 | G34: 0.2512768539 | H34: 0.2947555071 | I34: 0.3521664696 | J34: 0.4524807392
B35: Energex | C35: Qld | D35: 0.08563486698 | E35: 0.1283028123 | F35: 0.1724270301 | G35: 0.2294103896 | H35: 0.290192361 | I35: 0.3561692701 | J35: 0.4515570768
B36: Ergon Energy | C36: Qld | D36: 0.02839555423 | E36: 0.07714980035 | F36: 0.1630624338 | G36: 0.2336486067 | H36: 0.3216948875 | I36: 0.4037910854 | J36: 0.4962966217
B37: SA Power Networks | C37: SA | D37: 0.09502321372 | E37: 0.1406843767 | F37: 0.1895390069 | G37: 0.2579240327 | H37: 0.3157648828 | I37: 0.394222327 | J37: 0.4735485491
B38: TasNetworks (D) | C38: Tas | D38: 0.01406340713 | E38: 0.09216809933 | F38: 0.2022494612 | G38: 0.3597725173 | H38: 0.4564391509 | I38: 0.6282616049 | J38: 0.8299340452
B39: AusNet (D) | C39: Vic | D39: 0.9945341286 | E39: 0.9946875548 | F39: 0.994824208 | G39: 0.9949162547 | H39: 0.9953279012 | I39: 0.995653616 | J39: 0.9963670792
B40: CitiPower | C40: Vic | D40: 0.9886291715 | E40: 0.9894910077 | F40: 0.9903236156 | G40: 0.9931338749 | H40: 0.9941466618 | I40: 0.9942306334 | J40: 0.9946958053
B41: Jemena Electricity | C41: Vic | D41: 0.9934681357 | E41: 0.9938524716 | F41: 0.9942070332 | G41: 0.9943845844 | H41: 0.9946737409 | I41: 0.9949352842 | J41: 0.9951878126
B42: Powercor Australia | C42: Vic | D42: 0.9908314134 | E42: 0.9916497544 | F42: 0.9926209493 | G42: 0.9931030093 | H42: 0.995652888 | I42: 0.9971483117 | J42: 0.9973877583
B43: United Energy | C43: Vic | D43: 0.9858303163 | E43: 0.9906465074 | F43: 0.993709405 | G43: 0.9950121493 | H43: 0.9963740013 | I43: 0.9981014065 | J43: 0.9981885354
B44: Power and Water Corporation | C44: NT | D44: 0.163669894 | E44: 0.1606923978 | F44: 0.2150673059 | G44: 0.2443944386 | H44: 0.2502133517 | I44: 0.3665486631 | J44: 0.4649929419
B45: DNSP weighted average | D45: 0.3750857986 | E45: 0.4064635982 | F45: 0.447444171 | G45: 0.4862917384 | H45: 0.5254164011 | I45: 0.5761525927 | J45: 0.6413519325
B47: Proportion of non-residential (low voltage) customers with smart meter or interval meter installed
C48: State | D48: 2018 | E48: 2019 | F48: 2020 | G48: 2021 | H48: 2022 | I48: 2023 | J48: 2024
B49: Evoenergy | C49: ACT | D49: 0.2590751445 | E49: 0.2927483311 | F49: 0.3373873056 | G49: 0.389310284 | H49: 0.4128601546 | I49: 0.4112605132 | J49: 0.4435934259
B50: Ausgrid | C50: NSW | D50: 0.600963422 | E50: 0.6175771189 | F50: 0.6321630557 | G50: 0.6437232428 | H50: 0.6572716535 | I50: 0.6686810965 | J50: 0.6812563508
B51: Endeavour Energy | C51: NSW | D51: 0.1231939885 | E51: 0.1582371483 | F51: 0.2098729523 | G51: 0.258759028 | H51: 0.2937707623 | I51: 0.3141684908 | J51: 0.4070526774
B52: Essential Energy | C52: NSW | D52: 0.06928290605 | E52: 0.1088872736 | F52: 0.1929670867 | G52: 0.231610172 | H52: 0.2601515817 | I52: 0.3102666502 | J52: 0.3506670553
B53: Energex | C53: Qld | D53: 0.1329287746 | E53: 0.1788849618 | F53: 0.2225467668 | G53: 0.273586712 | H53: 0.3028056653 | I53: 0.3356453534 | J53: 0.3774388967
B54: Ergon Energy | C54: Qld | D54: 0.05175005802 | E54: 0.1129346037 | F54: 0.1855765275 | G54: 0.2555155562 | H54: 0.3245620221 | I54: 0.3936463673 | J54: 0.4854306884
B55: SA Power Networks | C55: SA | D55: 0.1718633771 | E55: 0.2053926909 | F55: 0.2387444128 | G55: 0.2801530153 | H55: 0.3015729626 | I55: 0.3342728298 | J55: 0.3716264385
B56: TasNetworks (D) | C56: Tas | D56: 0.09814910405 | E56: 0.149010935 | F56: 0.2228491524 | G56: 0.2858787226 | H56: 0.3421012033 | I56: 0.388460059 | J56: 0.519222407
B57: AusNet (D) | C57: Vic | D57: 0.9740818934 | E57: 0.9746643718 | F57: 0.9751656308 | G57: 0.9754869953 | H57: 0.9787674973 | I57: 0.9798405537 | J57: 0.9819282296
B58: CitiPower | C58: Vic | D58: 0.9530607355 | E58: 0.9526495147 | F58: 0.9530635188 | G58: 0.9587998389 | H58: 0.9637731922 | I58: 0.964682579 | J58: 0.9686924494
B59: Jemena Electricity | C59: Vic | D59: 0.9536504195 | E59: 0.9566334395 | F59: 0.9584966095 | G59: 0.9594827878 | H59: 0.9615397467 | I59: 0.9529492997 | J59: 0.9542353517
B60: Powercor Australia | C60: Vic | D60: 0.969283208 | E60: 0.968337678 | F60: 0.9712838172 | G60: 0.9716303603 | H60: 0.9789147744 | I60: 0.9821395349 | J60: 0.9849139594
B61: United Energy | C61: Vic | D61: 0.9038823664 | E61: 0.9359172203 | F61: 0.9535506346 | G61: 0.9596310224 | H61: 0.9741430865 | I61: 0.9836122024 | J61: 0.9845544801
B62: Power and Water Corporation | C62: NT | D62: 0.2246393232 | E62: 0.1774274694 | F62: 0.2419730494 | G62: 0.2494736842 | H62: 0.2834229472 | I62: 0.3092565329 | J62: 0.311592762
B63: DNSP weighted average | D63: 0.4443793713 | E63: 0.4714698981 | F63: 0.5067393228 | G63: 0.532608915 | H63: 0.5608643822 | I63: 0.5844417225 | J63: 0.6218609433
B66: Sources:
B67: Annual reporting RIN data 2021 to 2024

Sheet 14. Cost reflective tariffs
B4: Cost reflective tariffs
B6: Cost reflective tariffs provides the proportion of customers assigned to cost-reflective or time of use tariffs for each distribution network service provider.
B34: Proportion of residential customers on cost reflective tariffs
C35: State | D35: 2018 | E35: 2019 | F35: 2020 | G35: 2021 | H35: 2022 | I35: 2023 | J35: 2024
B36: Evoenergy | C36: ACT | D36: 0.2285279199 | E36: 0.2659265148 | F36: 0.3313168738 | G36: 0.3981162417 | H36: 0.441692005 | I36: 0.4949763092 | J36: 0.5261399351
B37: Ausgrid | C37: NSW | D37: 0.2150744542 | E37: 0.2190672959 | F37: 0.25216802 | G37: 0.2811197515 | H37: 0.3132149136 | I37: 0.3563973736 | J37: 0.4007882928
B38: Endeavour Energy | C38: NSW | D38: 0.0001512726635 | E38: 0.0002506765052 | F38: 0.002434091563 | G38: 0.02724278509 | H38: 0.06848662788 | I38: 0.1385283372 | J38: 0.2421622597
B39: Essential Energy | C39: NSW | D39: 0.02965486815 | E39: 0.08047489411 | F39: 0.146412972 | G39: 0.2042592313 | H39: 0.2511636886 | I39: 0.3119277797 | J39: 0.4107412982
B40: Energex | C40: Qld | D40: 0.0004371818721 | E40: 0.0005192803902 | F40: 0.003562009845 | G40: 0.05069568223 | H40: 0.2850087 | I40: 0.3534612705 | J40: 0.4511067733
B41: Ergon Energy | C41: Qld | D41: 0.0004466109224 | E41: 0.000405190823 | F41: 0.0001067378252 | G41: 0.2087730547 | H41: 0.3176387306 | I41: 0.4036780099 | J41: 0.4957967792
B42: SA Power Networks | C42: SA | D42: 2.083699609e-05 | E42: 2.808275221e-05 | F42: 5.168225748e-05 | G42: 0.05849936362 | H42: 0.3159838953 | I42: 0.4005354553 | J42: 0.4767193742
B43: TasNetworks (D) | C43: Tas | D43: 0.0156868339 | E43: 0.05293520473 | F43: 0.1024891878 | G43: 0.1538117366 | H43: 0.1863949387 | I43: 0.2204783431 | J43: 0.2559252715
B44: AusNet (D) | C44: Vic | D44: 0.2539988948 | E44: 0.2752458697 | F44: 0.2998881613 | G44: 0.3143018033 | H44: 0.4198712652 | I44: 0.4471958391 | J44: 0.4742814634
B45: CitiPower | C45: Vic | D45: 0.1512154776 | E45: 0.1500731434 | F45: 0.1485255728 | G45: 0.1491660232 | H45: 0.1600138481 | I45: 0.1733352164 | J45: 0.1857483466
B46: Jemena Electricity | C46: Vic | D46: 0.05758099231 | E46: 0.05636237898 | F46: 0.05601763162 | G46: 0.0555740988 | H46: 0.1535010401 | I46: 0.1755246013 | J46: 0.197425494
B47: Powercor Australia | C47: Vic | D47: 0.2210462875 | E47: 0.2168918882 | F47: 0.2116484255 | G47: 0.209327182 | H47: 0.2514717053 | I47: 0.2863389173 | J47: 0.3170718833
B48: United Energy | C48: Vic | D48: 0.08241636523 | E48: 0.08234528271 | F48: 0.08350185974 | G48: 0.08371299847 | H48: 0.1066626938 | I48: 0.1329062411 | J48: 0.1577311444
B49: Power and Water Corporation | C49: NT | D49: 0 | E49: 0 | F49: 0.2150673059 | G49: 0.2446788548 | H49: 0.2502133517 | I49: 0.3665486631 | J49: 0.4649929419
B50: DNSP Average | D50: =IFERROR(AVERAGE(D36:D49), "") -> 0.089732714 | E50: 0.1000375502 | F50: 0.1323707523 | G50: =IFERROR(AVERAGE(G36:G49), "") -> 0.1742342005 | H50: 0.2515226717 | I50: =IFERROR(AVERAGE(I36:I49), "") -> 0.3044165969 | J50: =IFERROR(AVERAGE(J36:J49), "") -> 0.361187947
B52: Proportion of non-residential (low voltage) customers on cost reflective tariffs
C53: State | D53: 2018 | E53: 2019 | F53: 2020 | G53: 2021 | H53: 2022 | I53: 2023 | J53: 2024
B54: Evoenergy | C54: ACT | D54: 0.3097146152 | E54: 0.3354768951 | F54: 0.3865198648 | G54: 0.4154750923 | H54: 0.4597192288 | I54: 0.4823604875 | J54: 0.5076425008
B55: Ausgrid | C55: NSW | D55: 0.5943521503 | E55: 0.6011033847 | F55: 0.616797442 | G55: 0.6314608695 | H55: 0.6473198102 | I55: 0.6596212031 | J55: 0.6729504368
B56: Endeavour Energy | C56: NSW | D56: 0.0933970203 | E56: 0.09428104188 | F56: 0.1095262472 | G56: 0.1235020088 | H56: 0.1395175135 | I56: 0.1600303584 | J56: 0.1988176798
B57: Essential Energy | C57: NSW | D57: 0.1787916646 | E57: 0.2080833848 | F57: 0.2394037731 | G57: 0.2789340824 | H57: 0.3404287814 | I57: 0.3832800539 | J57: 0.4168272802
B58: Energex | C58: Qld | D58: 0.2177022155 | E58: 0.2158313205 | F58: 0.2162005242 | G58: 0.2534363489 | H58: 0.367845717 | I58: 0.3940346641 | J58: 0.4336603992
B59: Ergon Energy | C59: Qld | D59: 0.08009201804 | E59: 0.0783444418 | F59: 0.07443531312 | G59: 0.2488988999 | H59: 0.3388573789 | I59: 0.4090740388 | J59: 0.4983223822
B60: SA Power Networks | C60: SA | D60: 0.4412141499 | E60: 0.4537252945 | F60: 0.4669951239 | G60: 0.4973559856 | H60: 0.5376197882 | I60: 0.5595117083 | J60: 0.5850530974
B61: TasNetworks (D) | C61: Tas | D61: 0.2327828967 | E61: 0.2536776283 | F61: 0.2811930219 | G61: 0.3127566446 | H61: 0.3472022267 | I61: 0.3610579225 | J61: 0.368921145
B62: AusNet (D) | C62: Vic | D62: 0.5908522696 | E62: 0.5886402754 | F62: 0.5874325524 | G62: 0.5926107302 | H62: 0.6946167974 | I62: 0.7051480131 | J62: 0.7149605718
B63: CitiPower | C63: Vic | D63: 0.501697081 | E63: 0.3826744552 | F63: 0.4833373484 | G63: 0.4841320983 | H63: 0.4994696075 | I63: 0.5057343765 | J63: 0.5142039889
B64: Jemena Electricity | C64: Vic | D64: 0.4219649171 | E64: 0.4146541979 | F64: 0.4104670985 | G64: 0.407125199 | H64: 0.4339559595 | I64: 0.4459788255 | J64: 0.4526848376
B65: Powercor Australia | C65: Vic | D65: 0.5572330827 | E65: 0.5478844997 | F65: 0.5376714362 | G65: 0.5391522881 | H65: 0.5487663423 | I65: 0.5605385557 | J65: 0.5690350336
B66: United Energy | C66: Vic | D66: 0.4250462576 | E66: 0.418495476 | F66: 0.4108510879 | G66: 0.4082377141 | H66: 0.4829089421 | I66: 0.5022304309 | J66: 0.5116898906
B67: Power and Water Corporation | C67: NT | D67: 0.03205065757 | E67: 0 | F67: 0.2752731688 | G67: 0.2624938955 | H67: 0.3212777191 | I67: 0.3475366178 | J67: 0.3676828128
B68: DNSP Average | D68: =IFERROR(AVERAGE(D54:D67), "") -> 0.3340636426 | E68: 0.3280623068 | F68: 0.3640074287 | G68: 0.3896837041 | H68: 0.4399647009 | I68: 0.4625812326 | J68: 0.4866037183
B71: Sources:
B72: Annual reporting RIN data 2021 to 2024
B74: Note:
B75: Evoenergy reports customers on cost reflective tariffs to include the proportion of customers with a type 6 meter and greater than two registers that can record energy usage against applicable time dependent tariffs.
